Date of Payment,Expense Type,Expense Area,Supplier,Transaction Number,Amount,Department,Entity
30/04/2012,TRAINING COURSE FEES,SUPPORT SERVICES,3C ASSOCIATES LTD,5100274418,11040.00,United Kingdom Atomic Energy Authority,United Kingdom Atomic Energy Authority
21/05/2012,TRAINING COURSE FEES,SUPPORT SERVICES,3C ASSOCIATES LTD,5100275173,8280.00,United Kingdom Atomic Energy Authority,United Kingdom Atomic Energy Authority
02/05/2012,PLANT SPARES,FUSION,A D INSTALLATION LTD,5100274623,590.00,United Kingdom Atomic Energy Authority,United Kingdom Atomic Energy Authority
30/04/2012,PLANT & EQUIPMENT,FUSION,AALCO LIMITED,5100274447,49.50,United Kingdom Atomic Energy Authority,United Kingdom Atomic Energy Authority
30/04/2012,PLANT & EQUIPMENT,FUSION,AALCO LIMITED,5100274448,75.80,United Kingdom Atomic Energy Authority,United Kingdom Atomic Energy Authority
14/05/2012,PLANT & EQUIPMENT,FUSION,AALCO LIMITED,5100274788,233.25,United Kingdom Atomic Energy Authority,United Kingdom Atomic Energy Authority
21/05/2012,PLANT & EQUIPMENT,FUSION,AALCO LIMITED,5100275164,129.90,United Kingdom Atomic Energy Authority,United Kingdom Atomic Energy Authority
21/05/2012,PLANT & EQUIPMENT,FUSION,AALCO LIMITED,5100275165,152.40,United Kingdom Atomic Energy Authority,United Kingdom Atomic Energy Authority
14/05/2012,CONSUMABLES,PROPERTY,ABLOY SECURITY,5100274926,123.00,United Kingdom Atomic Energy Authority,United Kingdom Atomic Energy Authority
30/04/2012,IT EQUIPMENT NON CAPITAL,FUSION,ACME TECHNOLOGY,5100274626,572.00,United Kingdom Atomic Energy Authority,United Kingdom Atomic Energy Authority
14/05/2012,MATERIALS & SPARES,FUSION,ACRONA ENGINEERING LTD,5100275132,5300.00,United Kingdom Atomic Energy Authority,United Kingdom Atomic Energy Authority
16/05/2012,DELIVERY & CARRIAGE,FUSION,AFFA LTD,5100275127,140.00,United Kingdom Atomic Energy Authority,United Kingdom Atomic Energy Authority
30/04/2012,CONSUMABLES,FUSION,AGATE PRODUCTS LTD,5100274606,180.00,United Kingdom Atomic Energy Authority,United Kingdom Atomic Energy Authority
30/04/2012,GASES,FUSION,AIR PRODUCTS PLC,5100274412,17.98,United Kingdom Atomic Energy Authority,United Kingdom Atomic Energy Authority
24/05/2012,VISITOR EXPENSES,FUSION,VISITOR EXPENSES,1900056965,325.00,United Kingdom Atomic Energy Authority,United Kingdom Atomic Energy Authority
30/04/2012,MATERIALS & SPARES,FUSION,ALPHA ENGINEERING SUPPLIES,5100274549,43.18,United Kingdom Atomic Energy Authority,United Kingdom Atomic Energy Authority
30/04/2012,MATERIALS & SPARES,FUSION,ALPHA ENGINEERING SUPPLIES,5100274574,461.84,United Kingdom Atomic Energy Authority,United Kingdom Atomic Energy Authority
30/04/2012,MATERIALS & SPARES,FUSION,ALPHA ENGINEERING SUPPLIES,5100274575,66.93,United Kingdom Atomic Energy Authority,United Kingdom Atomic Energy Authority
30/04/2012,MATERIALS & SPARES,FUSION,ALPHA ENGINEERING SUPPLIES,5100274577,22.77,United Kingdom Atomic Energy Authority,United Kingdom Atomic Energy Authority
30/04/2012,MATERIALS & SPARES,FUSION,ALPHA ENGINEERING SUPPLIES,5100274578,202.03,United Kingdom Atomic Energy Authority,United Kingdom Atomic Energy Authority
30/04/2012,MATERIALS & SPARES,FUSION,ALPHA ENGINEERING SUPPLIES,5100274579,47.67,United Kingdom Atomic Energy Authority,United Kingdom Atomic Energy Authority
14/05/2012,MATERIALS & SPARES,FUSION,ALPHA ENGINEERING SUPPLIES,5100274825,269.93,United Kingdom Atomic Energy Authority,United Kingdom Atomic Energy Authority
09/05/2012,MATERIALS & SPARES,FUSION,ALPHA ENGINEERING SUPPLIES,5100274826,60.72,United Kingdom Atomic Energy Authority,United Kingdom Atomic Energy Authority
14/05/2012,MATERIALS & SPARES,FUSION,ALPHA ENGINEERING SUPPLIES,5100274828,100.80,United Kingdom Atomic Energy Authority,United Kingdom Atomic Energy Authority
14/05/2012,MATERIALS & SPARES,FUSION,ALPHA ENGINEERING SUPPLIES,5100274819,4096.86,United Kingdom Atomic Energy Authority,United Kingdom Atomic Energy Authority
14/05/2012,MATERIALS & SPARES,FUSION,ALPHA ENGINEERING SUPPLIES,5100274820,856.99,United Kingdom Atomic Energy Authority,United Kingdom Atomic Energy Authority
14/05/2012,MATERIALS & SPARES,FUSION,ALPHA ENGINEERING SUPPLIES,5100274824,637.28,United Kingdom Atomic Energy Authority,United Kingdom Atomic Energy Authority
09/05/2012,MATERIALS & SPARES,FUSION,ALPHA ENGINEERING SUPPLIES,5100274700,58.00,United Kingdom Atomic Energy Authority,United Kingdom Atomic Energy Authority
30/04/2012,MATERIALS & SPARES,FUSION,ALPHA ENGINEERING SUPPLIES,5100274550,210.41,United Kingdom Atomic Energy Authority,United Kingdom Atomic Energy Authority
09/05/2012,MATERIALS & SPARES,FUSION,ALPHA ENGINEERING SUPPLIES,5100274702,66.93,United Kingdom Atomic Energy Authority,United Kingdom Atomic Energy Authority
14/05/2012,MATERIALS & SPARES,FUSION,ALPHA ENGINEERING SUPPLIES,5100274827,124.62,United Kingdom Atomic Energy Authority,United Kingdom Atomic Energy Authority
14/05/2012,MATERIALS & SPARES,FUSION,ALPHA PACKAGING,5100274922,466.54,United Kingdom Atomic Energy Authority,United Kingdom Atomic Energy Authority
14/05/2012,MATERIALS & SPARES,FUSION,ALPHA PACKAGING,5100274923,466.54,United Kingdom Atomic Energy Authority,United Kingdom Atomic Energy Authority
21/05/2012,PLANT SPARES,FUSION,AMETEK ADVANCE MEASUREMENT,5100275290,5940.00,United Kingdom Atomic Energy Authority,United Kingdom Atomic Energy Authority
21/05/2012,MATERIALS & SPARES,FUSION,AMPLICON LIVELINE LTD,5100275171,308.00,United Kingdom Atomic Energy Authority,United Kingdom Atomic Energy Authority
14/05/2012,MATERIALS & SPARES,FUSION,AMPLICON LIVELINE LTD,5100275097,2740.00,United Kingdom Atomic Energy Authority,United Kingdom Atomic Energy Authority
16/05/2012,OPERATING LEASE,FUSION,ANNODATA BUSINESS COMMUNICATIONS,5100275220,2646.00,United Kingdom Atomic Energy Authority,United Kingdom Atomic Energy Authority
18/05/2012,RAIL TRAVEL,FUSION,VISITOR EXPENSES,1900056931,47.20,United Kingdom Atomic Energy Authority,United Kingdom Atomic Energy Authority
24/05/2012,RAIL TRAVEL,FUSION,VISITOR EXPENSES,1900056964,22.30,United Kingdom Atomic Energy Authority,United Kingdom Atomic Energy Authority
23/05/2012,PERSONAL PROTECTIVE EQUIPMENT,SUPPORT SERVICES,ARCO LTD,5100274963,104.40,United Kingdom Atomic Energy Authority,United Kingdom Atomic Energy Authority
30/04/2012,PERSONAL PROTECTIVE EQUIPMENT,FUSION,ARCO LTD,5100274555,608.00,United Kingdom Atomic Energy Authority,United Kingdom Atomic Energy Authority
30/04/2012,PERSONAL PROTECTIVE EQUIPMENT,FUSION,ARCO LTD,5100274556,103.86,United Kingdom Atomic Energy Authority,United Kingdom Atomic Energy Authority
02/05/2012,PERSONAL PROTECTIVE EQUIPMENT,FUSION,ARCO LTD,5100274628,1653.60,United Kingdom Atomic Energy Authority,United Kingdom Atomic Energy Authority
09/05/2012,PERSONAL PROTECTIVE EQUIPMENT,FUSION,ARCO LTD,5100274732,78.00,United Kingdom Atomic Energy Authority,United Kingdom Atomic Energy Authority
14/05/2012,PERSONAL PROTECTIVE EQUIPMENT,FUSION,ARCO LTD,5100274960,147.80,United Kingdom Atomic Energy Authority,United Kingdom Atomic Energy Authority
14/05/2012,PERSONAL PROTECTIVE EQUIPMENT,FUSION,ARCO LTD,5100274965,1641.00,United Kingdom Atomic Energy Authority,United Kingdom Atomic Energy Authority
21/05/2012,PERSONAL PROTECTIVE EQUIPMENT,FUSION,ARCO LTD,5100275252,387.80,United Kingdom Atomic Energy Authority,United Kingdom Atomic Energy Authority
14/05/2012,PERSONAL PROTECTIVE EQUIPMENT,FUSION,ARCO LTD,5100275112,6.02,United Kingdom Atomic Energy Authority,United Kingdom Atomic Energy Authority
14/05/2012,PERSONAL PROTECTIVE EQUIPMENT,FUSION,ARCO LTD,5100275113,47.99,United Kingdom Atomic Energy Authority,United Kingdom Atomic Energy Authority
09/05/2012,PERSONAL PROTECTIVE EQUIPMENT,SUPPORT SERVICES,ARCO WESSEX,5100274884,146.98,United Kingdom Atomic Energy Authority,United Kingdom Atomic Energy Authority
30/04/2012,PERSONAL PROTECTIVE EQUIPMENT,FUSION,ARCO WESSEX,5100274629,86.09,United Kingdom Atomic Energy Authority,United Kingdom Atomic Energy Authority
14/05/2012,PERSONAL PROTECTIVE EQUIPMENT,FUSION,ARCO WESSEX,5100275118,53.33,United Kingdom Atomic Energy Authority,United Kingdom Atomic Energy Authority
14/05/2012,PERSONAL PROTECTIVE EQUIPMENT,FUSION,ARCO WESSEX,5100275149,-53.33,United Kingdom Atomic Energy Authority,United Kingdom Atomic Energy Authority
30/04/2012,PERSONAL PROTECTIVE EQUIPMENT,FUSION,ARCO WESSEX,5100274554,26.70,United Kingdom Atomic Energy Authority,United Kingdom Atomic Energy Authority
09/05/2012,PERSONAL PROTECTIVE EQUIPMENT,FUSION,ARCO WESSEX,5100274731,32.79,United Kingdom Atomic Energy Authority,United Kingdom Atomic Energy Authority
30/04/2012,PERSONAL PROTECTIVE EQUIPMENT,FUSION,ARCO WESSEX,5100274553,76.11,United Kingdom Atomic Energy Authority,United Kingdom Atomic Energy Authority
21/05/2012,PERSONAL PROTECTIVE EQUIPMENT,FUSION,ARCO WESSEX,5100275358,111.90,United Kingdom Atomic Energy Authority,United Kingdom Atomic Energy Authority
09/05/2012,STATIONERY,FUSION,ARTISAN LITHO PRINT  DESIGN,5100274758,52.50,United Kingdom Atomic Energy Authority,United Kingdom Atomic Energy Authority
30/04/2012,PLANT SPARES,FUSION,AS SCIENTIFIC PRODUCTS LTD,5100274430,3990.00,United Kingdom Atomic Energy Authority,United Kingdom Atomic Energy Authority
16/05/2012,PLANT SPARES,FUSION,AS SCIENTIFIC PRODUCTS LTD,5100275166,5075.00,United Kingdom Atomic Energy Authority,United Kingdom Atomic Energy Authority
02/05/2012,INSPECTION SERVICES,SUPPORT SERVICES,ASHDALE ENGINEERING,5100273988,225.00,United Kingdom Atomic Energy Authority,United Kingdom Atomic Energy Authority
16/05/2012,EFDA SECONDEE CONTRACT,FUSION,ASSOCIATION EURATOM - IPPLM,5100274526,5611.58,United Kingdom Atomic Energy Authority,United Kingdom Atomic Energy Authority
14/05/2012,PLANT SPARES,FUSION,AURIGA EUROPE PLC,5100275162,125.00,United Kingdom Atomic Energy Authority,United Kingdom Atomic Energy Authority
21/05/2012,PLANT SPARES,FUSION,AURIGA EUROPE PLC,5100275366,31.00,United Kingdom Atomic Energy Authority,United Kingdom Atomic Energy Authority
14/05/2012,PLANT SPARES,FUSION,AURIGA EUROPE PLC,5100275106,99.30,United Kingdom Atomic Energy Authority,United Kingdom Atomic Energy Authority
21/05/2012,CATERING,SUPPORT SERVICES,AVENANCE PLC,5100275257,-187.75,United Kingdom Atomic Energy Authority,United Kingdom Atomic Energy Authority
21/05/2012,CATERING,FUSION,AVENANCE PLC,5100275258,740.00,United Kingdom Atomic Energy Authority,United Kingdom Atomic Energy Authority
21/05/2012,CATERING,FUSION,AVENANCE PLC,5100275259,870.60,United Kingdom Atomic Energy Authority,United Kingdom Atomic Energy Authority
21/05/2012,CATERING,PROPERTY,AVENANCE PLC,5100275368,5439.70,United Kingdom Atomic Energy Authority,United Kingdom Atomic Energy Authority
14/05/2012,PLANT SPARES,FUSION,AW GRACE & SON,5100274924,61.15,United Kingdom Atomic Energy Authority,United Kingdom Atomic Energy Authority
21/05/2012,IT EQUIPMENT NON CAPITAL,FUSION,AZTEX SOLUTIONS LIMITED,5100275372,2756.00,United Kingdom Atomic Energy Authority,United Kingdom Atomic Energy Authority
30/04/2012,TREATED WATER,FUSION,B & V WATER TREATMENT,5100274551,3475.00,United Kingdom Atomic Energy Authority,United Kingdom Atomic Energy Authority
22/05/2012,MATERIALS & SPARES,FUSION,Barriers Direct,1900056948,3936.74,United Kingdom Atomic Energy Authority,United Kingdom Atomic Energy Authority
02/05/2012,REPAIRS & MAINTENANCE,FUSION,BATT CABLES PLC,5100274552,932.60,United Kingdom Atomic Energy Authority,United Kingdom Atomic Energy Authority
09/05/2012,REPAIRS & MAINTENANCE,FUSION,BATT CABLES PLC,5100274909,68.00,United Kingdom Atomic Energy Authority,United Kingdom Atomic Energy Authority
09/05/2012,REPAIRS & MAINTENANCE,FUSION,BATT CABLES PLC,5100274912,132.00,United Kingdom Atomic Energy Authority,United Kingdom Atomic Energy Authority
09/05/2012,REPAIRS & MAINTENANCE,FUSION,BATT CABLES PLC,5100274913,173.60,United Kingdom Atomic Energy Authority,United Kingdom Atomic Energy Authority
09/05/2012,REPAIRS & MAINTENANCE,FUSION,BATT CABLES PLC,5100274915,1701.00,United Kingdom Atomic Energy Authority,United Kingdom Atomic Energy Authority
09/05/2012,REPAIRS & MAINTENANCE,FUSION,BATT CABLES PLC,5100274916,448.20,United Kingdom Atomic Energy Authority,United Kingdom Atomic Energy Authority
09/05/2012,REPAIRS & MAINTENANCE,FUSION,BATT CABLES PLC,5100274917,691.00,United Kingdom Atomic Energy Authority,United Kingdom Atomic Energy Authority
09/05/2012,REPAIRS & MAINTENANCE,PROPERTY,BATT CABLES PLC,5100274910,4809.00,United Kingdom Atomic Energy Authority,United Kingdom Atomic Energy Authority
09/05/2012,PLANT & EQUIPMENT,FUSION,BELLEVILLE SPRINGS LTD,5100274703,536.32,United Kingdom Atomic Energy Authority,United Kingdom Atomic Energy Authority
14/05/2012,CLEANING,PROPERTY,BIFFA RECYCLING,5100274990,167.20,United Kingdom Atomic Energy Authority,United Kingdom Atomic Energy Authority
14/05/2012,CLEANING,PROPERTY,BIFFA RECYCLING,5100274991,11.40,United Kingdom Atomic Energy Authority,United Kingdom Atomic Energy Authority
14/05/2012,CLEANING,PROPERTY,BIFFA RECYCLING,5100274992,189.89,United Kingdom Atomic Energy Authority,United Kingdom Atomic Energy Authority
14/05/2012,COMPENSATION AND LEGAL FEES,SUPPORT SERVICES,BIGGART BAILLIE,5100274920,187.00,United Kingdom Atomic Energy Authority,United Kingdom Atomic Energy Authority
10/05/2012,SUBSISTENCE,FUSION,VISITOR EXPENSES,1900056890,412.83,United Kingdom Atomic Energy Authority,United Kingdom Atomic Energy Authority
03/05/2012,PRINTING & GRAPHICS,FUSION,Bishops Printing,1900056879,693.60,United Kingdom Atomic Energy Authority,United Kingdom Atomic Energy Authority
21/05/2012,HIRED STAFF,FUSION,BLACK DIAMOND UMBRELLA LTD,5100275335,3884.94,United Kingdom Atomic Energy Authority,United Kingdom Atomic Energy Authority
21/05/2012,HIRED STAFF,FUSION,BLACK DIAMOND UMBRELLA LTD,5100275337,4432.10,United Kingdom Atomic Energy Authority,United Kingdom Atomic Energy Authority
21/05/2012,HIRED STAFF,FUSION,BLACK DIAMOND UMBRELLA LTD,5100275338,1162.88,United Kingdom Atomic Energy Authority,United Kingdom Atomic Energy Authority
21/05/2012,HIRED STAFF,FUSION,BLACK DIAMOND UMBRELLA LTD,5100275339,814.01,United Kingdom Atomic Energy Authority,United Kingdom Atomic Energy Authority
21/05/2012,HIRED STAFF,FUSION,BLACK DIAMOND UMBRELLA LTD,5100275340,930.30,United Kingdom Atomic Energy Authority,United Kingdom Atomic Energy Authority
21/05/2012,HIRED STAFF,FUSION,BLACK DIAMOND UMBRELLA LTD,5100275341,883.79,United Kingdom Atomic Energy Authority,United Kingdom Atomic Energy Authority
21/05/2012,HIRED STAFF,FUSION,BLACK DIAMOND UMBRELLA LTD,5100275342,745.54,United Kingdom Atomic Energy Authority,United Kingdom Atomic Energy Authority
21/05/2012,HIRED STAFF,FUSION,BLACK DIAMOND UMBRELLA LTD,5100275343,662.70,United Kingdom Atomic Energy Authority,United Kingdom Atomic Energy Authority
21/05/2012,HIRED STAFF,FUSION,BLACK DIAMOND UMBRELLA LTD,5100275344,497.03,United Kingdom Atomic Energy Authority,United Kingdom Atomic Energy Authority
21/05/2012,HIRED STAFF,FUSION,BLACK DIAMOND UMBRELLA LTD,5100275345,828.38,United Kingdom Atomic Energy Authority,United Kingdom Atomic Energy Authority
30/04/2012,BOOKS & PUBLICATIONS,FUSION,BLACKWELL UK LTD,5100274611,46.19,United Kingdom Atomic Energy Authority,United Kingdom Atomic Energy Authority
14/05/2012,CONSUMABLES,FUSION,B-LINE BUSINESS SUPPLIES LTD,5100275003,99.50,United Kingdom Atomic Energy Authority,United Kingdom Atomic Energy Authority
30/04/2012,MATERIALS & SPARES,SUPPORT SERVICES,BOC,5100274359,2355.00,United Kingdom Atomic Energy Authority,United Kingdom Atomic Energy Authority
30/04/2012,GASES,FUSION,BOC LTD,5100274464,95.42,United Kingdom Atomic Energy Authority,United Kingdom Atomic Energy Authority
09/05/2012,GASES,FUSION,BOC LTD,5100274737,132.58,United Kingdom Atomic Energy Authority,United Kingdom Atomic Energy Authority
14/05/2012,GASES,FUSION,BOC LTD,5100275009,58.16,United Kingdom Atomic Energy Authority,United Kingdom Atomic Energy Authority
14/05/2012,GASES,FUSION,BOC LTD,5100275122,74.52,United Kingdom Atomic Energy Authority,United Kingdom Atomic Energy Authority
14/05/2012,GASES,FUSION,BOC LTD,5100275081,252.09,United Kingdom Atomic Energy Authority,United Kingdom Atomic Energy Authority
09/05/2012,GASES,FUSION,BOC LTD,5100274092,241.90,United Kingdom Atomic Energy Authority,United Kingdom Atomic Energy Authority
09/05/2012,GASES,FUSION,BOC LTD,5100274286,37060.57,United Kingdom Atomic Energy Authority,United Kingdom Atomic Energy Authority
21/05/2012,GASES,FUSION,BOC LTD,5100274738,471.52,United Kingdom Atomic Energy Authority,United Kingdom Atomic Energy Authority
21/05/2012,GASES,FUSION,BOC LTD,5100274969,3804.24,United Kingdom Atomic Energy Authority,United Kingdom Atomic Energy Authority
21/05/2012,GASES,FUSION,BOC LTD,5100274971,505.20,United Kingdom Atomic Energy Authority,United Kingdom Atomic Energy Authority
21/05/2012,GASES,FUSION,BOC LTD,5100275281,3662.76,United Kingdom Atomic Energy Authority,United Kingdom Atomic Energy Authority
16/05/2012,GASES,FUSION,BOC LTD,5100275084,192.16,United Kingdom Atomic Energy Authority,United Kingdom Atomic Energy Authority
16/05/2012,GASES,FUSION,BOC LTD,5100275082,187.68,United Kingdom Atomic Energy Authority,United Kingdom Atomic Energy Authority
14/05/2012,GASES,FUSION,BOC LTD,5100274968,639.62,United Kingdom Atomic Energy Authority,United Kingdom Atomic Energy Authority
14/05/2012,GASES,FUSION,BOC LTD,5100275077,185.48,United Kingdom Atomic Energy Authority,United Kingdom Atomic Energy Authority
14/05/2012,GASES,FUSION,BOC LTD,5100275123,1127.76,United Kingdom Atomic Energy Authority,United Kingdom Atomic Energy Authority
16/05/2012,GASES,FUSION,BOC LTD,5100275085,24.68,United Kingdom Atomic Energy Authority,United Kingdom Atomic Energy Authority
09/05/2012,GASES,FUSION,BOC LTD,5100274594,18.63,United Kingdom Atomic Energy Authority,United Kingdom Atomic Energy Authority
14/05/2012,GASES,FUSION,BOC LTD,5100275078,277.96,United Kingdom Atomic Energy Authority,United Kingdom Atomic Energy Authority
14/05/2012,GASES,FUSION,BOC LTD,5100275124,3020.62,United Kingdom Atomic Energy Authority,United Kingdom Atomic Energy Authority
14/05/2012,GASES,FUSION,BOC LTD,5100275125,143.43,United Kingdom Atomic Energy Authority,United Kingdom Atomic Energy Authority
14/05/2012,GASES,FUSION,BOC LTD,5100275087,66.30,United Kingdom Atomic Energy Authority,United Kingdom Atomic Energy Authority
14/05/2012,GASES,FUSION,BOC LTD,5100275083,135.86,United Kingdom Atomic Energy Authority,United Kingdom Atomic Energy Authority
02/05/2012,GASES,FUSION,BOC LTD,5100274591,82.08,United Kingdom Atomic Energy Authority,United Kingdom Atomic Energy Authority
16/05/2012,GASES,FUSION,BOC LTD,5100275086,149.08,United Kingdom Atomic Energy Authority,United Kingdom Atomic Energy Authority
23/05/2012,GASES,FUSION,BOC LTD,5100275452,243.05,United Kingdom Atomic Energy Authority,United Kingdom Atomic Energy Authority
02/05/2012,GASES,FUSION,BOC LTD,5100274592,18.90,United Kingdom Atomic Energy Authority,United Kingdom Atomic Energy Authority
16/05/2012,GASES,FUSION,BOC LTD,5100275079,68.50,United Kingdom Atomic Energy Authority,United Kingdom Atomic Energy Authority
14/05/2012,CONSUMABLES,FUSION,BOXER MACHINE TOOLS SERVICES,5100275072,4760.00,United Kingdom Atomic Energy Authority,United Kingdom Atomic Energy Authority
21/05/2012,UTILITIES/ELECTRICITY,FUSION,BRITISH ENERGY GENERATION LTD,5100275172,135054.67,United Kingdom Atomic Energy Authority,United Kingdom Atomic Energy Authority
21/05/2012,UTILITIES/ELECTRICITY,PROPERTY,BRITISH GAS BUSINESS,5100275294,154.50,United Kingdom Atomic Energy Authority,United Kingdom Atomic Energy Authority
21/05/2012,UTILITIES/ELECTRICITY,PROPERTY,BRITISH GAS BUSINESS,5100275295,21.31,United Kingdom Atomic Energy Authority,United Kingdom Atomic Energy Authority
21/05/2012,UTILITIES/ELECTRICITY,PROPERTY,BRITISH GAS BUSINESS,5100275296,202.77,United Kingdom Atomic Energy Authority,United Kingdom Atomic Energy Authority
21/05/2012,UTILITIES/ELECTRICITY,PROPERTY,BRITISH GAS BUSINESS,5100275297,81.01,United Kingdom Atomic Energy Authority,United Kingdom Atomic Energy Authority
21/05/2012,UTILITIES/ELECTRICITY,PROPERTY,BRITISH GAS BUSINESS,5100275298,21.31,United Kingdom Atomic Energy Authority,United Kingdom Atomic Energy Authority
21/05/2012,UTILITIES/ELECTRICITY,PROPERTY,BRITISH GAS BUSINESS,5100275299,21.31,United Kingdom Atomic Energy Authority,United Kingdom Atomic Energy Authority
21/05/2012,UTILITIES/ELECTRICITY,PROPERTY,BRITISH GAS BUSINESS,5100275300,21.31,United Kingdom Atomic Energy Authority,United Kingdom Atomic Energy Authority
21/05/2012,UTILITIES/ELECTRICITY,PROPERTY,BRITISH GAS BUSINESS,5100275301,463.38,United Kingdom Atomic Energy Authority,United Kingdom Atomic Energy Authority
21/05/2012,UTILITIES/ELECTRICITY,PROPERTY,BRITISH GAS BUSINESS,5100275302,21.31,United Kingdom Atomic Energy Authority,United Kingdom Atomic Energy Authority
21/05/2012,UTILITIES/ELECTRICITY,PROPERTY,BRITISH GAS BUSINESS,5100275303,21.31,United Kingdom Atomic Energy Authority,United Kingdom Atomic Energy Authority
30/04/2012,MATERIALS & SPARES,FUSION,BSRIA INSTRUMENT SOLUTIONS,5100274385,3810.00,United Kingdom Atomic Energy Authority,United Kingdom Atomic Energy Authority
09/05/2012,MATERIALS & SPARES,FUSION,BSRIA INSTRUMENT SOLUTIONS,5100274891,1189.00,United Kingdom Atomic Energy Authority,United Kingdom Atomic Energy Authority
14/05/2012,MATERIALS & SPARES,FUSION,BSRIA INSTRUMENT SOLUTIONS,5100275051,25.00,United Kingdom Atomic Energy Authority,United Kingdom Atomic Energy Authority
21/05/2012,MATERIALS & SPARES,FUSION,BSRIA INSTRUMENT SOLUTIONS,5100275395,75.00,United Kingdom Atomic Energy Authority,United Kingdom Atomic Energy Authority
21/05/2012,MATERIALS & SPARES,FUSION,BSRIA INSTRUMENT SOLUTIONS,5100275396,-15.00,United Kingdom Atomic Energy Authority,United Kingdom Atomic Energy Authority
02/05/2012,MATERIALS & SPARES,FUSION,BSS OXFORD,5100274634,4192.00,United Kingdom Atomic Energy Authority,United Kingdom Atomic Energy Authority
14/05/2012,MATERIALS & SPARES,FUSION,BSS OXFORD,5100275037,239.22,United Kingdom Atomic Energy Authority,United Kingdom Atomic Energy Authority
30/04/2012,PERSONAL PROTECTIVE EQUIPMENT,FUSION,BUCK & HICKMAN LTD,5100274603,0.02,United Kingdom Atomic Energy Authority,United Kingdom Atomic Energy Authority
14/05/2012,PERSONAL PROTECTIVE EQUIPMENT,FUSION,BUCK & HICKMAN LTD,5100275038,78.12,United Kingdom Atomic Energy Authority,United Kingdom Atomic Energy Authority
21/05/2012,PERSONAL PROTECTIVE EQUIPMENT,FUSION,BUCK & HICKMAN LTD,5100275365,118.75,United Kingdom Atomic Energy Authority,United Kingdom Atomic Energy Authority
14/05/2012,PERSONAL PROTECTIVE EQUIPMENT,FUSION,BUCK & HICKMAN LTD,5100275126,33.48,United Kingdom Atomic Energy Authority,United Kingdom Atomic Energy Authority
14/05/2012,MATERIALS & SPARES,FUSION,BUNZL SWS,5100275029,75.24,United Kingdom Atomic Energy Authority,United Kingdom Atomic Energy Authority
14/05/2012,MATERIALS & SPARES,FUSION,BUNZL SWS,5100275030,25.08,United Kingdom Atomic Energy Authority,United Kingdom Atomic Energy Authority
14/05/2012,MATERIALS & SPARES,FUSION,BUNZL SWS,5100275032,21.00,United Kingdom Atomic Energy Authority,United Kingdom Atomic Energy Authority
30/04/2012,CATERING SUPPLIES,SUPPORT SERVICES,BWT UK LTD,5100274089,1425.80,United Kingdom Atomic Energy Authority,United Kingdom Atomic Energy Authority
16/05/2012,CATERING SUPPLIES,SUPPORT SERVICES,BWT UK LTD,5100274929,609.60,United Kingdom Atomic Energy Authority,United Kingdom Atomic Energy Authority
21/05/2012,REPAIRS & MAINTENANCE,FUSION,C GERHARDT UK LTD,5100275193,1001.00,United Kingdom Atomic Energy Authority,United Kingdom Atomic Energy Authority
09/05/2012,TRAVEL,FUSION,CAPITA BUSINESS TRAVEL,5100274961,19982.63,United Kingdom Atomic Energy Authority,United Kingdom Atomic Energy Authority
09/05/2012,CONSUMABLES,FUSION,CARILLON INDUSTRIAL SERVICES LTD,5100274804,184.59,United Kingdom Atomic Energy Authority,United Kingdom Atomic Energy Authority
09/05/2012,CONSUMABLES,FUSION,CARILLON INDUSTRIAL SERVICES LTD,5100274805,199.12,United Kingdom Atomic Energy Authority,United Kingdom Atomic Energy Authority
09/05/2012,CONSUMABLES,FUSION,CARILLON INDUSTRIAL SERVICES LTD,5100274806,227.76,United Kingdom Atomic Energy Authority,United Kingdom Atomic Energy Authority
09/05/2012,CONSUMABLES,FUSION,CARILLON INDUSTRIAL SERVICES LTD,5100274807,196.62,United Kingdom Atomic Energy Authority,United Kingdom Atomic Energy Authority
14/05/2012,CONSUMABLES,FUSION,CARILLON INDUSTRIAL SERVICES LTD,5100275047,96.80,United Kingdom Atomic Energy Authority,United Kingdom Atomic Energy Authority
14/05/2012,CONSUMABLES,FUSION,CARILLON INDUSTRIAL SERVICES LTD,5100275048,33.94,United Kingdom Atomic Energy Authority,United Kingdom Atomic Energy Authority
14/05/2012,CONSUMABLES,FUSION,CARILLON INDUSTRIAL SERVICES LTD,5100275049,112.91,United Kingdom Atomic Energy Authority,United Kingdom Atomic Energy Authority
21/05/2012,CONSUMABLES,FUSION,CARILLON INDUSTRIAL SERVICES LTD,5100275386,123.50,United Kingdom Atomic Energy Authority,United Kingdom Atomic Energy Authority
14/05/2012,SECURITY & EMERGENCY,PROPERTY,CARTEL SECURITY SYSTEMS PLC,5100275002,7000.00,United Kingdom Atomic Energy Authority,United Kingdom Atomic Energy Authority
14/05/2012,MATERIALS & SPARES,FUSION,CASELLA CEL LTD,5100274921,480.00,United Kingdom Atomic Energy Authority,United Kingdom Atomic Energy Authority
21/05/2012,MATERIALS & SPARES,FUSION,CASELLA CEL LTD,5100275271,253.00,United Kingdom Atomic Energy Authority,United Kingdom Atomic Energy Authority
14/05/2012,MATERIALS & SPARES,PROPERTY,CASTELL SAFETY INTERNATIONAL,5100275034,275.93,United Kingdom Atomic Energy Authority,United Kingdom Atomic Energy Authority
14/05/2012,MATERIALS & SPARES,FUSION,CBL ELECTRIC VEHICLES LTD,5100274857,30.16,United Kingdom Atomic Energy Authority,United Kingdom Atomic Energy Authority
14/05/2012,MATERIALS & SPARES,FUSION,CBL ELECTRIC VEHICLES LTD,5100274859,366.00,United Kingdom Atomic Energy Authority,United Kingdom Atomic Energy Authority
21/05/2012,TRAINING COSTS,SUPPORT SERVICES,CENTRAL LAW TRAINING,5100275349,210.00,United Kingdom Atomic Energy Authority,United Kingdom Atomic Energy Authority
23/05/2012,CONSUMABLES,FUSION,CENTRAL METAL & ALLOYS LTD,5100275428,140.00,United Kingdom Atomic Energy Authority,United Kingdom Atomic Energy Authority
30/04/2012,HIRED STAFF,FUSION,CHAMPION EMPLOYMENT LTD,5100274493,114.00,United Kingdom Atomic Energy Authority,United Kingdom Atomic Energy Authority
30/04/2012,HIRED STAFF,FUSION,CHAMPION EMPLOYMENT LTD,5100274494,140.48,United Kingdom Atomic Energy Authority,United Kingdom Atomic Energy Authority
30/04/2012,HIRED STAFF,FUSION,CHAMPION EMPLOYMENT LTD,5100274495,682.13,United Kingdom Atomic Energy Authority,United Kingdom Atomic Energy Authority
30/04/2012,HIRED STAFF,FUSION,CHAMPION EMPLOYMENT LTD,5100274497,682.13,United Kingdom Atomic Energy Authority,United Kingdom Atomic Energy Authority
30/04/2012,HIRED STAFF,FUSION,CHAMPION EMPLOYMENT LTD,5100274498,158.78,United Kingdom Atomic Energy Authority,United Kingdom Atomic Energy Authority
30/04/2012,HIRED STAFF,FUSION,CHAMPION EMPLOYMENT LTD,5100274499,768.38,United Kingdom Atomic Energy Authority,United Kingdom Atomic Energy Authority
09/05/2012,HIRED STAFF,FUSION,CHAMPION EMPLOYMENT LTD,5100274717,1191.45,United Kingdom Atomic Energy Authority,United Kingdom Atomic Energy Authority
09/05/2012,HIRED STAFF,FUSION,CHAMPION EMPLOYMENT LTD,5100274718,1226.82,United Kingdom Atomic Energy Authority,United Kingdom Atomic Energy Authority
09/05/2012,HIRED STAFF,FUSION,CHAMPION EMPLOYMENT LTD,5100274719,682.13,United Kingdom Atomic Energy Authority,United Kingdom Atomic Energy Authority
09/05/2012,HIRED STAFF,FUSION,CHAMPION EMPLOYMENT LTD,5100274722,1153.77,United Kingdom Atomic Energy Authority,United Kingdom Atomic Energy Authority
09/05/2012,HIRED STAFF,FUSION,CHAMPION EMPLOYMENT LTD,5100274723,737.20,United Kingdom Atomic Energy Authority,United Kingdom Atomic Energy Authority
09/05/2012,HIRED STAFF,FUSION,CHAMPION EMPLOYMENT LTD,5100274724,768.38,United Kingdom Atomic Energy Authority,United Kingdom Atomic Energy Authority
14/05/2012,HIRED STAFF,FUSION,CHAMPION EMPLOYMENT LTD,5100274940,682.13,United Kingdom Atomic Energy Authority,United Kingdom Atomic Energy Authority
14/05/2012,HIRED STAFF,FUSION,CHAMPION EMPLOYMENT LTD,5100274941,702.38,United Kingdom Atomic Energy Authority,United Kingdom Atomic Energy Authority
14/05/2012,HIRED STAFF,FUSION,CHAMPION EMPLOYMENT LTD,5100274943,682.13,United Kingdom Atomic Energy Authority,United Kingdom Atomic Energy Authority
14/05/2012,HIRED STAFF,FUSION,CHAMPION EMPLOYMENT LTD,5100274944,899.73,United Kingdom Atomic Energy Authority,United Kingdom Atomic Energy Authority
14/05/2012,HIRED STAFF,FUSION,CHAMPION EMPLOYMENT LTD,5100274945,570.00,United Kingdom Atomic Energy Authority,United Kingdom Atomic Energy Authority
14/05/2012,HIRED STAFF,FUSION,CHAMPION EMPLOYMENT LTD,5100274947,768.38,United Kingdom Atomic Energy Authority,United Kingdom Atomic Energy Authority
21/05/2012,HIRED STAFF,FUSION,CHAMPION EMPLOYMENT LTD,5100275243,682.13,United Kingdom Atomic Energy Authority,United Kingdom Atomic Energy Authority
21/05/2012,HIRED STAFF,FUSION,CHAMPION EMPLOYMENT LTD,5100275244,280.95,United Kingdom Atomic Energy Authority,United Kingdom Atomic Energy Authority
21/05/2012,HIRED STAFF,FUSION,CHAMPION EMPLOYMENT LTD,5100275245,682.13,United Kingdom Atomic Energy Authority,United Kingdom Atomic Energy Authority
21/05/2012,HIRED STAFF,FUSION,CHAMPION EMPLOYMENT LTD,5100275246,846.80,United Kingdom Atomic Energy Authority,United Kingdom Atomic Energy Authority
21/05/2012,HIRED STAFF,FUSION,CHAMPION EMPLOYMENT LTD,5100275247,570.00,United Kingdom Atomic Energy Authority,United Kingdom Atomic Energy Authority
21/05/2012,HIRED STAFF,FUSION,CHAMPION EMPLOYMENT LTD,5100275248,768.38,United Kingdom Atomic Energy Authority,United Kingdom Atomic Energy Authority
04/05/2012,VISITOR EXPENSES,FUSION,VISITOR EXPENSES,1900056880,208.28,United Kingdom Atomic Energy Authority,United Kingdom Atomic Energy Authority
04/05/2012,PROFESSIONAL SUBSCRIPTION,SUPPORT SERVICES,Chartered Institute of Internal Auditors,1900056886,166.00,United Kingdom Atomic Energy Authority,United Kingdom Atomic Energy Authority
30/04/2012,SECURITY & EMERGENCY,PROPERTY,Chubb Fire and Security,1900056841,154.87,United Kingdom Atomic Energy Authority,United Kingdom Atomic Energy Authority
09/05/2012,LAUNDRY,FUSION,CLEAN LINEN SERVICES LTD,5100274883,60.00,United Kingdom Atomic Energy Authority,United Kingdom Atomic Energy Authority
30/04/2012,CATERING,PROPERTY,CLEANSING SERVICE GROUP LTD,5100274458,54.60,United Kingdom Atomic Energy Authority,United Kingdom Atomic Energy Authority
30/04/2012,CATERING,PROPERTY,CLEANSING SERVICE GROUP LTD,5100274462,74.30,United Kingdom Atomic Energy Authority,United Kingdom Atomic Energy Authority
23/05/2012,PROFESSIONAL SERVICES,SUPPORT SERVICES,CLYDE & CO LLP,5100275308,490.50,United Kingdom Atomic Energy Authority,United Kingdom Atomic Energy Authority
16/05/2012,UTILITIES/GAS,PROPERTY,COFELY LTD,5100275075,19938.06,United Kingdom Atomic Energy Authority,United Kingdom Atomic Energy Authority
16/05/2012,UTILITIES/GAS,PROPERTY,COFELY LTD,5100275076,26582.50,United Kingdom Atomic Energy Authority,United Kingdom Atomic Energy Authority
14/05/2012,STATIONERY,FUSION,COLOURCOM,5100275071,319.00,United Kingdom Atomic Energy Authority,United Kingdom Atomic Energy Authority
09/05/2012,MATERIALS & SPARES,FUSION,COMPLETE PCB SERVICES LTD,5100274810,1255.80,United Kingdom Atomic Energy Authority,United Kingdom Atomic Energy Authority
23/05/2012,MATERIALS & SPARES,FUSION,COMPOSITE TECHNOLOGY,5100275353,10271.53,United Kingdom Atomic Energy Authority,United Kingdom Atomic Energy Authority
16/05/2012,SOFTWARE,FUSION,COMPUTER SIMULATION TECHNOLOGY,5100274713,22443.18,United Kingdom Atomic Energy Authority,United Kingdom Atomic Energy Authority
21/05/2012,PROFESSIONAL SERVICES,PROPERTY,CONNAUGHT COMPLIANCE SERVICES LTD,5100275288,2470.00,United Kingdom Atomic Energy Authority,United Kingdom Atomic Energy Authority
21/05/2012,PROFESSIONAL SERVICES,PROPERTY,CONNAUGHT COMPLIANCE SERVICES LTD,5100275289,1520.00,United Kingdom Atomic Energy Authority,United Kingdom Atomic Energy Authority
21/05/2012,PROFESSIONAL SERVICES,PROPERTY,CONNAUGHT COMPLIANCE SERVICES LTD,5100275287,6612.00,United Kingdom Atomic Energy Authority,United Kingdom Atomic Energy Authority
14/05/2012,MATERIALS & SPARES,FUSION,CPC PLC,5100275001,135.53,United Kingdom Atomic Energy Authority,United Kingdom Atomic Energy Authority
23/05/2012,MATERIALS & SPARES,FUSION,CPC PLC,5100275438,61.96,United Kingdom Atomic Energy Authority,United Kingdom Atomic Energy Authority
09/05/2012,MATERIALS & SPARES,FUSION,CROMWELL LTD,5100274789,17.45,United Kingdom Atomic Energy Authority,United Kingdom Atomic Energy Authority
09/05/2012,MATERIALS & SPARES,FUSION,CROMWELL LTD,5100274798,13.69,United Kingdom Atomic Energy Authority,United Kingdom Atomic Energy Authority
09/05/2012,MATERIALS & SPARES,FUSION,CROMWELL LTD,5100274801,119.97,United Kingdom Atomic Energy Authority,United Kingdom Atomic Energy Authority
21/05/2012,MATERIALS & SPARES,FUSION,CROMWELL LTD,5100275363,45.45,United Kingdom Atomic Energy Authority,United Kingdom Atomic Energy Authority
21/05/2012,MATERIALS & SPARES,FUSION,CROMWELL LTD,5100275364,31.35,United Kingdom Atomic Energy Authority,United Kingdom Atomic Energy Authority
30/04/2012,REPAIRS & MAINTENANCE,FUSION,CROWCON DETECTION INSTRUMENTS LTD,5100274597,216.00,United Kingdom Atomic Energy Authority,United Kingdom Atomic Energy Authority
30/04/2012,IT MANGED SERVICE,SUPPORT SERVICES,CSC COMPUTER SCIENCES LIMITED,5100274582,823.49,United Kingdom Atomic Energy Authority,United Kingdom Atomic Energy Authority
14/05/2012,IT MANGED SERVICE,SUPPORT SERVICES,CSC COMPUTER SCIENCES LIMITED,5100274706,2781.82,United Kingdom Atomic Energy Authority,United Kingdom Atomic Energy Authority
14/05/2012,IT MANGED SERVICE,SUPPORT SERVICES,CSC COMPUTER SCIENCES LIMITED,5100274708,4835.40,United Kingdom Atomic Energy Authority,United Kingdom Atomic Energy Authority
09/05/2012,IT MANGED SERVICE,SUPPORT SERVICES,CSC COMPUTER SCIENCES LIMITED,5100274584,5588.33,United Kingdom Atomic Energy Authority,United Kingdom Atomic Energy Authority
14/05/2012,IT MANGED SERVICE,SUPPORT SERVICES,CSC COMPUTER SCIENCES LIMITED,5100274585,22722.11,United Kingdom Atomic Energy Authority,United Kingdom Atomic Energy Authority
09/05/2012,IT MANGED SERVICE,SUPPORT SERVICES,CSC COMPUTER SCIENCES LIMITED,5100274587,13442.03,United Kingdom Atomic Energy Authority,United Kingdom Atomic Energy Authority
14/05/2012,IT MANGED SERVICE,SUPPORT SERVICES,CSC COMPUTER SCIENCES LIMITED,5100275136,13493.38,United Kingdom Atomic Energy Authority,United Kingdom Atomic Energy Authority
14/05/2012,IT MANGED SERVICE,SUPPORT SERVICES,CSC COMPUTER SCIENCES LIMITED,5100275137,22244.60,United Kingdom Atomic Energy Authority,United Kingdom Atomic Energy Authority
02/05/2012,IT MANGED SERVICE,SUPPORT SERVICES,CSC COMPUTER SCIENCES LIMITED,5100274589,202.06,United Kingdom Atomic Energy Authority,United Kingdom Atomic Energy Authority
02/05/2012,IT MANGED SERVICE,SUPPORT SERVICES,CSC COMPUTER SCIENCES LIMITED,5100274590,642.45,United Kingdom Atomic Energy Authority,United Kingdom Atomic Energy Authority
16/05/2012,IT MANGED SERVICE,SUPPORT SERVICES,CSC COMPUTER SCIENCES LIMITED,5100275134,5188.95,United Kingdom Atomic Energy Authority,United Kingdom Atomic Energy Authority
16/05/2012,IT MANGED SERVICE,SUPPORT SERVICES,CSC COMPUTER SCIENCES LIMITED,5100275135,645.16,United Kingdom Atomic Energy Authority,United Kingdom Atomic Energy Authority
02/05/2012,PLANT SPARES,FUSION,CUTWEL LTD,5100274614,172.12,United Kingdom Atomic Energy Authority,United Kingdom Atomic Energy Authority
14/05/2012,CONSUMABLES,FUSION,CYFAS SYSTEMS LTD,5100274840,108.00,United Kingdom Atomic Energy Authority,United Kingdom Atomic Energy Authority
30/04/2012,PROFESSIONAL SERVICES,FUSION,DCL FUSION,5100274505,320.00,United Kingdom Atomic Energy Authority,United Kingdom Atomic Energy Authority
16/05/2012,PROFESSIONAL SERVICES,SUPPORT SERVICES,DESIGNRULE LTD,5100274855,50.00,United Kingdom Atomic Energy Authority,United Kingdom Atomic Energy Authority
30/04/2012,PROFESSIONAL SERVICES,FUSION,DESIGNRULE LTD,5100274540,6860.00,United Kingdom Atomic Energy Authority,United Kingdom Atomic Energy Authority
30/04/2012,MATERIALS & SPARES,FUSION,DIDCOT PLANT LTD,5100274218,65.00,United Kingdom Atomic Energy Authority,United Kingdom Atomic Energy Authority
30/04/2012,PROFESSIONAL SERVICES,SUPPORT SERVICES,DISCLOSURE SCOTLAND,5100274616,200.00,United Kingdom Atomic Energy Authority,United Kingdom Atomic Energy Authority
14/05/2012,PROFESSIONAL SERVICES,SUPPORT SERVICES,DISCLOSURE SCOTLAND,5100275161,200.00,United Kingdom Atomic Energy Authority,United Kingdom Atomic Energy Authority
09/05/2012,PROFESSIONAL SERVICES,SUPPORT SERVICES,DUN & BRADSTREET LTD,5100274740,432.00,United Kingdom Atomic Energy Authority,United Kingdom Atomic Energy Authority
30/04/2012,MATERIALS & SPARES,FUSION,DURBIN METAL INDUSTRIES LTD,5100274502,69.54,United Kingdom Atomic Energy Authority,United Kingdom Atomic Energy Authority
09/05/2012,MATERIALS & SPARES,FUSION,DURBIN METAL INDUSTRIES LTD,5100274695,40.50,United Kingdom Atomic Energy Authority,United Kingdom Atomic Energy Authority
09/05/2012,MATERIALS & SPARES,FUSION,DURBIN METAL INDUSTRIES LTD,5100274696,135.00,United Kingdom Atomic Energy Authority,United Kingdom Atomic Energy Authority
09/05/2012,MATERIALS & SPARES,FUSION,DURBIN METAL INDUSTRIES LTD,5100274697,72.29,United Kingdom Atomic Energy Authority,United Kingdom Atomic Energy Authority
14/05/2012,MATERIALS & SPARES,FUSION,DURBIN METAL INDUSTRIES LTD,5100275102,31.50,United Kingdom Atomic Energy Authority,United Kingdom Atomic Energy Authority
14/05/2012,MATERIALS & SPARES,FUSION,DURBIN METAL INDUSTRIES LTD,5100275103,41.00,United Kingdom Atomic Energy Authority,United Kingdom Atomic Energy Authority
14/05/2012,MATERIALS & SPARES,FUSION,DURBIN METAL INDUSTRIES LTD,5100275104,29.40,United Kingdom Atomic Energy Authority,United Kingdom Atomic Energy Authority
14/05/2012,MATERIALS & SPARES,FUSION,DURBIN METAL INDUSTRIES LTD,5100275105,28.00,United Kingdom Atomic Energy Authority,United Kingdom Atomic Energy Authority
21/05/2012,UTILITIES/ELECTRICITY,PROPERTY,EDF ENERGY,5100274949,3332.77,United Kingdom Atomic Energy Authority,United Kingdom Atomic Energy Authority
21/05/2012,UTILITIES/ELECTRICITY,PROPERTY,EDF ENERGY,5100274951,22188.16,United Kingdom Atomic Energy Authority,United Kingdom Atomic Energy Authority
21/05/2012,UTILITIES/ELECTRICITY,PROPERTY,EDF ENERGY,5100274952,25320.75,United Kingdom Atomic Energy Authority,United Kingdom Atomic Energy Authority
21/05/2012,UTILITIES/ELECTRICITY,PROPERTY,EDF ENERGY,5100274953,797.39,United Kingdom Atomic Energy Authority,United Kingdom Atomic Energy Authority
21/05/2012,UTILITIES/ELECTRICITY,PROPERTY,EDF ENERGY,5100274954,460.24,United Kingdom Atomic Energy Authority,United Kingdom Atomic Energy Authority
21/05/2012,UTILITIES/ELECTRICITY,PROPERTY,EDF ENERGY,5100274956,1162.39,United Kingdom Atomic Energy Authority,United Kingdom Atomic Energy Authority
21/05/2012,UTILITIES/ELECTRICITY,PROPERTY,EDF ENERGY,5100274957,34532.86,United Kingdom Atomic Energy Authority,United Kingdom Atomic Energy Authority
21/05/2012,UTILITIES/ELECTRICITY,PROPERTY,EDF ENERGY,5100274958,1729.25,United Kingdom Atomic Energy Authority,United Kingdom Atomic Energy Authority
21/05/2012,MATERIALS & SPARES,FUSION,EDMUND OPTICS LTD,5100275262,44.60,United Kingdom Atomic Energy Authority,United Kingdom Atomic Energy Authority
09/05/2012,PLANT & EQUIPMENT,FUSION,EDMUNDSON ELECTRICAL LTD,5100274787,250.50,United Kingdom Atomic Energy Authority,United Kingdom Atomic Energy Authority
14/05/2012,PLANT & EQUIPMENT,FUSION,EDMUNDSON ELECTRICAL LTD,5100275015,51.15,United Kingdom Atomic Energy Authority,United Kingdom Atomic Energy Authority
21/05/2012,PLANT & EQUIPMENT,FUSION,EDMUNDSON ELECTRICAL LTD,5100274786,121.02,United Kingdom Atomic Energy Authority,United Kingdom Atomic Energy Authority
09/05/2012,PLANT & EQUIPMENT,FUSION,EDMUNDSON ELECTRICAL LTD,5100275018,-16.14,United Kingdom Atomic Energy Authority,United Kingdom Atomic Energy Authority
09/05/2012,PLANT & EQUIPMENT,FUSION,EDMUNDSON ELECTRICALS LTD,5100274781,310.58,United Kingdom Atomic Energy Authority,United Kingdom Atomic Energy Authority
14/05/2012,PLANT & EQUIPMENT,FUSION,EDMUNDSON ELECTRICALS LTD,5100275017,12.61,United Kingdom Atomic Energy Authority,United Kingdom Atomic Energy Authority
30/04/2012,PLANT & EQUIPMENT,FUSION,EDMUNDSON ELECTRICALS LTD,5100274367,111.85,United Kingdom Atomic Energy Authority,United Kingdom Atomic Energy Authority
30/04/2012,PLANT & EQUIPMENT,FUSION,EDMUNDSON ELECTRICALS LTD,5100274425,952.16,United Kingdom Atomic Energy Authority,United Kingdom Atomic Energy Authority
30/04/2012,PLANT & EQUIPMENT,FUSION,EDMUNDSON ELECTRICALS LTD,5100274604,591.87,United Kingdom Atomic Energy Authority,United Kingdom Atomic Energy Authority
30/04/2012,PLANT & EQUIPMENT,FUSION,EDMUNDSON ELECTRICALS LTD,5100274605,106.41,United Kingdom Atomic Energy Authority,United Kingdom Atomic Energy Authority
09/05/2012,PLANT & EQUIPMENT,FUSION,EDMUNDSON ELECTRICALS LTD,5100274779,780.06,United Kingdom Atomic Energy Authority,United Kingdom Atomic Energy Authority
09/05/2012,PLANT & EQUIPMENT,FUSION,EDMUNDSON ELECTRICALS LTD,5100274782,185.56,United Kingdom Atomic Energy Authority,United Kingdom Atomic Energy Authority
14/05/2012,PLANT & EQUIPMENT,FUSION,EDMUNDSON ELECTRICALS LTD,5100275014,39.41,United Kingdom Atomic Energy Authority,United Kingdom Atomic Energy Authority
14/05/2012,PLANT & EQUIPMENT,FUSION,EDMUNDSON ELECTRICALS LTD,5100275016,35.48,United Kingdom Atomic Energy Authority,United Kingdom Atomic Energy Authority
21/05/2012,PLANT & EQUIPMENT,FUSION,EDMUNDSON ELECTRICALS LTD,5100275128,110.00,United Kingdom Atomic Energy Authority,United Kingdom Atomic Energy Authority
16/05/2012,PLANT & EQUIPMENT,FUSION,EDMUNDSON ELECTRICALS LTD,5100275129,272.80,United Kingdom Atomic Energy Authority,United Kingdom Atomic Energy Authority
16/05/2012,PLANT & EQUIPMENT,FUSION,EDMUNDSON ELECTRICALS LTD,5100275130,7.30,United Kingdom Atomic Energy Authority,United Kingdom Atomic Energy Authority
21/05/2012,PLANT & EQUIPMENT,FUSION,EDMUNDSON ELECTRICALS LTD,5100275131,159.16,United Kingdom Atomic Energy Authority,United Kingdom Atomic Energy Authority
21/05/2012,PLANT & EQUIPMENT,FUSION,EDMUNDSON ELECTRICALS LTD,5100275274,52.11,United Kingdom Atomic Energy Authority,United Kingdom Atomic Energy Authority
21/05/2012,PLANT & EQUIPMENT,FUSION,EDMUNDSON ELECTRICALS LTD,5100275275,32.38,United Kingdom Atomic Energy Authority,United Kingdom Atomic Energy Authority
21/05/2012,PLANT & EQUIPMENT,FUSION,EDMUNDSON ELECTRICALS LTD,5100275276,680.00,United Kingdom Atomic Energy Authority,United Kingdom Atomic Energy Authority
21/05/2012,PLANT & EQUIPMENT,FUSION,EDMUNDSON ELECTRICALS LTD,5100275409,-55.00,United Kingdom Atomic Energy Authority,United Kingdom Atomic Energy Authority
23/05/2012,F&F,SUPPORT SERVICES,EFG MATTHEWS OFFICE FURNITURE LTD,5100275431,375.60,United Kingdom Atomic Energy Authority,United Kingdom Atomic Energy Authority
09/05/2012,F&F,FUSION,EFG MATTHEWS OFFICE FURNITURE LTD,5100274993,-440.00,United Kingdom Atomic Energy Authority,United Kingdom Atomic Energy Authority
09/05/2012,F&F,FUSION,EFG MATTHEWS OFFICE FURNITURE LTD,5100275021,2200.00,United Kingdom Atomic Energy Authority,United Kingdom Atomic Energy Authority
14/05/2012,F&F,SUPPORT SERVICES,EFG MATTHEWS OFFICE FURNITURE LTD,5100274842,137.60,United Kingdom Atomic Energy Authority,United Kingdom Atomic Energy Authority
14/05/2012,MATERIALS & SPARES,FUSION,ELECTRICAL OIL SERVICES LTD,5100275011,141.00,United Kingdom Atomic Energy Authority,United Kingdom Atomic Energy Authority
26/04/2012,OTHER EMPLOYEE EXPENSES,FUSION,EMPLOYEE EXPENSES,100649229,156.00,United Kingdom Atomic Energy Authority,United Kingdom Atomic Energy Authority
11/05/2012,EFDA TRAVEL EXPENSES,FUSION,EMPLOYEE EXPENSES,100649535,582.20,United Kingdom Atomic Energy Authority,United Kingdom Atomic Energy Authority
30/05/2012,SUBSISTENCE,FUSION,EMPLOYEE EXPENSES,100649856,79.11,United Kingdom Atomic Energy Authority,United Kingdom Atomic Energy Authority
30/05/2012,SUBSISTENCE,FUSION,EMPLOYEE EXPENSES,100649856,3.37,United Kingdom Atomic Energy Authority,United Kingdom Atomic Energy Authority
30/05/2012,ROAD TRAVEL,FUSION,EMPLOYEE EXPENSES,100649856,0.97,United Kingdom Atomic Energy Authority,United Kingdom Atomic Energy Authority
05/04/2012,EFDA TRAVEL EXPENSES,FUSION,EMPLOYEE EXPENSES,100648873,68.98,United Kingdom Atomic Energy Authority,United Kingdom Atomic Energy Authority
05/04/2012,EFDA TRAVEL EXPENSES,FUSION,EMPLOYEE EXPENSES,100648874,548.01,United Kingdom Atomic Energy Authority,United Kingdom Atomic Energy Authority
05/04/2012,EFDA TRAVEL EXPENSES,FUSION,EMPLOYEE EXPENSES,100648884,260.81,United Kingdom Atomic Energy Authority,United Kingdom Atomic Energy Authority
05/04/2012,EFDA TRAVEL EXPENSES,FUSION,EMPLOYEE EXPENSES,100648885,782.42,United Kingdom Atomic Energy Authority,United Kingdom Atomic Energy Authority
05/04/2012,EFDA TRAVEL EXPENSES,FUSION,EMPLOYEE EXPENSES,100648895,146.04,United Kingdom Atomic Energy Authority,United Kingdom Atomic Energy Authority
05/04/2012,EFDA TRAVEL EXPENSES,FUSION,EMPLOYEE EXPENSES,100648896,494.60,United Kingdom Atomic Energy Authority,United Kingdom Atomic Energy Authority
18/04/2012,EFDA TRAVEL EXPENSES,FUSION,EMPLOYEE EXPENSES,100649120,136.19,United Kingdom Atomic Energy Authority,United Kingdom Atomic Energy Authority
18/04/2012,EFDA TRAVEL EXPENSES,FUSION,EMPLOYEE EXPENSES,100649137,71.89,United Kingdom Atomic Energy Authority,United Kingdom Atomic Energy Authority
18/04/2012,EFDA TRAVEL EXPENSES,FUSION,EMPLOYEE EXPENSES,100649138,5.53,United Kingdom Atomic Energy Authority,United Kingdom Atomic Energy Authority
18/04/2012,EFDA TRAVEL EXPENSES,FUSION,EMPLOYEE EXPENSES,100649139,360.36,United Kingdom Atomic Energy Authority,United Kingdom Atomic Energy Authority
26/04/2012,TAXIS,FUSION,EMPLOYEE EXPENSES,100649204,14.04,United Kingdom Atomic Energy Authority,United Kingdom Atomic Energy Authority
26/04/2012,SUBSISTENCE,FUSION,EMPLOYEE EXPENSES,100649204,137.32,United Kingdom Atomic Energy Authority,United Kingdom Atomic Energy Authority
26/04/2012,SUBSISTENCE,FUSION,EMPLOYEE EXPENSES,100649204,3.38,United Kingdom Atomic Energy Authority,United Kingdom Atomic Energy Authority
26/04/2012,RAIL TRAVEL,FUSION,EMPLOYEE EXPENSES,100649204,2.45,United Kingdom Atomic Energy Authority,United Kingdom Atomic Energy Authority
11/05/2012,EFDA TRAVEL EXPENSES,FUSION,EMPLOYEE EXPENSES,100649528,549.36,United Kingdom Atomic Energy Authority,United Kingdom Atomic Energy Authority
11/05/2012,EFDA TRAVEL EXPENSES,FUSION,EMPLOYEE EXPENSES,100649530,97.43,United Kingdom Atomic Energy Authority,United Kingdom Atomic Energy Authority
11/05/2012,EFDA TRAVEL EXPENSES,FUSION,EMPLOYEE EXPENSES,100649531,236.70,United Kingdom Atomic Energy Authority,United Kingdom Atomic Energy Authority
11/05/2012,EFDA TRAVEL EXPENSES,FUSION,EMPLOYEE EXPENSES,100649532,17.80,United Kingdom Atomic Energy Authority,United Kingdom Atomic Energy Authority
11/05/2012,EFDA TRAVEL EXPENSES,FUSION,EMPLOYEE EXPENSES,100649534,123.44,United Kingdom Atomic Energy Authority,United Kingdom Atomic Energy Authority
11/05/2012,EFDA TRAVEL EXPENSES,FUSION,EMPLOYEE EXPENSES,100649538,426.16,United Kingdom Atomic Energy Authority,United Kingdom Atomic Energy Authority
11/05/2012,EFDA TRAVEL EXPENSES,FUSION,EMPLOYEE EXPENSES,100649539,381.44,United Kingdom Atomic Energy Authority,United Kingdom Atomic Energy Authority
11/05/2012,EFDA TRAVEL EXPENSES,FUSION,EMPLOYEE EXPENSES,100649544,772.69,United Kingdom Atomic Energy Authority,United Kingdom Atomic Energy Authority
11/05/2012,EFDA TRAVEL EXPENSES,FUSION,EMPLOYEE EXPENSES,100649545,679.59,United Kingdom Atomic Energy Authority,United Kingdom Atomic Energy Authority
17/05/2012,EFDA TRAVEL EXPENSES,FUSION,EMPLOYEE EXPENSES,100649590,427.54,United Kingdom Atomic Energy Authority,United Kingdom Atomic Energy Authority
17/05/2012,EFDA TRAVEL EXPENSES,FUSION,EMPLOYEE EXPENSES,100649591,387.68,United Kingdom Atomic Energy Authority,United Kingdom Atomic Energy Authority
30/05/2012,EFDA TRAVEL EXPENSES,FUSION,EMPLOYEE EXPENSES,100649862,235.00,United Kingdom Atomic Energy Authority,United Kingdom Atomic Energy Authority
30/05/2012,EFDA TRAVEL EXPENSES,FUSION,EMPLOYEE EXPENSES,100649864,159.87,United Kingdom Atomic Energy Authority,United Kingdom Atomic Energy Authority
05/04/2012,SUBSISTENCE,SUPPORT SERVICES,EMPLOYEE EXPENSES,100648870,3.15,United Kingdom Atomic Energy Authority,United Kingdom Atomic Energy Authority
05/04/2012,SUBSISTENCE,SUPPORT SERVICES,EMPLOYEE EXPENSES,100648870,1.79,United Kingdom Atomic Energy Authority,United Kingdom Atomic Energy Authority
05/04/2012,RAIL TRAVEL,SUPPORT SERVICES,EMPLOYEE EXPENSES,100648870,36.10,United Kingdom Atomic Energy Authority,United Kingdom Atomic Energy Authority
05/04/2012,ROAD TRAVEL,SUPPORT SERVICES,EMPLOYEE EXPENSES,100648870,6.00,United Kingdom Atomic Energy Authority,United Kingdom Atomic Energy Authority
05/04/2012,MILEAGE ALLOWANCE,SUPPORT SERVICES,EMPLOYEE EXPENSES,100648872,24.80,United Kingdom Atomic Energy Authority,United Kingdom Atomic Energy Authority
05/04/2012,SUBSISTENCE,SUPPORT SERVICES,EMPLOYEE EXPENSES,100648878,5.17,United Kingdom Atomic Energy Authority,United Kingdom Atomic Energy Authority
05/04/2012,MILEAGE ALLOWANCE,SUPPORT SERVICES,EMPLOYEE EXPENSES,100648878,12.80,United Kingdom Atomic Energy Authority,United Kingdom Atomic Energy Authority
18/04/2012,MILEAGE ALLOWANCE,SUPPORT SERVICES,EMPLOYEE EXPENSES,100649134,19.32,United Kingdom Atomic Energy Authority,United Kingdom Atomic Energy Authority
27/04/2012,MILEAGE ALLOWANCE,SUPPORT SERVICES,EMPLOYEE EXPENSES,100649241,6.00,United Kingdom Atomic Energy Authority,United Kingdom Atomic Energy Authority
27/04/2012,MILEAGE ALLOWANCE,SUPPORT SERVICES,EMPLOYEE EXPENSES,100649242,6.00,United Kingdom Atomic Energy Authority,United Kingdom Atomic Energy Authority
27/04/2012,MILEAGE ALLOWANCE,SUPPORT SERVICES,EMPLOYEE EXPENSES,100649243,6.00,United Kingdom Atomic Energy Authority,United Kingdom Atomic Energy Authority
27/04/2012,MILEAGE ALLOWANCE,SUPPORT SERVICES,EMPLOYEE EXPENSES,100649246,7.20,United Kingdom Atomic Energy Authority,United Kingdom Atomic Energy Authority
04/05/2012,MILEAGE ALLOWANCE,SUPPORT SERVICES,EMPLOYEE EXPENSES,100649486,28.00,United Kingdom Atomic Energy Authority,United Kingdom Atomic Energy Authority
11/05/2012,PROFESSIONAL SUBSCRIPTION,SUPPORT SERVICES,EMPLOYEE EXPENSES,100649524,147.00,United Kingdom Atomic Energy Authority,United Kingdom Atomic Energy Authority
17/05/2012,PROFESSIONAL SUBSCRIPTION,SUPPORT SERVICES,EMPLOYEE EXPENSES,100649583,110.25,United Kingdom Atomic Energy Authority,United Kingdom Atomic Energy Authority
20/05/2012,TAXIS,SUPPORT SERVICES,EMPLOYEE EXPENSES,100649682,16.80,United Kingdom Atomic Energy Authority,United Kingdom Atomic Energy Authority
20/05/2012,SUBSISTENCE,SUPPORT SERVICES,EMPLOYEE EXPENSES,100649682,8.24,United Kingdom Atomic Energy Authority,United Kingdom Atomic Energy Authority
20/05/2012,RAIL TRAVEL,SUPPORT SERVICES,EMPLOYEE EXPENSES,100649682,54.00,United Kingdom Atomic Energy Authority,United Kingdom Atomic Energy Authority
20/05/2012,ROAD TRAVEL,SUPPORT SERVICES,EMPLOYEE EXPENSES,100649682,6.00,United Kingdom Atomic Energy Authority,United Kingdom Atomic Energy Authority
05/04/2012,TAXIS,SUPPORT SERVICES,EMPLOYEE EXPENSES,100648858,18.24,United Kingdom Atomic Energy Authority,United Kingdom Atomic Energy Authority
05/04/2012,SUBSISTENCE,SUPPORT SERVICES,EMPLOYEE EXPENSES,100648858,165.40,United Kingdom Atomic Energy Authority,United Kingdom Atomic Energy Authority
05/04/2012,SUBSISTENCE,SUPPORT SERVICES,EMPLOYEE EXPENSES,100648863,164.71,United Kingdom Atomic Energy Authority,United Kingdom Atomic Energy Authority
05/04/2012,RAIL TRAVEL,SUPPORT SERVICES,EMPLOYEE EXPENSES,100648863,28.06,United Kingdom Atomic Energy Authority,United Kingdom Atomic Energy Authority
05/04/2012,MILEAGE ALLOWANCE,SUPPORT SERVICES,EMPLOYEE EXPENSES,100648887,50.00,United Kingdom Atomic Energy Authority,United Kingdom Atomic Energy Authority
05/04/2012,MILEAGE ALLOWANCE,SUPPORT SERVICES,EMPLOYEE EXPENSES,100648888,50.00,United Kingdom Atomic Energy Authority,United Kingdom Atomic Energy Authority
18/04/2012,ROAD TRAVEL,SUPPORT SERVICES,EMPLOYEE EXPENSES,100649132,63.20,United Kingdom Atomic Energy Authority,United Kingdom Atomic Energy Authority
18/04/2012,SUBSISTENCE,SUPPORT SERVICES,EMPLOYEE EXPENSES,100649133,86.67,United Kingdom Atomic Energy Authority,United Kingdom Atomic Energy Authority
04/05/2012,PROFESSIONAL SUBSCRIPTION,SUPPORT SERVICES,EMPLOYEE EXPENSES,100649467,105.00,United Kingdom Atomic Energy Authority,United Kingdom Atomic Energy Authority
04/05/2012,PROFESSIONAL SUBSCRIPTION,SUPPORT SERVICES,EMPLOYEE EXPENSES,100649479,127.00,United Kingdom Atomic Energy Authority,United Kingdom Atomic Energy Authority
11/05/2012,PROFESSIONAL SUBSCRIPTION,SUPPORT SERVICES,EMPLOYEE EXPENSES,100649549,189.00,United Kingdom Atomic Energy Authority,United Kingdom Atomic Energy Authority
17/05/2012,MILEAGE ALLOWANCE,SUPPORT SERVICES,EMPLOYEE EXPENSES,100649595,50.00,United Kingdom Atomic Energy Authority,United Kingdom Atomic Energy Authority
25/05/2012,MILEAGE ALLOWANCE,SUPPORT SERVICES,EMPLOYEE EXPENSES,100649729,50.00,United Kingdom Atomic Energy Authority,United Kingdom Atomic Energy Authority
30/05/2012,SUBSISTENCE,SUPPORT SERVICES,EMPLOYEE EXPENSES,100649854,20.00,United Kingdom Atomic Energy Authority,United Kingdom Atomic Energy Authority
30/05/2012,SUBSISTENCE,SUPPORT SERVICES,EMPLOYEE EXPENSES,100649854,331.04,United Kingdom Atomic Energy Authority,United Kingdom Atomic Energy Authority
30/05/2012,MILEAGE ALLOWANCE,SUPPORT SERVICES,EMPLOYEE EXPENSES,100649854,82.40,United Kingdom Atomic Energy Authority,United Kingdom Atomic Energy Authority
30/05/2012,OTHER EMPLOYEE EXPENSES,SUPPORT SERVICES,EMPLOYEE EXPENSES,100649854,6.00,United Kingdom Atomic Energy Authority,United Kingdom Atomic Energy Authority
31/05/2012,MILEAGE ALLOWANCE,SUPPORT SERVICES,EMPLOYEE EXPENSES,100649901,8.00,United Kingdom Atomic Energy Authority,United Kingdom Atomic Energy Authority
31/05/2012,MILEAGE ALLOWANCE,SUPPORT SERVICES,EMPLOYEE EXPENSES,100649902,8.40,United Kingdom Atomic Energy Authority,United Kingdom Atomic Energy Authority
31/05/2012,RAIL TRAVEL,SUPPORT SERVICES,EMPLOYEE EXPENSES,100649903,45.50,United Kingdom Atomic Energy Authority,United Kingdom Atomic Energy Authority
31/05/2012,SUBSISTENCE,SUPPORT SERVICES,EMPLOYEE EXPENSES,100649907,135.10,United Kingdom Atomic Energy Authority,United Kingdom Atomic Energy Authority
31/05/2012,SUBSISTENCE,SUPPORT SERVICES,EMPLOYEE EXPENSES,100649907,11.49,United Kingdom Atomic Energy Authority,United Kingdom Atomic Energy Authority
31/05/2012,MILEAGE ALLOWANCE,SUPPORT SERVICES,EMPLOYEE EXPENSES,100649907,36.00,United Kingdom Atomic Energy Authority,United Kingdom Atomic Energy Authority
31/05/2012,RAIL TRAVEL,SUPPORT SERVICES,EMPLOYEE EXPENSES,100649907,117.90,United Kingdom Atomic Energy Authority,United Kingdom Atomic Energy Authority
31/05/2012,ROAD TRAVEL,SUPPORT SERVICES,EMPLOYEE EXPENSES,100649907,9.70,United Kingdom Atomic Energy Authority,United Kingdom Atomic Energy Authority
31/05/2012,PROFESSIONAL SUBSCRIPTION,SUPPORT SERVICES,EMPLOYEE EXPENSES,100649912,85.00,United Kingdom Atomic Energy Authority,United Kingdom Atomic Energy Authority
01/06/2012,RAIL TRAVEL,SUPPORT SERVICES,EMPLOYEE EXPENSES,100650016,59.90,United Kingdom Atomic Energy Authority,United Kingdom Atomic Energy Authority
03/06/2012,SUBSISTENCE,SUPPORT SERVICES,EMPLOYEE EXPENSES,100650036,125.39,United Kingdom Atomic Energy Authority,United Kingdom Atomic Energy Authority
26/04/2012,MILEAGE ALLOWANCE,FUSION,EMPLOYEE EXPENSES,100649228,8.80,United Kingdom Atomic Energy Authority,United Kingdom Atomic Energy Authority
26/04/2012,OTHER EMPLOYEE EXPENSES,FUSION,EMPLOYEE EXPENSES,100649228,13.98,United Kingdom Atomic Energy Authority,United Kingdom Atomic Energy Authority
26/04/2012,OTHER EMPLOYEE EXPENSES,FUSION,EMPLOYEE EXPENSES,100649214,19.98,United Kingdom Atomic Energy Authority,United Kingdom Atomic Energy Authority
20/04/2012,MILEAGE ALLOWANCE,FUSION,EMPLOYEE EXPENSES,100649157,59.60,United Kingdom Atomic Energy Authority,United Kingdom Atomic Energy Authority
20/04/2012,MILEAGE ALLOWANCE,FUSION,EMPLOYEE EXPENSES,100649158,59.60,United Kingdom Atomic Energy Authority,United Kingdom Atomic Energy Authority
26/04/2012,MILEAGE ALLOWANCE,FUSION,EMPLOYEE EXPENSES,100649212,59.60,United Kingdom Atomic Energy Authority,United Kingdom Atomic Energy Authority
26/04/2012,MILEAGE ALLOWANCE,FUSION,EMPLOYEE EXPENSES,100649213,59.60,United Kingdom Atomic Energy Authority,United Kingdom Atomic Energy Authority
30/05/2012,MILEAGE ALLOWANCE,FUSION,EMPLOYEE EXPENSES,100649866,59.60,United Kingdom Atomic Energy Authority,United Kingdom Atomic Energy Authority
30/05/2012,MILEAGE ALLOWANCE,FUSION,EMPLOYEE EXPENSES,100649867,59.60,United Kingdom Atomic Energy Authority,United Kingdom Atomic Energy Authority
30/05/2012,PROFESSIONAL SUBSCRIPTION,FUSION,EMPLOYEE EXPENSES,100649880,42.00,United Kingdom Atomic Energy Authority,United Kingdom Atomic Energy Authority
05/04/2012,ROAD TRAVEL,FUSION,EMPLOYEE EXPENSES,100648876,6.00,United Kingdom Atomic Energy Authority,United Kingdom Atomic Energy Authority
05/04/2012,ROAD TRAVEL,FUSION,EMPLOYEE EXPENSES,100648876,22.92,United Kingdom Atomic Energy Authority,United Kingdom Atomic Energy Authority
05/04/2012,PROFESSIONAL SUBSCRIPTION,FUSION,EMPLOYEE EXPENSES,100648890,129.00,United Kingdom Atomic Energy Authority,United Kingdom Atomic Energy Authority
20/04/2012,SUBSISTENCE,FUSION,EMPLOYEE EXPENSES,100649159,10.00,United Kingdom Atomic Energy Authority,United Kingdom Atomic Energy Authority
20/04/2012,MILEAGE ALLOWANCE,FUSION,EMPLOYEE EXPENSES,100649159,32.00,United Kingdom Atomic Energy Authority,United Kingdom Atomic Energy Authority
20/04/2012,SUBSISTENCE,FUSION,EMPLOYEE EXPENSES,100649160,10.00,United Kingdom Atomic Energy Authority,United Kingdom Atomic Energy Authority
20/04/2012,MILEAGE ALLOWANCE,FUSION,EMPLOYEE EXPENSES,100649160,32.00,United Kingdom Atomic Energy Authority,United Kingdom Atomic Energy Authority
20/04/2012,SUBSISTENCE,FUSION,EMPLOYEE EXPENSES,100649161,10.00,United Kingdom Atomic Energy Authority,United Kingdom Atomic Energy Authority
20/04/2012,MILEAGE ALLOWANCE,FUSION,EMPLOYEE EXPENSES,100649161,32.00,United Kingdom Atomic Energy Authority,United Kingdom Atomic Energy Authority
20/04/2012,SUBSISTENCE,FUSION,EMPLOYEE EXPENSES,100649162,10.00,United Kingdom Atomic Energy Authority,United Kingdom Atomic Energy Authority
20/04/2012,MILEAGE ALLOWANCE,FUSION,EMPLOYEE EXPENSES,100649162,32.00,United Kingdom Atomic Energy Authority,United Kingdom Atomic Energy Authority
20/04/2012,SUBSISTENCE,FUSION,EMPLOYEE EXPENSES,100649163,10.00,United Kingdom Atomic Energy Authority,United Kingdom Atomic Energy Authority
20/04/2012,MILEAGE ALLOWANCE,FUSION,EMPLOYEE EXPENSES,100649163,32.00,United Kingdom Atomic Energy Authority,United Kingdom Atomic Energy Authority
20/04/2012,SUBSISTENCE,FUSION,EMPLOYEE EXPENSES,100649164,10.00,United Kingdom Atomic Energy Authority,United Kingdom Atomic Energy Authority
20/04/2012,MILEAGE ALLOWANCE,FUSION,EMPLOYEE EXPENSES,100649164,32.00,United Kingdom Atomic Energy Authority,United Kingdom Atomic Energy Authority
05/04/2012,PROFESSIONAL SUBSCRIPTION,FUSION,EMPLOYEE EXPENSES,100648889,68.00,United Kingdom Atomic Energy Authority,United Kingdom Atomic Energy Authority
18/04/2012,PROFESSIONAL SUBSCRIPTION,FUSION,EMPLOYEE EXPENSES,100649118,111.00,United Kingdom Atomic Energy Authority,United Kingdom Atomic Energy Authority
25/05/2012,SUBSISTENCE,FUSION,EMPLOYEE EXPENSES,100649723,10.00,United Kingdom Atomic Energy Authority,United Kingdom Atomic Energy Authority
25/05/2012,MILEAGE ALLOWANCE,FUSION,EMPLOYEE EXPENSES,100649723,32.00,United Kingdom Atomic Energy Authority,United Kingdom Atomic Energy Authority
25/05/2012,SUBSISTENCE,FUSION,EMPLOYEE EXPENSES,100649724,10.00,United Kingdom Atomic Energy Authority,United Kingdom Atomic Energy Authority
25/05/2012,MILEAGE ALLOWANCE,FUSION,EMPLOYEE EXPENSES,100649724,32.00,United Kingdom Atomic Energy Authority,United Kingdom Atomic Energy Authority
25/05/2012,SUBSISTENCE,FUSION,EMPLOYEE EXPENSES,100649725,10.00,United Kingdom Atomic Energy Authority,United Kingdom Atomic Energy Authority
25/05/2012,MILEAGE ALLOWANCE,FUSION,EMPLOYEE EXPENSES,100649725,32.00,United Kingdom Atomic Energy Authority,United Kingdom Atomic Energy Authority
05/04/2012,MILEAGE ALLOWANCE,FUSION,EMPLOYEE EXPENSES,100648875,48.40,United Kingdom Atomic Energy Authority,United Kingdom Atomic Energy Authority
11/05/2012,SUBSISTENCE,FUSION,EMPLOYEE EXPENSES,100649533,7.90,United Kingdom Atomic Energy Authority,United Kingdom Atomic Energy Authority
11/05/2012,MILEAGE ALLOWANCE,FUSION,EMPLOYEE EXPENSES,100649533,146.00,United Kingdom Atomic Energy Authority,United Kingdom Atomic Energy Authority
11/05/2012,ROAD TRAVEL,FUSION,EMPLOYEE EXPENSES,100649533,5.50,United Kingdom Atomic Energy Authority,United Kingdom Atomic Energy Authority
11/05/2012,MILEAGE ALLOWANCE,FUSION,EMPLOYEE EXPENSES,100649536,48.40,United Kingdom Atomic Energy Authority,United Kingdom Atomic Energy Authority
11/05/2012,MILEAGE ALLOWANCE,FUSION,EMPLOYEE EXPENSES,100649537,48.40,United Kingdom Atomic Energy Authority,United Kingdom Atomic Energy Authority
11/05/2012,PROFESSIONAL SUBSCRIPTION,FUSION,EMPLOYEE EXPENSES,100649519,130.29,United Kingdom Atomic Energy Authority,United Kingdom Atomic Energy Authority
05/04/2012,PROFESSIONAL SUBSCRIPTION,FUSION,EMPLOYEE EXPENSES,100648893,143.00,United Kingdom Atomic Energy Authority,United Kingdom Atomic Energy Authority
20/04/2012,SUBSISTENCE,FUSION,EMPLOYEE EXPENSES,100649153,104.74,United Kingdom Atomic Energy Authority,United Kingdom Atomic Energy Authority
20/04/2012,RAIL TRAVEL,FUSION,EMPLOYEE EXPENSES,100649153,1.28,United Kingdom Atomic Energy Authority,United Kingdom Atomic Energy Authority
20/05/2012,SUBSISTENCE,FUSION,EMPLOYEE EXPENSES,100649684,430.13,United Kingdom Atomic Energy Authority,United Kingdom Atomic Energy Authority
20/05/2012,SUBSISTENCE,FUSION,EMPLOYEE EXPENSES,100649684,3.16,United Kingdom Atomic Energy Authority,United Kingdom Atomic Energy Authority
20/05/2012,RAIL TRAVEL,FUSION,EMPLOYEE EXPENSES,100649684,28.07,United Kingdom Atomic Energy Authority,United Kingdom Atomic Energy Authority
19/04/2012,OTHER STAFF COSTS,FUSION,EMPLOYEE EXPENSES,100649145,16.00,United Kingdom Atomic Energy Authority,United Kingdom Atomic Energy Authority
04/05/2012,SUBSISTENCE,FUSION,EMPLOYEE EXPENSES,100649490,4.41,United Kingdom Atomic Energy Authority,United Kingdom Atomic Energy Authority
04/05/2012,ROAD TRAVEL,FUSION,EMPLOYEE EXPENSES,100649490,49.35,United Kingdom Atomic Energy Authority,United Kingdom Atomic Energy Authority
11/05/2012,SUBSISTENCE,FUSION,EMPLOYEE EXPENSES,100649525,10.00,United Kingdom Atomic Energy Authority,United Kingdom Atomic Energy Authority
11/05/2012,SUBSISTENCE,FUSION,EMPLOYEE EXPENSES,100649525,189.90,United Kingdom Atomic Energy Authority,United Kingdom Atomic Energy Authority
11/05/2012,ROAD TRAVEL,FUSION,EMPLOYEE EXPENSES,100649525,78.04,United Kingdom Atomic Energy Authority,United Kingdom Atomic Energy Authority
11/05/2012,SUBSISTENCE,FUSION,EMPLOYEE EXPENSES,100649540,7.39,United Kingdom Atomic Energy Authority,United Kingdom Atomic Energy Authority
30/05/2012,SUBSISTENCE,FUSION,EMPLOYEE EXPENSES,100649878,23.62,United Kingdom Atomic Energy Authority,United Kingdom Atomic Energy Authority
30/05/2012,ROAD TRAVEL,FUSION,EMPLOYEE EXPENSES,100649878,8.00,United Kingdom Atomic Energy Authority,United Kingdom Atomic Energy Authority
30/05/2012,ROAD TRAVEL,FUSION,EMPLOYEE EXPENSES,100649878,26.78,United Kingdom Atomic Energy Authority,United Kingdom Atomic Energy Authority
04/05/2012,PROFESSIONAL SUBSCRIPTION,FUSION,EMPLOYEE EXPENSES,100649478,127.00,United Kingdom Atomic Energy Authority,United Kingdom Atomic Energy Authority
17/05/2012,MILEAGE ALLOWANCE,FUSION,EMPLOYEE EXPENSES,100649586,16.00,United Kingdom Atomic Energy Authority,United Kingdom Atomic Energy Authority
30/05/2012,TAXIS,FUSION,EMPLOYEE EXPENSES,100649855,22.00,United Kingdom Atomic Energy Authority,United Kingdom Atomic Energy Authority
30/05/2012,SUBSISTENCE,FUSION,EMPLOYEE EXPENSES,100649855,382.00,United Kingdom Atomic Energy Authority,United Kingdom Atomic Energy Authority
30/05/2012,SUBSISTENCE,FUSION,EMPLOYEE EXPENSES,100649855,85.06,United Kingdom Atomic Energy Authority,United Kingdom Atomic Energy Authority
30/05/2012,OTHER EMPLOYEE EXPENSES,FUSION,EMPLOYEE EXPENSES,100649855,20.00,United Kingdom Atomic Energy Authority,United Kingdom Atomic Energy Authority
05/04/2012,RAIL TRAVEL,FUSION,EMPLOYEE EXPENSES,100648892,66.60,United Kingdom Atomic Energy Authority,United Kingdom Atomic Energy Authority
05/04/2012,SUBSISTENCE,FUSION,EMPLOYEE EXPENSES,100648865,227.45,United Kingdom Atomic Energy Authority,United Kingdom Atomic Energy Authority
05/04/2012,SUBSISTENCE,FUSION,EMPLOYEE EXPENSES,100648865,6.42,United Kingdom Atomic Energy Authority,United Kingdom Atomic Energy Authority
05/04/2012,ROAD TRAVEL,FUSION,EMPLOYEE EXPENSES,100648865,1.08,United Kingdom Atomic Energy Authority,United Kingdom Atomic Energy Authority
05/04/2012,OTHER EMPLOYEE EXPENSES,FUSION,EMPLOYEE EXPENSES,100648865,15.28,United Kingdom Atomic Energy Authority,United Kingdom Atomic Energy Authority
05/04/2012,SUBSISTENCE,FUSION,EMPLOYEE EXPENSES,100648881,5.00,United Kingdom Atomic Energy Authority,United Kingdom Atomic Energy Authority
05/04/2012,SUBSISTENCE,FUSION,EMPLOYEE EXPENSES,100648881,75.81,United Kingdom Atomic Energy Authority,United Kingdom Atomic Energy Authority
05/04/2012,ROAD TRAVEL,FUSION,EMPLOYEE EXPENSES,100648881,73.46,United Kingdom Atomic Energy Authority,United Kingdom Atomic Energy Authority
05/04/2012,SUBSISTENCE,FUSION,EMPLOYEE EXPENSES,100648882,8.97,United Kingdom Atomic Energy Authority,United Kingdom Atomic Energy Authority
05/04/2012,ROAD TRAVEL,FUSION,EMPLOYEE EXPENSES,100648882,29.72,United Kingdom Atomic Energy Authority,United Kingdom Atomic Energy Authority
05/04/2012,SUBSISTENCE,FUSION,EMPLOYEE EXPENSES,100648883,318.92,United Kingdom Atomic Energy Authority,United Kingdom Atomic Energy Authority
05/04/2012,SUBSISTENCE,FUSION,EMPLOYEE EXPENSES,100648883,4.54,United Kingdom Atomic Energy Authority,United Kingdom Atomic Energy Authority
05/04/2012,ROAD TRAVEL,FUSION,EMPLOYEE EXPENSES,100648883,33.68,United Kingdom Atomic Energy Authority,United Kingdom Atomic Energy Authority
18/04/2012,SUBSISTENCE,FUSION,EMPLOYEE EXPENSES,100649114,105.15,United Kingdom Atomic Energy Authority,United Kingdom Atomic Energy Authority
18/04/2012,SUBSISTENCE,FUSION,EMPLOYEE EXPENSES,100649114,5.40,United Kingdom Atomic Energy Authority,United Kingdom Atomic Energy Authority
18/04/2012,ROAD TRAVEL,FUSION,EMPLOYEE EXPENSES,100649114,16.55,United Kingdom Atomic Energy Authority,United Kingdom Atomic Energy Authority
18/04/2012,OTHER EMPLOYEE EXPENSES,FUSION,EMPLOYEE EXPENSES,100649114,3.00,United Kingdom Atomic Energy Authority,United Kingdom Atomic Energy Authority
30/05/2012,TAXIS,FUSION,EMPLOYEE EXPENSES,100649863,5.25,United Kingdom Atomic Energy Authority,United Kingdom Atomic Energy Authority
30/05/2012,SUBSISTENCE,FUSION,EMPLOYEE EXPENSES,100649863,115.62,United Kingdom Atomic Energy Authority,United Kingdom Atomic Energy Authority
30/05/2012,RAIL TRAVEL,FUSION,EMPLOYEE EXPENSES,100649863,15.75,United Kingdom Atomic Energy Authority,United Kingdom Atomic Energy Authority
30/05/2012,RELOCATION EXPENSES,FUSION,EMPLOYEE EXPENSES,100649863,6.00,United Kingdom Atomic Energy Authority,United Kingdom Atomic Energy Authority
30/05/2012,RAIL TRAVEL,FUSION,EMPLOYEE EXPENSES,100649870,24.90,United Kingdom Atomic Energy Authority,United Kingdom Atomic Energy Authority
30/05/2012,TAXIS,FUSION,EMPLOYEE EXPENSES,100649871,7.10,United Kingdom Atomic Energy Authority,United Kingdom Atomic Energy Authority
30/05/2012,SUBSISTENCE,FUSION,EMPLOYEE EXPENSES,100649871,5.00,United Kingdom Atomic Energy Authority,United Kingdom Atomic Energy Authority
30/05/2012,SUBSISTENCE,FUSION,EMPLOYEE EXPENSES,100649871,78.92,United Kingdom Atomic Energy Authority,United Kingdom Atomic Energy Authority
30/05/2012,RAIL TRAVEL,FUSION,EMPLOYEE EXPENSES,100649871,86.90,United Kingdom Atomic Energy Authority,United Kingdom Atomic Energy Authority
31/05/2012,SUBSISTENCE,FUSION,EMPLOYEE EXPENSES,100649906,512.94,United Kingdom Atomic Energy Authority,United Kingdom Atomic Energy Authority
31/05/2012,SUBSISTENCE,FUSION,EMPLOYEE EXPENSES,100649906,12.25,United Kingdom Atomic Energy Authority,United Kingdom Atomic Energy Authority
31/05/2012,OTHER EMPLOYEE EXPENSES,FUSION,EMPLOYEE EXPENSES,100649906,3.00,United Kingdom Atomic Energy Authority,United Kingdom Atomic Energy Authority
18/04/2012,SUBSISTENCE,FUSION,EMPLOYEE EXPENSES,100649123,12.83,United Kingdom Atomic Energy Authority,United Kingdom Atomic Energy Authority
18/04/2012,SUBSISTENCE,FUSION,EMPLOYEE EXPENSES,100649124,18.67,United Kingdom Atomic Energy Authority,United Kingdom Atomic Energy Authority
18/04/2012,ROAD TRAVEL,FUSION,EMPLOYEE EXPENSES,100649124,40.39,United Kingdom Atomic Energy Authority,United Kingdom Atomic Energy Authority
24/05/2012,MILEAGE ALLOWANCE,FUSION,EMPLOYEE EXPENSES,100649709,28.80,United Kingdom Atomic Energy Authority,United Kingdom Atomic Energy Authority
30/05/2012,MILEAGE ALLOWANCE,FUSION,EMPLOYEE EXPENSES,100649852,34.80,United Kingdom Atomic Energy Authority,United Kingdom Atomic Energy Authority
18/04/2012,SUBSISTENCE,FUSION,EMPLOYEE EXPENSES,100649116,103.15,United Kingdom Atomic Energy Authority,United Kingdom Atomic Energy Authority
18/04/2012,ROAD TRAVEL,FUSION,EMPLOYEE EXPENSES,100649116,5.65,United Kingdom Atomic Energy Authority,United Kingdom Atomic Energy Authority
18/04/2012,MILEAGE ALLOWANCE,FUSION,EMPLOYEE EXPENSES,100649142,3.74,United Kingdom Atomic Energy Authority,United Kingdom Atomic Energy Authority
18/04/2012,ROAD TRAVEL,FUSION,EMPLOYEE EXPENSES,100649142,2.20,United Kingdom Atomic Energy Authority,United Kingdom Atomic Energy Authority
18/04/2012,ROAD TRAVEL,FUSION,EMPLOYEE EXPENSES,100649142,1.50,United Kingdom Atomic Energy Authority,United Kingdom Atomic Energy Authority
26/04/2012,TAXIS,FUSION,EMPLOYEE EXPENSES,100649211,34.96,United Kingdom Atomic Energy Authority,United Kingdom Atomic Energy Authority
26/04/2012,SUBSISTENCE,FUSION,EMPLOYEE EXPENSES,100649211,62.42,United Kingdom Atomic Energy Authority,United Kingdom Atomic Energy Authority
26/04/2012,RAIL TRAVEL,FUSION,EMPLOYEE EXPENSES,100649211,2.08,United Kingdom Atomic Energy Authority,United Kingdom Atomic Energy Authority
04/05/2012,SUBSISTENCE,FUSION,EMPLOYEE EXPENSES,100649474,196.90,United Kingdom Atomic Energy Authority,United Kingdom Atomic Energy Authority
04/05/2012,SUBSISTENCE,FUSION,EMPLOYEE EXPENSES,100649474,133.22,United Kingdom Atomic Energy Authority,United Kingdom Atomic Energy Authority
04/05/2012,SUBSISTENCE,FUSION,EMPLOYEE EXPENSES,100649485,10.00,United Kingdom Atomic Energy Authority,United Kingdom Atomic Energy Authority
04/05/2012,SUBSISTENCE,FUSION,EMPLOYEE EXPENSES,100649485,131.67,United Kingdom Atomic Energy Authority,United Kingdom Atomic Energy Authority
11/05/2012,SUBSISTENCE,FUSION,EMPLOYEE EXPENSES,100649522,10.00,United Kingdom Atomic Energy Authority,United Kingdom Atomic Energy Authority
11/05/2012,SUBSISTENCE,FUSION,EMPLOYEE EXPENSES,100649522,144.96,United Kingdom Atomic Energy Authority,United Kingdom Atomic Energy Authority
17/05/2012,SUBSISTENCE,FUSION,EMPLOYEE EXPENSES,100649576,25.61,United Kingdom Atomic Energy Authority,United Kingdom Atomic Energy Authority
30/05/2012,SUBSISTENCE,FUSION,EMPLOYEE EXPENSES,100649865,71.17,United Kingdom Atomic Energy Authority,United Kingdom Atomic Energy Authority
01/06/2012,SUBSISTENCE,FUSION,EMPLOYEE EXPENSES,100650014,274.27,United Kingdom Atomic Energy Authority,United Kingdom Atomic Energy Authority
01/06/2012,SUBSISTENCE,FUSION,EMPLOYEE EXPENSES,100650014,3.20,United Kingdom Atomic Energy Authority,United Kingdom Atomic Energy Authority
01/06/2012,MILEAGE ALLOWANCE,FUSION,EMPLOYEE EXPENSES,100650014,10.40,United Kingdom Atomic Energy Authority,United Kingdom Atomic Energy Authority
01/06/2012,RAIL TRAVEL,FUSION,EMPLOYEE EXPENSES,100650014,10.40,United Kingdom Atomic Energy Authority,United Kingdom Atomic Energy Authority
01/06/2012,OTHER EMPLOYEE EXPENSES,FUSION,EMPLOYEE EXPENSES,100650014,4.49,United Kingdom Atomic Energy Authority,United Kingdom Atomic Energy Authority
04/05/2012,AIR TRAVEL,FUSION,EMPLOYEE EXPENSES,100649470,585.00,United Kingdom Atomic Energy Authority,United Kingdom Atomic Energy Authority
17/05/2012,RAIL TRAVEL,FUSION,EMPLOYEE EXPENSES,100649599,12.20,United Kingdom Atomic Energy Authority,United Kingdom Atomic Energy Authority
18/04/2012,SUBSISTENCE,FUSION,EMPLOYEE EXPENSES,100649121,8.37,United Kingdom Atomic Energy Authority,United Kingdom Atomic Energy Authority
18/04/2012,ROAD TRAVEL,FUSION,EMPLOYEE EXPENSES,100649121,27.00,United Kingdom Atomic Energy Authority,United Kingdom Atomic Energy Authority
18/04/2012,TAXIS,FUSION,EMPLOYEE EXPENSES,100649129,34.00,United Kingdom Atomic Energy Authority,United Kingdom Atomic Energy Authority
18/04/2012,SUBSISTENCE,FUSION,EMPLOYEE EXPENSES,100649129,8.60,United Kingdom Atomic Energy Authority,United Kingdom Atomic Energy Authority
18/04/2012,ROAD TRAVEL,FUSION,EMPLOYEE EXPENSES,100649129,16.00,United Kingdom Atomic Energy Authority,United Kingdom Atomic Energy Authority
18/04/2012,SUBSISTENCE,FUSION,EMPLOYEE EXPENSES,100649130,5.25,United Kingdom Atomic Energy Authority,United Kingdom Atomic Energy Authority
18/04/2012,MILEAGE ALLOWANCE,FUSION,EMPLOYEE EXPENSES,100649130,64.00,United Kingdom Atomic Energy Authority,United Kingdom Atomic Energy Authority
20/04/2012,TAXIS,FUSION,EMPLOYEE EXPENSES,100649156,0.80,United Kingdom Atomic Energy Authority,United Kingdom Atomic Energy Authority
20/04/2012,SUBSISTENCE,FUSION,EMPLOYEE EXPENSES,100649156,164.74,United Kingdom Atomic Energy Authority,United Kingdom Atomic Energy Authority
20/04/2012,RAIL TRAVEL,FUSION,EMPLOYEE EXPENSES,100649156,5.57,United Kingdom Atomic Energy Authority,United Kingdom Atomic Energy Authority
20/04/2012,ROAD TRAVEL,FUSION,EMPLOYEE EXPENSES,100649156,27.00,United Kingdom Atomic Energy Authority,United Kingdom Atomic Energy Authority
20/04/2012,ROAD TRAVEL,FUSION,EMPLOYEE EXPENSES,100649156,18.97,United Kingdom Atomic Energy Authority,United Kingdom Atomic Energy Authority
26/04/2012,SUBSISTENCE,FUSION,EMPLOYEE EXPENSES,100649206,93.33,United Kingdom Atomic Energy Authority,United Kingdom Atomic Energy Authority
26/04/2012,MILEAGE ALLOWANCE,FUSION,EMPLOYEE EXPENSES,100649206,44.80,United Kingdom Atomic Energy Authority,United Kingdom Atomic Energy Authority
26/04/2012,RAIL TRAVEL,FUSION,EMPLOYEE EXPENSES,100649206,9.25,United Kingdom Atomic Energy Authority,United Kingdom Atomic Energy Authority
26/04/2012,ROAD TRAVEL,FUSION,EMPLOYEE EXPENSES,100649206,23.95,United Kingdom Atomic Energy Authority,United Kingdom Atomic Energy Authority
26/04/2012,TAXIS,FUSION,EMPLOYEE EXPENSES,100649208,10.00,United Kingdom Atomic Energy Authority,United Kingdom Atomic Energy Authority
26/04/2012,RAIL TRAVEL,FUSION,EMPLOYEE EXPENSES,100649208,59.90,United Kingdom Atomic Energy Authority,United Kingdom Atomic Energy Authority
26/04/2012,ROAD TRAVEL,FUSION,EMPLOYEE EXPENSES,100649208,4.20,United Kingdom Atomic Energy Authority,United Kingdom Atomic Energy Authority
04/05/2012,TAXIS,FUSION,EMPLOYEE EXPENSES,100649483,16.70,United Kingdom Atomic Energy Authority,United Kingdom Atomic Energy Authority
04/05/2012,SUBSISTENCE,FUSION,EMPLOYEE EXPENSES,100649483,489.33,United Kingdom Atomic Energy Authority,United Kingdom Atomic Energy Authority
04/05/2012,SUBSISTENCE,FUSION,EMPLOYEE EXPENSES,100649483,8.49,United Kingdom Atomic Energy Authority,United Kingdom Atomic Energy Authority
04/05/2012,ROAD TRAVEL,FUSION,EMPLOYEE EXPENSES,100649483,39.80,United Kingdom Atomic Energy Authority,United Kingdom Atomic Energy Authority
17/05/2012,TAXIS,FUSION,EMPLOYEE EXPENSES,100649579,20.00,United Kingdom Atomic Energy Authority,United Kingdom Atomic Energy Authority
17/05/2012,SUBSISTENCE,FUSION,EMPLOYEE EXPENSES,100649579,14.04,United Kingdom Atomic Energy Authority,United Kingdom Atomic Energy Authority
17/05/2012,TAXIS,FUSION,EMPLOYEE EXPENSES,100649580,16.32,United Kingdom Atomic Energy Authority,United Kingdom Atomic Energy Authority
17/05/2012,SUBSISTENCE,FUSION,EMPLOYEE EXPENSES,100649580,26.71,United Kingdom Atomic Energy Authority,United Kingdom Atomic Energy Authority
17/05/2012,SUBSISTENCE,FUSION,EMPLOYEE EXPENSES,100649580,7.12,United Kingdom Atomic Energy Authority,United Kingdom Atomic Energy Authority
17/05/2012,MILEAGE ALLOWANCE,FUSION,EMPLOYEE EXPENSES,100649580,44.80,United Kingdom Atomic Energy Authority,United Kingdom Atomic Energy Authority
17/05/2012,RAIL TRAVEL,FUSION,EMPLOYEE EXPENSES,100649580,31.66,United Kingdom Atomic Energy Authority,United Kingdom Atomic Energy Authority
17/05/2012,ROAD TRAVEL,FUSION,EMPLOYEE EXPENSES,100649580,3.10,United Kingdom Atomic Energy Authority,United Kingdom Atomic Energy Authority
17/05/2012,TAXIS,FUSION,EMPLOYEE EXPENSES,100649588,10.00,United Kingdom Atomic Energy Authority,United Kingdom Atomic Energy Authority
17/05/2012,SUBSISTENCE,FUSION,EMPLOYEE EXPENSES,100649588,231.46,United Kingdom Atomic Energy Authority,United Kingdom Atomic Energy Authority
17/05/2012,SUBSISTENCE,FUSION,EMPLOYEE EXPENSES,100649588,6.00,United Kingdom Atomic Energy Authority,United Kingdom Atomic Energy Authority
17/05/2012,ROAD TRAVEL,FUSION,EMPLOYEE EXPENSES,100649588,6.21,United Kingdom Atomic Energy Authority,United Kingdom Atomic Energy Authority
17/05/2012,SUBSISTENCE,FUSION,EMPLOYEE EXPENSES,100649589,108.35,United Kingdom Atomic Energy Authority,United Kingdom Atomic Energy Authority
17/05/2012,SUBSISTENCE,FUSION,EMPLOYEE EXPENSES,100649589,161.49,United Kingdom Atomic Energy Authority,United Kingdom Atomic Energy Authority
17/05/2012,ROAD TRAVEL,FUSION,EMPLOYEE EXPENSES,100649589,2.80,United Kingdom Atomic Energy Authority,United Kingdom Atomic Energy Authority
17/05/2012,ROAD TRAVEL,FUSION,EMPLOYEE EXPENSES,100649589,4.97,United Kingdom Atomic Energy Authority,United Kingdom Atomic Energy Authority
31/05/2012,SUBSISTENCE,FUSION,EMPLOYEE EXPENSES,100649913,48.30,United Kingdom Atomic Energy Authority,United Kingdom Atomic Energy Authority
31/05/2012,MILEAGE ALLOWANCE,FUSION,EMPLOYEE EXPENSES,100649913,6.00,United Kingdom Atomic Energy Authority,United Kingdom Atomic Energy Authority
26/04/2012,SUBSISTENCE,FUSION,EMPLOYEE EXPENSES,100649202,40.00,United Kingdom Atomic Energy Authority,United Kingdom Atomic Energy Authority
26/04/2012,ROAD TRAVEL,FUSION,EMPLOYEE EXPENSES,100649202,10.00,United Kingdom Atomic Energy Authority,United Kingdom Atomic Energy Authority
11/05/2012,SUBSISTENCE,FUSION,EMPLOYEE EXPENSES,100649517,553.58,United Kingdom Atomic Energy Authority,United Kingdom Atomic Energy Authority
11/05/2012,SUBSISTENCE,FUSION,EMPLOYEE EXPENSES,100649517,15.28,United Kingdom Atomic Energy Authority,United Kingdom Atomic Energy Authority
11/05/2012,ROAD TRAVEL,FUSION,EMPLOYEE EXPENSES,100649517,10.36,United Kingdom Atomic Energy Authority,United Kingdom Atomic Energy Authority
20/05/2012,SUBSISTENCE,FUSION,EMPLOYEE EXPENSES,100649679,5.08,United Kingdom Atomic Energy Authority,United Kingdom Atomic Energy Authority
25/05/2012,SUBSISTENCE,FUSION,EMPLOYEE EXPENSES,100649720,461.85,United Kingdom Atomic Energy Authority,United Kingdom Atomic Energy Authority
25/05/2012,SUBSISTENCE,FUSION,EMPLOYEE EXPENSES,100649720,8.33,United Kingdom Atomic Energy Authority,United Kingdom Atomic Energy Authority
25/05/2012,MILEAGE ALLOWANCE,FUSION,EMPLOYEE EXPENSES,100649720,48.00,United Kingdom Atomic Energy Authority,United Kingdom Atomic Energy Authority
25/05/2012,RAIL TRAVEL,FUSION,EMPLOYEE EXPENSES,100649720,15.43,United Kingdom Atomic Energy Authority,United Kingdom Atomic Energy Authority
25/05/2012,ROAD TRAVEL,FUSION,EMPLOYEE EXPENSES,100649720,81.11,United Kingdom Atomic Energy Authority,United Kingdom Atomic Energy Authority
25/05/2012,SUBSISTENCE,FUSION,EMPLOYEE EXPENSES,100649721,26.03,United Kingdom Atomic Energy Authority,United Kingdom Atomic Energy Authority
25/05/2012,MILEAGE ALLOWANCE,FUSION,EMPLOYEE EXPENSES,100649721,16.00,United Kingdom Atomic Energy Authority,United Kingdom Atomic Energy Authority
25/05/2012,ROAD TRAVEL,FUSION,EMPLOYEE EXPENSES,100649721,63.10,United Kingdom Atomic Energy Authority,United Kingdom Atomic Energy Authority
30/05/2012,TAXIS,FUSION,EMPLOYEE EXPENSES,100649868,3.80,United Kingdom Atomic Energy Authority,United Kingdom Atomic Energy Authority
30/05/2012,SUBSISTENCE,FUSION,EMPLOYEE EXPENSES,100649868,95.10,United Kingdom Atomic Energy Authority,United Kingdom Atomic Energy Authority
30/05/2012,SUBSISTENCE,FUSION,EMPLOYEE EXPENSES,100649869,10.00,United Kingdom Atomic Energy Authority,United Kingdom Atomic Energy Authority
30/05/2012,OTHER EMPLOYEE EXPENSES,FUSION,EMPLOYEE EXPENSES,100649869,14.99,United Kingdom Atomic Energy Authority,United Kingdom Atomic Energy Authority
30/05/2012,SUBSISTENCE,FUSION,EMPLOYEE EXPENSES,100649875,135.03,United Kingdom Atomic Energy Authority,United Kingdom Atomic Energy Authority
31/05/2012,RAIL TRAVEL,FUSION,EMPLOYEE EXPENSES,100649908,5.70,United Kingdom Atomic Energy Authority,United Kingdom Atomic Energy Authority
01/06/2012,PROFESSIONAL SUBSCRIPTION,FUSION,EMPLOYEE EXPENSES,100650017,111.00,United Kingdom Atomic Energy Authority,United Kingdom Atomic Energy Authority
20/04/2012,SUBSISTENCE,FUSION,EMPLOYEE EXPENSES,100649152,9.49,United Kingdom Atomic Energy Authority,United Kingdom Atomic Energy Authority
20/04/2012,RAIL TRAVEL,FUSION,EMPLOYEE EXPENSES,100649152,167.00,United Kingdom Atomic Energy Authority,United Kingdom Atomic Energy Authority
26/04/2012,TAXIS,FUSION,EMPLOYEE EXPENSES,100649204,14.04,United Kingdom Atomic Energy Authority,United Kingdom Atomic Energy Authority
26/04/2012,SUBSISTENCE,FUSION,EMPLOYEE EXPENSES,100649204,137.34,United Kingdom Atomic Energy Authority,United Kingdom Atomic Energy Authority
26/04/2012,SUBSISTENCE,FUSION,EMPLOYEE EXPENSES,100649204,3.39,United Kingdom Atomic Energy Authority,United Kingdom Atomic Energy Authority
26/04/2012,RAIL TRAVEL,FUSION,EMPLOYEE EXPENSES,100649204,2.50,United Kingdom Atomic Energy Authority,United Kingdom Atomic Energy Authority
04/05/2012,SUBSISTENCE,FUSION,EMPLOYEE EXPENSES,100649480,78.00,United Kingdom Atomic Energy Authority,United Kingdom Atomic Energy Authority
04/05/2012,SUBSISTENCE,FUSION,EMPLOYEE EXPENSES,100649480,54.32,United Kingdom Atomic Energy Authority,United Kingdom Atomic Energy Authority
04/05/2012,MILEAGE ALLOWANCE,FUSION,EMPLOYEE EXPENSES,100649480,96.00,United Kingdom Atomic Energy Authority,United Kingdom Atomic Energy Authority
04/05/2012,ROAD TRAVEL,FUSION,EMPLOYEE EXPENSES,100649480,9.50,United Kingdom Atomic Energy Authority,United Kingdom Atomic Energy Authority
04/05/2012,ROAD TRAVEL,FUSION,EMPLOYEE EXPENSES,100649480,21.60,United Kingdom Atomic Energy Authority,United Kingdom Atomic Energy Authority
24/05/2012,SUBSISTENCE,FUSION,EMPLOYEE EXPENSES,100649708,3.12,United Kingdom Atomic Energy Authority,United Kingdom Atomic Energy Authority
24/05/2012,MILEAGE ALLOWANCE,FUSION,EMPLOYEE EXPENSES,100649708,16.00,United Kingdom Atomic Energy Authority,United Kingdom Atomic Energy Authority
24/05/2012,ROAD TRAVEL,FUSION,EMPLOYEE EXPENSES,100649708,6.50,United Kingdom Atomic Energy Authority,United Kingdom Atomic Energy Authority
30/05/2012,PROFESSIONAL SUBSCRIPTION,FUSION,EMPLOYEE EXPENSES,100649851,88.00,United Kingdom Atomic Energy Authority,United Kingdom Atomic Energy Authority
30/05/2012,ROAD TRAVEL,FUSION,EMPLOYEE EXPENSES,100649877,33.33,United Kingdom Atomic Energy Authority,United Kingdom Atomic Energy Authority
05/04/2012,MILEAGE ALLOWANCE,FUSION,EMPLOYEE EXPENSES,100648859,6.40,United Kingdom Atomic Energy Authority,United Kingdom Atomic Energy Authority
05/04/2012,ROAD TRAVEL,FUSION,EMPLOYEE EXPENSES,100648859,2.20,United Kingdom Atomic Energy Authority,United Kingdom Atomic Energy Authority
05/04/2012,ROAD TRAVEL,FUSION,EMPLOYEE EXPENSES,100648859,1.60,United Kingdom Atomic Energy Authority,United Kingdom Atomic Energy Authority
05/04/2012,RAIL TRAVEL,FUSION,EMPLOYEE EXPENSES,100648879,21.00,United Kingdom Atomic Energy Authority,United Kingdom Atomic Energy Authority
05/04/2012,ROAD TRAVEL,FUSION,EMPLOYEE EXPENSES,100648879,1.40,United Kingdom Atomic Energy Authority,United Kingdom Atomic Energy Authority
18/04/2012,SUBSISTENCE,FUSION,EMPLOYEE EXPENSES,100649127,20.00,United Kingdom Atomic Energy Authority,United Kingdom Atomic Energy Authority
18/04/2012,SUBSISTENCE,FUSION,EMPLOYEE EXPENSES,100649127,372.69,United Kingdom Atomic Energy Authority,United Kingdom Atomic Energy Authority
18/04/2012,RAIL TRAVEL,FUSION,EMPLOYEE EXPENSES,100649127,66.50,United Kingdom Atomic Energy Authority,United Kingdom Atomic Energy Authority
18/04/2012,ROAD TRAVEL,FUSION,EMPLOYEE EXPENSES,100649127,1.10,United Kingdom Atomic Energy Authority,United Kingdom Atomic Energy Authority
18/04/2012,OTHER EMPLOYEE EXPENSES,FUSION,EMPLOYEE EXPENSES,100649127,184.50,United Kingdom Atomic Energy Authority,United Kingdom Atomic Energy Authority
18/04/2012,RAIL TRAVEL,FUSION,EMPLOYEE EXPENSES,100649131,59.90,United Kingdom Atomic Energy Authority,United Kingdom Atomic Energy Authority
18/04/2012,SUBSISTENCE,FUSION,EMPLOYEE EXPENSES,100649141,2.22,United Kingdom Atomic Energy Authority,United Kingdom Atomic Energy Authority
18/04/2012,MILEAGE ALLOWANCE,FUSION,EMPLOYEE EXPENSES,100649141,7.20,United Kingdom Atomic Energy Authority,United Kingdom Atomic Energy Authority
18/04/2012,ROAD TRAVEL,FUSION,EMPLOYEE EXPENSES,100649141,6.20,United Kingdom Atomic Energy Authority,United Kingdom Atomic Energy Authority
20/04/2012,SUBSISTENCE,FUSION,EMPLOYEE EXPENSES,100649150,5.00,United Kingdom Atomic Energy Authority,United Kingdom Atomic Energy Authority
20/04/2012,SUBSISTENCE,FUSION,EMPLOYEE EXPENSES,100649150,63.54,United Kingdom Atomic Energy Authority,United Kingdom Atomic Energy Authority
20/04/2012,MILEAGE ALLOWANCE,FUSION,EMPLOYEE EXPENSES,100649150,48.00,United Kingdom Atomic Energy Authority,United Kingdom Atomic Energy Authority
26/04/2012,PROFESSIONAL SUBSCRIPTION,FUSION,EMPLOYEE EXPENSES,100649203,111.00,United Kingdom Atomic Energy Authority,United Kingdom Atomic Energy Authority
26/04/2012,RAIL TRAVEL,FUSION,EMPLOYEE EXPENSES,100649210,66.50,United Kingdom Atomic Energy Authority,United Kingdom Atomic Energy Authority
04/05/2012,PROFESSIONAL SUBSCRIPTION,FUSION,EMPLOYEE EXPENSES,100649471,17.29,United Kingdom Atomic Energy Authority,United Kingdom Atomic Energy Authority
04/05/2012,SUBSISTENCE,FUSION,EMPLOYEE EXPENSES,100649472,60.00,United Kingdom Atomic Energy Authority,United Kingdom Atomic Energy Authority
04/05/2012,SUBSISTENCE,FUSION,EMPLOYEE EXPENSES,100649472,6.83,United Kingdom Atomic Energy Authority,United Kingdom Atomic Energy Authority
04/05/2012,MILEAGE ALLOWANCE,FUSION,EMPLOYEE EXPENSES,100649472,2.40,United Kingdom Atomic Energy Authority,United Kingdom Atomic Energy Authority
04/05/2012,ROAD TRAVEL,FUSION,EMPLOYEE EXPENSES,100649472,27.00,United Kingdom Atomic Energy Authority,United Kingdom Atomic Energy Authority
04/05/2012,OTHER EMPLOYEE EXPENSES,FUSION,EMPLOYEE EXPENSES,100649472,3.00,United Kingdom Atomic Energy Authority,United Kingdom Atomic Energy Authority
04/05/2012,SUBSISTENCE,FUSION,EMPLOYEE EXPENSES,100649473,653.97,United Kingdom Atomic Energy Authority,United Kingdom Atomic Energy Authority
04/05/2012,PROFESSIONAL SUBSCRIPTION,FUSION,EMPLOYEE EXPENSES,100649489,91.00,United Kingdom Atomic Energy Authority,United Kingdom Atomic Energy Authority
17/05/2012,SUBSISTENCE,FUSION,EMPLOYEE EXPENSES,100649575,8.33,United Kingdom Atomic Energy Authority,United Kingdom Atomic Energy Authority
17/05/2012,MILEAGE ALLOWANCE,FUSION,EMPLOYEE EXPENSES,100649575,48.00,United Kingdom Atomic Energy Authority,United Kingdom Atomic Energy Authority
17/05/2012,ROAD TRAVEL,FUSION,EMPLOYEE EXPENSES,100649575,3.00,United Kingdom Atomic Energy Authority,United Kingdom Atomic Energy Authority
17/05/2012,PROFESSIONAL SUBSCRIPTION,FUSION,EMPLOYEE EXPENSES,100649578,129.00,United Kingdom Atomic Energy Authority,United Kingdom Atomic Energy Authority
17/05/2012,PROFESSIONAL SUBSCRIPTION,FUSION,EMPLOYEE EXPENSES,100649584,129.00,United Kingdom Atomic Energy Authority,United Kingdom Atomic Energy Authority
17/05/2012,PROFESSIONAL SUBSCRIPTION,FUSION,EMPLOYEE EXPENSES,100649587,129.00,United Kingdom Atomic Energy Authority,United Kingdom Atomic Energy Authority
17/05/2012,PROFESSIONAL SUBSCRIPTION,FUSION,EMPLOYEE EXPENSES,100649592,129.00,United Kingdom Atomic Energy Authority,United Kingdom Atomic Energy Authority
17/05/2012,PROFESSIONAL SUBSCRIPTION,FUSION,EMPLOYEE EXPENSES,100649597,129.00,United Kingdom Atomic Energy Authority,United Kingdom Atomic Energy Authority
17/05/2012,PROFESSIONAL SUBSCRIPTION,FUSION,EMPLOYEE EXPENSES,100649598,129.00,United Kingdom Atomic Energy Authority,United Kingdom Atomic Energy Authority
17/05/2012,PROFESSIONAL SUBSCRIPTION,FUSION,EMPLOYEE EXPENSES,100649600,129.00,United Kingdom Atomic Energy Authority,United Kingdom Atomic Energy Authority
17/05/2012,PROFESSIONAL SUBSCRIPTION,FUSION,EMPLOYEE EXPENSES,100649670,129.00,United Kingdom Atomic Energy Authority,United Kingdom Atomic Energy Authority
20/05/2012,PROFESSIONAL SUBSCRIPTION,FUSION,EMPLOYEE EXPENSES,100649687,129.00,United Kingdom Atomic Energy Authority,United Kingdom Atomic Energy Authority
20/05/2012,PROFESSIONAL SUBSCRIPTION,FUSION,EMPLOYEE EXPENSES,100649688,129.00,United Kingdom Atomic Energy Authority,United Kingdom Atomic Energy Authority
20/05/2012,PROFESSIONAL SUBSCRIPTION,FUSION,EMPLOYEE EXPENSES,100649693,129.00,United Kingdom Atomic Energy Authority,United Kingdom Atomic Energy Authority
24/05/2012,PROFESSIONAL SUBSCRIPTION,FUSION,EMPLOYEE EXPENSES,100649711,129.00,United Kingdom Atomic Energy Authority,United Kingdom Atomic Energy Authority
24/05/2012,PROFESSIONAL SUBSCRIPTION,FUSION,EMPLOYEE EXPENSES,100649712,129.00,United Kingdom Atomic Energy Authority,United Kingdom Atomic Energy Authority
24/05/2012,PROFESSIONAL SUBSCRIPTION,FUSION,EMPLOYEE EXPENSES,100649713,129.00,United Kingdom Atomic Energy Authority,United Kingdom Atomic Energy Authority
30/05/2012,PROFESSIONAL SUBSCRIPTION,FUSION,EMPLOYEE EXPENSES,100649853,129.00,United Kingdom Atomic Energy Authority,United Kingdom Atomic Energy Authority
30/05/2012,PROFESSIONAL SUBSCRIPTION,FUSION,EMPLOYEE EXPENSES,100649857,129.00,United Kingdom Atomic Energy Authority,United Kingdom Atomic Energy Authority
30/05/2012,PROFESSIONAL SUBSCRIPTION,FUSION,EMPLOYEE EXPENSES,100649874,129.00,United Kingdom Atomic Energy Authority,United Kingdom Atomic Energy Authority
30/05/2012,PROFESSIONAL SUBSCRIPTION,FUSION,EMPLOYEE EXPENSES,100649882,129.00,United Kingdom Atomic Energy Authority,United Kingdom Atomic Energy Authority
31/05/2012,SUBSISTENCE,FUSION,EMPLOYEE EXPENSES,100649911,5.00,United Kingdom Atomic Energy Authority,United Kingdom Atomic Energy Authority
31/05/2012,SUBSISTENCE,FUSION,EMPLOYEE EXPENSES,100649911,86.46,United Kingdom Atomic Energy Authority,United Kingdom Atomic Energy Authority
31/05/2012,MILEAGE ALLOWANCE,FUSION,EMPLOYEE EXPENSES,100649911,48.00,United Kingdom Atomic Energy Authority,United Kingdom Atomic Energy Authority
05/04/2012,TAXIS,FUSION,EMPLOYEE EXPENSES,100648869,10.56,United Kingdom Atomic Energy Authority,United Kingdom Atomic Energy Authority
05/04/2012,SUBSISTENCE,FUSION,EMPLOYEE EXPENSES,100648869,176.07,United Kingdom Atomic Energy Authority,United Kingdom Atomic Energy Authority
05/04/2012,SUBSISTENCE,FUSION,EMPLOYEE EXPENSES,100648869,180.92,United Kingdom Atomic Energy Authority,United Kingdom Atomic Energy Authority
05/04/2012,MILEAGE ALLOWANCE,FUSION,EMPLOYEE EXPENSES,100648869,46.00,United Kingdom Atomic Energy Authority,United Kingdom Atomic Energy Authority
05/04/2012,ROAD TRAVEL,FUSION,EMPLOYEE EXPENSES,100648869,84.48,United Kingdom Atomic Energy Authority,United Kingdom Atomic Energy Authority
05/04/2012,ROAD TRAVEL,FUSION,EMPLOYEE EXPENSES,100648869,16.67,United Kingdom Atomic Energy Authority,United Kingdom Atomic Energy Authority
20/04/2012,MILEAGE ALLOWANCE,FUSION,EMPLOYEE EXPENSES,100649154,40.55,United Kingdom Atomic Energy Authority,United Kingdom Atomic Energy Authority
20/04/2012,SUBSISTENCE,FUSION,EMPLOYEE EXPENSES,100649155,5.00,United Kingdom Atomic Energy Authority,United Kingdom Atomic Energy Authority
20/04/2012,SUBSISTENCE,FUSION,EMPLOYEE EXPENSES,100649155,104.91,United Kingdom Atomic Energy Authority,United Kingdom Atomic Energy Authority
20/04/2012,MILEAGE ALLOWANCE,FUSION,EMPLOYEE EXPENSES,100649155,91.00,United Kingdom Atomic Energy Authority,United Kingdom Atomic Energy Authority
20/04/2012,ROAD TRAVEL,FUSION,EMPLOYEE EXPENSES,100649155,6.50,United Kingdom Atomic Energy Authority,United Kingdom Atomic Energy Authority
26/04/2012,SUBSISTENCE,FUSION,EMPLOYEE EXPENSES,100649220,5.00,United Kingdom Atomic Energy Authority,United Kingdom Atomic Energy Authority
26/04/2012,SUBSISTENCE,FUSION,EMPLOYEE EXPENSES,100649220,85.87,United Kingdom Atomic Energy Authority,United Kingdom Atomic Energy Authority
26/04/2012,MILEAGE ALLOWANCE,FUSION,EMPLOYEE EXPENSES,100649220,75.60,United Kingdom Atomic Energy Authority,United Kingdom Atomic Energy Authority
26/04/2012,ROAD TRAVEL,FUSION,EMPLOYEE EXPENSES,100649220,5.00,United Kingdom Atomic Energy Authority,United Kingdom Atomic Energy Authority
26/04/2012,OTHER EMPLOYEE EXPENSES,FUSION,EMPLOYEE EXPENSES,100649220,2.00,United Kingdom Atomic Energy Authority,United Kingdom Atomic Energy Authority
26/04/2012,MILEAGE ALLOWANCE,FUSION,EMPLOYEE EXPENSES,100649221,16.00,United Kingdom Atomic Energy Authority,United Kingdom Atomic Energy Authority
26/04/2012,BUSINESS ENTERTAINMENT,FUSION,EMPLOYEE EXPENSES,100649221,122.74,United Kingdom Atomic Energy Authority,United Kingdom Atomic Energy Authority
04/05/2012,SUBSISTENCE,FUSION,EMPLOYEE EXPENSES,100649475,168.45,United Kingdom Atomic Energy Authority,United Kingdom Atomic Energy Authority
04/05/2012,MILEAGE ALLOWANCE,FUSION,EMPLOYEE EXPENSES,100649475,49.20,United Kingdom Atomic Energy Authority,United Kingdom Atomic Energy Authority
04/05/2012,ROAD TRAVEL,FUSION,EMPLOYEE EXPENSES,100649475,49.02,United Kingdom Atomic Energy Authority,United Kingdom Atomic Energy Authority
11/05/2012,SUBSISTENCE,FUSION,EMPLOYEE EXPENSES,100649523,74.25,United Kingdom Atomic Energy Authority,United Kingdom Atomic Energy Authority
11/05/2012,SUBSISTENCE,FUSION,EMPLOYEE EXPENSES,100649523,142.92,United Kingdom Atomic Energy Authority,United Kingdom Atomic Energy Authority
11/05/2012,MILEAGE ALLOWANCE,FUSION,EMPLOYEE EXPENSES,100649523,78.40,United Kingdom Atomic Energy Authority,United Kingdom Atomic Energy Authority
11/05/2012,ROAD TRAVEL,FUSION,EMPLOYEE EXPENSES,100649523,39.00,United Kingdom Atomic Energy Authority,United Kingdom Atomic Energy Authority
11/05/2012,ROAD TRAVEL,FUSION,EMPLOYEE EXPENSES,100649523,39.28,United Kingdom Atomic Energy Authority,United Kingdom Atomic Energy Authority
20/05/2012,SUBSISTENCE,FUSION,EMPLOYEE EXPENSES,100649681,31.00,United Kingdom Atomic Energy Authority,United Kingdom Atomic Energy Authority
20/05/2012,SUBSISTENCE,FUSION,EMPLOYEE EXPENSES,100649681,81.04,United Kingdom Atomic Energy Authority,United Kingdom Atomic Energy Authority
20/05/2012,MILEAGE ALLOWANCE,FUSION,EMPLOYEE EXPENSES,100649681,179.20,United Kingdom Atomic Energy Authority,United Kingdom Atomic Energy Authority
20/05/2012,ROAD TRAVEL,FUSION,EMPLOYEE EXPENSES,100649681,5.50,United Kingdom Atomic Energy Authority,United Kingdom Atomic Energy Authority
30/05/2012,SUBSISTENCE,FUSION,EMPLOYEE EXPENSES,100649859,5.00,United Kingdom Atomic Energy Authority,United Kingdom Atomic Energy Authority
30/05/2012,SUBSISTENCE,FUSION,EMPLOYEE EXPENSES,100649859,105.87,United Kingdom Atomic Energy Authority,United Kingdom Atomic Energy Authority
30/05/2012,MILEAGE ALLOWANCE,FUSION,EMPLOYEE EXPENSES,100649859,92.80,United Kingdom Atomic Energy Authority,United Kingdom Atomic Energy Authority
30/05/2012,ROAD TRAVEL,FUSION,EMPLOYEE EXPENSES,100649859,22.20,United Kingdom Atomic Energy Authority,United Kingdom Atomic Energy Authority
30/05/2012,SUBSISTENCE,FUSION,EMPLOYEE EXPENSES,100649860,8.25,United Kingdom Atomic Energy Authority,United Kingdom Atomic Energy Authority
30/05/2012,MILEAGE ALLOWANCE,FUSION,EMPLOYEE EXPENSES,100649860,70.00,United Kingdom Atomic Energy Authority,United Kingdom Atomic Energy Authority
25/05/2012,TAXIS,FUSION,EMPLOYEE EXPENSES,100649719,148.06,United Kingdom Atomic Energy Authority,United Kingdom Atomic Energy Authority
25/05/2012,SUBSISTENCE,FUSION,EMPLOYEE EXPENSES,100649719,299.36,United Kingdom Atomic Energy Authority,United Kingdom Atomic Energy Authority
25/05/2012,SUBSISTENCE,FUSION,EMPLOYEE EXPENSES,100649719,4.67,United Kingdom Atomic Energy Authority,United Kingdom Atomic Energy Authority
25/05/2012,ROAD TRAVEL,FUSION,EMPLOYEE EXPENSES,100649719,2.40,United Kingdom Atomic Energy Authority,United Kingdom Atomic Energy Authority
25/05/2012,ROAD TRAVEL,FUSION,EMPLOYEE EXPENSES,100649719,17.86,United Kingdom Atomic Energy Authority,United Kingdom Atomic Energy Authority
18/04/2012,SUBSISTENCE,FUSION,EMPLOYEE EXPENSES,100649135,50.00,United Kingdom Atomic Energy Authority,United Kingdom Atomic Energy Authority
18/04/2012,ROAD TRAVEL,FUSION,EMPLOYEE EXPENSES,100649135,42.20,United Kingdom Atomic Energy Authority,United Kingdom Atomic Energy Authority
24/05/2012,SUBSISTENCE,FUSION,EMPLOYEE EXPENSES,100649710,573.75,United Kingdom Atomic Energy Authority,United Kingdom Atomic Energy Authority
24/05/2012,RAIL TRAVEL,FUSION,EMPLOYEE EXPENSES,100649710,16.88,United Kingdom Atomic Energy Authority,United Kingdom Atomic Energy Authority
24/05/2012,ROAD TRAVEL,FUSION,EMPLOYEE EXPENSES,100649710,23.00,United Kingdom Atomic Energy Authority,United Kingdom Atomic Energy Authority
24/05/2012,OTHER EMPLOYEE EXPENSES,FUSION,EMPLOYEE EXPENSES,100649710,3.00,United Kingdom Atomic Energy Authority,United Kingdom Atomic Energy Authority
05/04/2012,ROAD TRAVEL,FUSION,EMPLOYEE EXPENSES,100648864,64.48,United Kingdom Atomic Energy Authority,United Kingdom Atomic Energy Authority
05/04/2012,SUBSISTENCE,FUSION,EMPLOYEE EXPENSES,100648880,213.51,United Kingdom Atomic Energy Authority,United Kingdom Atomic Energy Authority
05/04/2012,ROAD TRAVEL,FUSION,EMPLOYEE EXPENSES,100648880,3.96,United Kingdom Atomic Energy Authority,United Kingdom Atomic Energy Authority
05/04/2012,SUBSISTENCE,FUSION,EMPLOYEE EXPENSES,100648891,263.34,United Kingdom Atomic Energy Authority,United Kingdom Atomic Energy Authority
18/04/2012,SUBSISTENCE,FUSION,EMPLOYEE EXPENSES,100649122,3.62,United Kingdom Atomic Energy Authority,United Kingdom Atomic Energy Authority
18/04/2012,ROAD TRAVEL,FUSION,EMPLOYEE EXPENSES,100649122,48.09,United Kingdom Atomic Energy Authority,United Kingdom Atomic Energy Authority
18/04/2012,SUBSISTENCE,FUSION,EMPLOYEE EXPENSES,100649140,8.33,United Kingdom Atomic Energy Authority,United Kingdom Atomic Energy Authority
18/04/2012,ROAD TRAVEL,FUSION,EMPLOYEE EXPENSES,100649140,4.58,United Kingdom Atomic Energy Authority,United Kingdom Atomic Energy Authority
20/04/2012,SUBSISTENCE,FUSION,EMPLOYEE EXPENSES,100649165,4.58,United Kingdom Atomic Energy Authority,United Kingdom Atomic Energy Authority
20/04/2012,ROAD TRAVEL,FUSION,EMPLOYEE EXPENSES,100649165,49.57,United Kingdom Atomic Energy Authority,United Kingdom Atomic Energy Authority
26/04/2012,MILEAGE ALLOWANCE,FUSION,EMPLOYEE EXPENSES,100649217,8.80,United Kingdom Atomic Energy Authority,United Kingdom Atomic Energy Authority
04/05/2012,SUBSISTENCE,FUSION,EMPLOYEE EXPENSES,100649469,74.26,United Kingdom Atomic Energy Authority,United Kingdom Atomic Energy Authority
04/05/2012,MILEAGE ALLOWANCE,FUSION,EMPLOYEE EXPENSES,100649469,78.40,United Kingdom Atomic Energy Authority,United Kingdom Atomic Energy Authority
04/05/2012,AIR TRAVEL,FUSION,EMPLOYEE EXPENSES,100649469,103.98,United Kingdom Atomic Energy Authority,United Kingdom Atomic Energy Authority
04/05/2012,ROAD TRAVEL,FUSION,EMPLOYEE EXPENSES,100649469,3.00,United Kingdom Atomic Energy Authority,United Kingdom Atomic Energy Authority
04/05/2012,ROAD TRAVEL,FUSION,EMPLOYEE EXPENSES,100649469,12.92,United Kingdom Atomic Energy Authority,United Kingdom Atomic Energy Authority
04/05/2012,TAXIS,FUSION,EMPLOYEE EXPENSES,100649491,41.92,United Kingdom Atomic Energy Authority,United Kingdom Atomic Energy Authority
04/05/2012,SUBSISTENCE,FUSION,EMPLOYEE EXPENSES,100649491,140.66,United Kingdom Atomic Energy Authority,United Kingdom Atomic Energy Authority
04/05/2012,SUBSISTENCE,FUSION,EMPLOYEE EXPENSES,100649491,3.46,United Kingdom Atomic Energy Authority,United Kingdom Atomic Energy Authority
04/05/2012,ROAD TRAVEL,FUSION,EMPLOYEE EXPENSES,100649491,4.79,United Kingdom Atomic Energy Authority,United Kingdom Atomic Energy Authority
04/05/2012,SUBSISTENCE,FUSION,EMPLOYEE EXPENSES,100649492,62.29,United Kingdom Atomic Energy Authority,United Kingdom Atomic Energy Authority
04/05/2012,SUBSISTENCE,FUSION,EMPLOYEE EXPENSES,100649492,151.67,United Kingdom Atomic Energy Authority,United Kingdom Atomic Energy Authority
04/05/2012,ROAD TRAVEL,FUSION,EMPLOYEE EXPENSES,100649492,25.50,United Kingdom Atomic Energy Authority,United Kingdom Atomic Energy Authority
04/05/2012,ROAD TRAVEL,FUSION,EMPLOYEE EXPENSES,100649492,30.87,United Kingdom Atomic Energy Authority,United Kingdom Atomic Energy Authority
11/05/2012,SUBSISTENCE,FUSION,EMPLOYEE EXPENSES,100649548,387.31,United Kingdom Atomic Energy Authority,United Kingdom Atomic Energy Authority
11/05/2012,SUBSISTENCE,FUSION,EMPLOYEE EXPENSES,100649548,8.95,United Kingdom Atomic Energy Authority,United Kingdom Atomic Energy Authority
11/05/2012,RAIL TRAVEL,FUSION,EMPLOYEE EXPENSES,100649548,11.27,United Kingdom Atomic Energy Authority,United Kingdom Atomic Energy Authority
11/05/2012,ROAD TRAVEL,FUSION,EMPLOYEE EXPENSES,100649548,2.80,United Kingdom Atomic Energy Authority,United Kingdom Atomic Energy Authority
11/05/2012,SUBSISTENCE,FUSION,EMPLOYEE EXPENSES,100649550,284.60,United Kingdom Atomic Energy Authority,United Kingdom Atomic Energy Authority
11/05/2012,RELOCATION EXPENSES,FUSION,EMPLOYEE EXPENSES,100649550,10.36,United Kingdom Atomic Energy Authority,United Kingdom Atomic Energy Authority
17/05/2012,SUBSISTENCE,FUSION,EMPLOYEE EXPENSES,100649596,115.74,United Kingdom Atomic Energy Authority,United Kingdom Atomic Energy Authority
17/05/2012,ROAD TRAVEL,FUSION,EMPLOYEE EXPENSES,100649596,4.60,United Kingdom Atomic Energy Authority,United Kingdom Atomic Energy Authority
30/05/2012,SUBSISTENCE,FUSION,EMPLOYEE EXPENSES,100649873,93.42,United Kingdom Atomic Energy Authority,United Kingdom Atomic Energy Authority
30/05/2012,SUBSISTENCE,FUSION,EMPLOYEE EXPENSES,100649873,24.04,United Kingdom Atomic Energy Authority,United Kingdom Atomic Energy Authority
18/04/2012,SUBSISTENCE,FUSION,EMPLOYEE EXPENSES,100649125,432.54,United Kingdom Atomic Energy Authority,United Kingdom Atomic Energy Authority
27/04/2012,PROFESSIONAL SUBSCRIPTION,FUSION,EMPLOYEE EXPENSES,100649245,91.00,United Kingdom Atomic Energy Authority,United Kingdom Atomic Energy Authority
04/05/2012,TAXIS,FUSION,EMPLOYEE EXPENSES,100649476,39.52,United Kingdom Atomic Energy Authority,United Kingdom Atomic Energy Authority
04/05/2012,SUBSISTENCE,FUSION,EMPLOYEE EXPENSES,100649476,197.89,United Kingdom Atomic Energy Authority,United Kingdom Atomic Energy Authority
04/05/2012,SUBSISTENCE,FUSION,EMPLOYEE EXPENSES,100649476,12.50,United Kingdom Atomic Energy Authority,United Kingdom Atomic Energy Authority
04/05/2012,ROAD TRAVEL,FUSION,EMPLOYEE EXPENSES,100649476,23.00,United Kingdom Atomic Energy Authority,United Kingdom Atomic Energy Authority
04/05/2012,ROAD TRAVEL,FUSION,EMPLOYEE EXPENSES,100649476,13.30,United Kingdom Atomic Energy Authority,United Kingdom Atomic Energy Authority
04/05/2012,SUBSISTENCE,FUSION,EMPLOYEE EXPENSES,100649484,13.33,United Kingdom Atomic Energy Authority,United Kingdom Atomic Energy Authority
04/05/2012,MILEAGE ALLOWANCE,FUSION,EMPLOYEE EXPENSES,100649484,52.00,United Kingdom Atomic Energy Authority,United Kingdom Atomic Energy Authority
04/05/2012,OTHER EMPLOYEE EXPENSES,FUSION,EMPLOYEE EXPENSES,100649488,89.55,United Kingdom Atomic Energy Authority,United Kingdom Atomic Energy Authority
11/05/2012,ROAD TRAVEL,FUSION,EMPLOYEE EXPENSES,100649526,16.80,United Kingdom Atomic Energy Authority,United Kingdom Atomic Energy Authority
11/05/2012,SUBSISTENCE,FUSION,EMPLOYEE EXPENSES,100649546,437.04,United Kingdom Atomic Energy Authority,United Kingdom Atomic Energy Authority
17/05/2012,SUBSISTENCE,FUSION,EMPLOYEE EXPENSES,100649577,3.96,United Kingdom Atomic Energy Authority,United Kingdom Atomic Energy Authority
17/05/2012,ROAD TRAVEL,FUSION,EMPLOYEE EXPENSES,100649577,27.00,United Kingdom Atomic Energy Authority,United Kingdom Atomic Energy Authority
01/06/2012,SUBSISTENCE,FUSION,EMPLOYEE EXPENSES,100650015,410.13,United Kingdom Atomic Energy Authority,United Kingdom Atomic Energy Authority
01/06/2012,SUBSISTENCE,FUSION,EMPLOYEE EXPENSES,100650015,8.14,United Kingdom Atomic Energy Authority,United Kingdom Atomic Energy Authority
01/06/2012,RAIL TRAVEL,FUSION,EMPLOYEE EXPENSES,100650015,34.26,United Kingdom Atomic Energy Authority,United Kingdom Atomic Energy Authority
01/06/2012,ROAD TRAVEL,FUSION,EMPLOYEE EXPENSES,100650015,23.00,United Kingdom Atomic Energy Authority,United Kingdom Atomic Energy Authority
01/06/2012,OTHER EMPLOYEE EXPENSES,FUSION,EMPLOYEE EXPENSES,100650015,3.00,United Kingdom Atomic Energy Authority,United Kingdom Atomic Energy Authority
01/06/2012,SUBSISTENCE,FUSION,EMPLOYEE EXPENSES,100650020,393.51,United Kingdom Atomic Energy Authority,United Kingdom Atomic Energy Authority
01/06/2012,RAIL TRAVEL,FUSION,EMPLOYEE EXPENSES,100650020,13.50,United Kingdom Atomic Energy Authority,United Kingdom Atomic Energy Authority
01/06/2012,ROAD TRAVEL,FUSION,EMPLOYEE EXPENSES,100650020,5.50,United Kingdom Atomic Energy Authority,United Kingdom Atomic Energy Authority
26/04/2012,SUBSISTENCE,FUSION,EMPLOYEE EXPENSES,100649199,792.98,United Kingdom Atomic Energy Authority,United Kingdom Atomic Energy Authority
26/04/2012,RAIL TRAVEL,FUSION,EMPLOYEE EXPENSES,100649199,1.63,United Kingdom Atomic Energy Authority,United Kingdom Atomic Energy Authority
26/04/2012,ROAD TRAVEL,FUSION,EMPLOYEE EXPENSES,100649199,17.95,United Kingdom Atomic Energy Authority,United Kingdom Atomic Energy Authority
26/04/2012,OTHER EMPLOYEE EXPENSES,FUSION,EMPLOYEE EXPENSES,100649199,3.00,United Kingdom Atomic Energy Authority,United Kingdom Atomic Energy Authority
27/04/2012,PROFESSIONAL SUBSCRIPTION,FUSION,EMPLOYEE EXPENSES,100649247,96.00,United Kingdom Atomic Energy Authority,United Kingdom Atomic Energy Authority
04/05/2012,SUBSISTENCE,FUSION,EMPLOYEE EXPENSES,100649477,469.78,United Kingdom Atomic Energy Authority,United Kingdom Atomic Energy Authority
04/05/2012,OTHER EMPLOYEE EXPENSES,FUSION,EMPLOYEE EXPENSES,100649477,2.00,United Kingdom Atomic Energy Authority,United Kingdom Atomic Energy Authority
04/05/2012,TAXIS,FUSION,EMPLOYEE EXPENSES,100649481,1.06,United Kingdom Atomic Energy Authority,United Kingdom Atomic Energy Authority
04/05/2012,SUBSISTENCE,FUSION,EMPLOYEE EXPENSES,100649481,467.30,United Kingdom Atomic Energy Authority,United Kingdom Atomic Energy Authority
04/05/2012,RAIL TRAVEL,FUSION,EMPLOYEE EXPENSES,100649481,5.30,United Kingdom Atomic Energy Authority,United Kingdom Atomic Energy Authority
04/05/2012,OTHER EMPLOYEE EXPENSES,FUSION,EMPLOYEE EXPENSES,100649481,11.46,United Kingdom Atomic Energy Authority,United Kingdom Atomic Energy Authority
04/05/2012,SUBSISTENCE,FUSION,EMPLOYEE EXPENSES,100649482,513.47,United Kingdom Atomic Energy Authority,United Kingdom Atomic Energy Authority
04/05/2012,SUBSISTENCE,FUSION,EMPLOYEE EXPENSES,100649482,21.45,United Kingdom Atomic Energy Authority,United Kingdom Atomic Energy Authority
04/05/2012,ROAD TRAVEL,FUSION,EMPLOYEE EXPENSES,100649482,27.00,United Kingdom Atomic Energy Authority,United Kingdom Atomic Energy Authority
04/05/2012,ROAD TRAVEL,FUSION,EMPLOYEE EXPENSES,100649482,17.86,United Kingdom Atomic Energy Authority,United Kingdom Atomic Energy Authority
04/05/2012,OTHER EMPLOYEE EXPENSES,FUSION,EMPLOYEE EXPENSES,100649482,9.28,United Kingdom Atomic Energy Authority,United Kingdom Atomic Energy Authority
04/05/2012,TAXIS,FUSION,EMPLOYEE EXPENSES,100649487,42.27,United Kingdom Atomic Energy Authority,United Kingdom Atomic Energy Authority
04/05/2012,SUBSISTENCE,FUSION,EMPLOYEE EXPENSES,100649487,1097.13,United Kingdom Atomic Energy Authority,United Kingdom Atomic Energy Authority
04/05/2012,SUBSISTENCE,FUSION,EMPLOYEE EXPENSES,100649487,1.83,United Kingdom Atomic Energy Authority,United Kingdom Atomic Energy Authority
04/05/2012,AIR TRAVEL,FUSION,EMPLOYEE EXPENSES,100649487,231.99,United Kingdom Atomic Energy Authority,United Kingdom Atomic Energy Authority
04/05/2012,ROAD TRAVEL,FUSION,EMPLOYEE EXPENSES,100649487,27.00,United Kingdom Atomic Energy Authority,United Kingdom Atomic Energy Authority
04/05/2012,OTHER EMPLOYEE EXPENSES,FUSION,EMPLOYEE EXPENSES,100649487,4.40,United Kingdom Atomic Energy Authority,United Kingdom Atomic Energy Authority
04/05/2012,GIFTS,FUSION,EMPLOYEE EXPENSES,100649487,657.34,United Kingdom Atomic Energy Authority,United Kingdom Atomic Energy Authority
20/05/2012,PROFESSIONAL SUBSCRIPTION,FUSION,EMPLOYEE EXPENSES,100649683,88.00,United Kingdom Atomic Energy Authority,United Kingdom Atomic Energy Authority
20/05/2012,SUBSISTENCE,FUSION,EMPLOYEE EXPENSES,100649691,941.87,United Kingdom Atomic Energy Authority,United Kingdom Atomic Energy Authority
20/05/2012,ROAD TRAVEL,FUSION,EMPLOYEE EXPENSES,100649691,118.53,United Kingdom Atomic Energy Authority,United Kingdom Atomic Energy Authority
25/05/2012,SUBSISTENCE,FUSION,EMPLOYEE EXPENSES,100649722,444.29,United Kingdom Atomic Energy Authority,United Kingdom Atomic Energy Authority
25/05/2012,SUBSISTENCE,FUSION,EMPLOYEE EXPENSES,100649726,12.20,United Kingdom Atomic Energy Authority,United Kingdom Atomic Energy Authority
25/05/2012,SUBSISTENCE,FUSION,EMPLOYEE EXPENSES,100649726,0.46,United Kingdom Atomic Energy Authority,United Kingdom Atomic Energy Authority
25/05/2012,RAIL TRAVEL,FUSION,EMPLOYEE EXPENSES,100649726,0.48,United Kingdom Atomic Energy Authority,United Kingdom Atomic Energy Authority
25/05/2012,ROAD TRAVEL,FUSION,EMPLOYEE EXPENSES,100649726,0.32,United Kingdom Atomic Energy Authority,United Kingdom Atomic Energy Authority
25/05/2012,ROAD TRAVEL,FUSION,EMPLOYEE EXPENSES,100649726,0.34,United Kingdom Atomic Energy Authority,United Kingdom Atomic Energy Authority
01/06/2012,TAXIS,FUSION,EMPLOYEE EXPENSES,100650019,29.19,United Kingdom Atomic Energy Authority,United Kingdom Atomic Energy Authority
01/06/2012,SUBSISTENCE,FUSION,EMPLOYEE EXPENSES,100650019,448.21,United Kingdom Atomic Energy Authority,United Kingdom Atomic Energy Authority
01/06/2012,ROAD TRAVEL,FUSION,EMPLOYEE EXPENSES,100650019,27.00,United Kingdom Atomic Energy Authority,United Kingdom Atomic Energy Authority
05/04/2012,SUBSISTENCE,FUSION,EMPLOYEE EXPENSES,100648894,320.50,United Kingdom Atomic Energy Authority,United Kingdom Atomic Energy Authority
05/04/2012,RAIL TRAVEL,FUSION,EMPLOYEE EXPENSES,100648894,19.64,United Kingdom Atomic Energy Authority,United Kingdom Atomic Energy Authority
05/04/2012,ROAD TRAVEL,FUSION,EMPLOYEE EXPENSES,100648894,27.00,United Kingdom Atomic Energy Authority,United Kingdom Atomic Energy Authority
18/04/2012,SUBSISTENCE,FUSION,EMPLOYEE EXPENSES,100649117,363.13,United Kingdom Atomic Energy Authority,United Kingdom Atomic Energy Authority
18/04/2012,SUBSISTENCE,FUSION,EMPLOYEE EXPENSES,100649117,3.16,United Kingdom Atomic Energy Authority,United Kingdom Atomic Energy Authority
18/04/2012,OTHER EMPLOYEE EXPENSES,FUSION,EMPLOYEE EXPENSES,100649117,3.99,United Kingdom Atomic Energy Authority,United Kingdom Atomic Energy Authority
18/04/2012,SUBSISTENCE,FUSION,EMPLOYEE EXPENSES,100649119,1818.83,United Kingdom Atomic Energy Authority,United Kingdom Atomic Energy Authority
18/04/2012,SUBSISTENCE,FUSION,EMPLOYEE EXPENSES,100649119,160.00,United Kingdom Atomic Energy Authority,United Kingdom Atomic Energy Authority
18/04/2012,RAIL TRAVEL,FUSION,EMPLOYEE EXPENSES,100649119,64.21,United Kingdom Atomic Energy Authority,United Kingdom Atomic Energy Authority
18/04/2012,SUBSISTENCE,FUSION,EMPLOYEE EXPENSES,100649121,1644.38,United Kingdom Atomic Energy Authority,United Kingdom Atomic Energy Authority
18/04/2012,RAIL TRAVEL,FUSION,EMPLOYEE EXPENSES,100649121,84.42,United Kingdom Atomic Energy Authority,United Kingdom Atomic Energy Authority
26/04/2012,TAXIS,FUSION,EMPLOYEE EXPENSES,100649207,4.21,United Kingdom Atomic Energy Authority,United Kingdom Atomic Energy Authority
26/04/2012,SUBSISTENCE,FUSION,EMPLOYEE EXPENSES,100649207,453.97,United Kingdom Atomic Energy Authority,United Kingdom Atomic Energy Authority
26/04/2012,SUBSISTENCE,FUSION,EMPLOYEE EXPENSES,100649209,110.04,United Kingdom Atomic Energy Authority,United Kingdom Atomic Energy Authority
26/04/2012,SUBSISTENCE,FUSION,EMPLOYEE EXPENSES,100649209,9.75,United Kingdom Atomic Energy Authority,United Kingdom Atomic Energy Authority
26/04/2012,RAIL TRAVEL,FUSION,EMPLOYEE EXPENSES,100649209,8.25,United Kingdom Atomic Energy Authority,United Kingdom Atomic Energy Authority
04/05/2012,SUBSISTENCE,FUSION,EMPLOYEE EXPENSES,100649493,227.90,United Kingdom Atomic Energy Authority,United Kingdom Atomic Energy Authority
04/05/2012,SUBSISTENCE,FUSION,EMPLOYEE EXPENSES,100649493,10.58,United Kingdom Atomic Energy Authority,United Kingdom Atomic Energy Authority
04/05/2012,RAIL TRAVEL,FUSION,EMPLOYEE EXPENSES,100649493,11.61,United Kingdom Atomic Energy Authority,United Kingdom Atomic Energy Authority
04/05/2012,OTHER EMPLOYEE EXPENSES,FUSION,EMPLOYEE EXPENSES,100649493,12.97,United Kingdom Atomic Energy Authority,United Kingdom Atomic Energy Authority
17/05/2012,SUBSISTENCE,FUSION,EMPLOYEE EXPENSES,100649577,449.48,United Kingdom Atomic Energy Authority,United Kingdom Atomic Energy Authority
17/05/2012,RAIL TRAVEL,FUSION,EMPLOYEE EXPENSES,100649577,2.07,United Kingdom Atomic Energy Authority,United Kingdom Atomic Energy Authority
17/05/2012,ROAD TRAVEL,FUSION,EMPLOYEE EXPENSES,100649577,8.84,United Kingdom Atomic Energy Authority,United Kingdom Atomic Energy Authority
20/05/2012,SUBSISTENCE,FUSION,EMPLOYEE EXPENSES,100649680,100.21,United Kingdom Atomic Energy Authority,United Kingdom Atomic Energy Authority
20/05/2012,RAIL TRAVEL,FUSION,EMPLOYEE EXPENSES,100649680,2.08,United Kingdom Atomic Energy Authority,United Kingdom Atomic Energy Authority
20/05/2012,SUBSISTENCE,FUSION,EMPLOYEE EXPENSES,100649692,170.12,United Kingdom Atomic Energy Authority,United Kingdom Atomic Energy Authority
20/05/2012,SUBSISTENCE,FUSION,EMPLOYEE EXPENSES,100649692,5.40,United Kingdom Atomic Energy Authority,United Kingdom Atomic Energy Authority
20/05/2012,ROAD TRAVEL,FUSION,EMPLOYEE EXPENSES,100649692,37.00,United Kingdom Atomic Energy Authority,United Kingdom Atomic Energy Authority
20/05/2012,ROAD TRAVEL,FUSION,EMPLOYEE EXPENSES,100649692,12.61,United Kingdom Atomic Energy Authority,United Kingdom Atomic Energy Authority
25/05/2012,SUBSISTENCE,FUSION,EMPLOYEE EXPENSES,100649726,205.71,United Kingdom Atomic Energy Authority,United Kingdom Atomic Energy Authority
25/05/2012,SUBSISTENCE,FUSION,EMPLOYEE EXPENSES,100649726,7.79,United Kingdom Atomic Energy Authority,United Kingdom Atomic Energy Authority
25/05/2012,RAIL TRAVEL,FUSION,EMPLOYEE EXPENSES,100649726,8.12,United Kingdom Atomic Energy Authority,United Kingdom Atomic Energy Authority
25/05/2012,ROAD TRAVEL,FUSION,EMPLOYEE EXPENSES,100649726,5.28,United Kingdom Atomic Energy Authority,United Kingdom Atomic Energy Authority
25/05/2012,ROAD TRAVEL,FUSION,EMPLOYEE EXPENSES,100649726,5.76,United Kingdom Atomic Energy Authority,United Kingdom Atomic Energy Authority
31/05/2012,SUBSISTENCE,FUSION,EMPLOYEE EXPENSES,100649905,411.64,United Kingdom Atomic Energy Authority,United Kingdom Atomic Energy Authority
31/05/2012,SUBSISTENCE,FUSION,EMPLOYEE EXPENSES,100649905,6.45,United Kingdom Atomic Energy Authority,United Kingdom Atomic Energy Authority
31/05/2012,RAIL TRAVEL,FUSION,EMPLOYEE EXPENSES,100649905,15.26,United Kingdom Atomic Energy Authority,United Kingdom Atomic Energy Authority
31/05/2012,ROAD TRAVEL,FUSION,EMPLOYEE EXPENSES,100649905,29.80,United Kingdom Atomic Energy Authority,United Kingdom Atomic Energy Authority
31/05/2012,ROAD TRAVEL,FUSION,EMPLOYEE EXPENSES,100649905,1.60,United Kingdom Atomic Energy Authority,United Kingdom Atomic Energy Authority
05/04/2012,TAXIS,FUSION,EMPLOYEE EXPENSES,100648886,72.21,United Kingdom Atomic Energy Authority,United Kingdom Atomic Energy Authority
05/04/2012,SUBSISTENCE,FUSION,EMPLOYEE EXPENSES,100648886,126.91,United Kingdom Atomic Energy Authority,United Kingdom Atomic Energy Authority
05/04/2012,RAIL TRAVEL,FUSION,EMPLOYEE EXPENSES,100648886,4.00,United Kingdom Atomic Energy Authority,United Kingdom Atomic Energy Authority
18/04/2012,PROFESSIONAL SUBSCRIPTION,FUSION,EMPLOYEE EXPENSES,100649128,186.50,United Kingdom Atomic Energy Authority,United Kingdom Atomic Energy Authority
26/04/2012,SUBSISTENCE,FUSION,EMPLOYEE EXPENSES,100649200,3.20,United Kingdom Atomic Energy Authority,United Kingdom Atomic Energy Authority
26/04/2012,MILEAGE ALLOWANCE,FUSION,EMPLOYEE EXPENSES,100649200,103.20,United Kingdom Atomic Energy Authority,United Kingdom Atomic Energy Authority
26/04/2012,TAXIS,FUSION,EMPLOYEE EXPENSES,100649201,14.16,United Kingdom Atomic Energy Authority,United Kingdom Atomic Energy Authority
26/04/2012,SUBSISTENCE,FUSION,EMPLOYEE EXPENSES,100649201,57.03,United Kingdom Atomic Energy Authority,United Kingdom Atomic Energy Authority
26/04/2012,ROAD TRAVEL,FUSION,EMPLOYEE EXPENSES,100649201,10.30,United Kingdom Atomic Energy Authority,United Kingdom Atomic Energy Authority
26/04/2012,OTHER EMPLOYEE EXPENSES,FUSION,EMPLOYEE EXPENSES,100649201,8.94,United Kingdom Atomic Energy Authority,United Kingdom Atomic Energy Authority
26/04/2012,PROFESSIONAL SUBSCRIPTION,FUSION,EMPLOYEE EXPENSES,100649205,129.00,United Kingdom Atomic Energy Authority,United Kingdom Atomic Energy Authority
26/04/2012,SUBSISTENCE,FUSION,EMPLOYEE EXPENSES,100649215,5.00,United Kingdom Atomic Energy Authority,United Kingdom Atomic Energy Authority
26/04/2012,SUBSISTENCE,FUSION,EMPLOYEE EXPENSES,100649216,240.34,United Kingdom Atomic Energy Authority,United Kingdom Atomic Energy Authority
26/04/2012,RAIL TRAVEL,FUSION,EMPLOYEE EXPENSES,100649216,3.00,United Kingdom Atomic Energy Authority,United Kingdom Atomic Energy Authority
04/05/2012,MILEAGE ALLOWANCE,FUSION,EMPLOYEE EXPENSES,100649468,4.80,United Kingdom Atomic Energy Authority,United Kingdom Atomic Energy Authority
04/05/2012,RAIL TRAVEL,FUSION,EMPLOYEE EXPENSES,100649468,9.90,United Kingdom Atomic Energy Authority,United Kingdom Atomic Energy Authority
04/05/2012,ROAD TRAVEL,FUSION,EMPLOYEE EXPENSES,100649468,6.20,United Kingdom Atomic Energy Authority,United Kingdom Atomic Energy Authority
17/05/2012,PROFESSIONAL SUBSCRIPTION,FUSION,EMPLOYEE EXPENSES,100649585,83.00,United Kingdom Atomic Energy Authority,United Kingdom Atomic Energy Authority
17/05/2012,TAXIS,FUSION,EMPLOYEE EXPENSES,100649593,6.00,United Kingdom Atomic Energy Authority,United Kingdom Atomic Energy Authority
17/05/2012,TAXIS,FUSION,EMPLOYEE EXPENSES,100649594,49.39,United Kingdom Atomic Energy Authority,United Kingdom Atomic Energy Authority
17/05/2012,SUBSISTENCE,FUSION,EMPLOYEE EXPENSES,100649594,83.22,United Kingdom Atomic Energy Authority,United Kingdom Atomic Energy Authority
17/05/2012,RAIL TRAVEL,FUSION,EMPLOYEE EXPENSES,100649594,26.39,United Kingdom Atomic Energy Authority,United Kingdom Atomic Energy Authority
30/05/2012,TAXIS,FUSION,EMPLOYEE EXPENSES,100649872,5.36,United Kingdom Atomic Energy Authority,United Kingdom Atomic Energy Authority
30/05/2012,SUBSISTENCE,FUSION,EMPLOYEE EXPENSES,100649872,201.15,United Kingdom Atomic Energy Authority,United Kingdom Atomic Energy Authority
05/04/2012,MILEAGE ALLOWANCE,FUSION,EMPLOYEE EXPENSES,100648877,20.00,United Kingdom Atomic Energy Authority,United Kingdom Atomic Energy Authority
01/06/2012,SUBSISTENCE,FUSION,EMPLOYEE EXPENSES,100650018,493.47,United Kingdom Atomic Energy Authority,United Kingdom Atomic Energy Authority
01/06/2012,SUBSISTENCE,FUSION,EMPLOYEE EXPENSES,100650018,5.28,United Kingdom Atomic Energy Authority,United Kingdom Atomic Energy Authority
01/06/2012,RAIL TRAVEL,FUSION,EMPLOYEE EXPENSES,100650018,33.74,United Kingdom Atomic Energy Authority,United Kingdom Atomic Energy Authority
01/06/2012,ROAD TRAVEL,FUSION,EMPLOYEE EXPENSES,100650018,29.80,United Kingdom Atomic Energy Authority,United Kingdom Atomic Energy Authority
01/06/2012,OTHER EMPLOYEE EXPENSES,FUSION,EMPLOYEE EXPENSES,100650018,10.95,United Kingdom Atomic Energy Authority,United Kingdom Atomic Energy Authority
30/05/2012,SUBSISTENCE,FUSION,EMPLOYEE EXPENSES,100649861,100.40,United Kingdom Atomic Energy Authority,United Kingdom Atomic Energy Authority
05/04/2012,TAXIS,FUSION,EMPLOYEE EXPENSES,100648897,4.40,United Kingdom Atomic Energy Authority,United Kingdom Atomic Energy Authority
05/04/2012,SUBSISTENCE,FUSION,EMPLOYEE EXPENSES,100648897,204.00,United Kingdom Atomic Energy Authority,United Kingdom Atomic Energy Authority
05/04/2012,ROAD TRAVEL,FUSION,EMPLOYEE EXPENSES,100648897,21.00,United Kingdom Atomic Energy Authority,United Kingdom Atomic Energy Authority
26/04/2012,SUBSISTENCE,FUSION,EMPLOYEE EXPENSES,100649219,247.59,United Kingdom Atomic Energy Authority,United Kingdom Atomic Energy Authority
26/04/2012,RAIL TRAVEL,FUSION,EMPLOYEE EXPENSES,100649219,23.91,United Kingdom Atomic Energy Authority,United Kingdom Atomic Energy Authority
26/04/2012,ROAD TRAVEL,FUSION,EMPLOYEE EXPENSES,100649219,8.01,United Kingdom Atomic Energy Authority,United Kingdom Atomic Energy Authority
26/04/2012,RELOCATION EXPENSES,FUSION,EMPLOYEE EXPENSES,100649219,20.00,United Kingdom Atomic Energy Authority,United Kingdom Atomic Energy Authority
27/04/2012,SUBSISTENCE,FUSION,EMPLOYEE EXPENSES,100649244,161.80,United Kingdom Atomic Energy Authority,United Kingdom Atomic Energy Authority
27/04/2012,SUBSISTENCE,FUSION,EMPLOYEE EXPENSES,100649244,4.15,United Kingdom Atomic Energy Authority,United Kingdom Atomic Energy Authority
27/04/2012,MILEAGE ALLOWANCE,FUSION,EMPLOYEE EXPENSES,100649244,60.24,United Kingdom Atomic Energy Authority,United Kingdom Atomic Energy Authority
27/04/2012,RAIL TRAVEL,FUSION,EMPLOYEE EXPENSES,100649244,16.09,United Kingdom Atomic Energy Authority,United Kingdom Atomic Energy Authority
27/04/2012,ROAD TRAVEL,FUSION,EMPLOYEE EXPENSES,100649244,33.93,United Kingdom Atomic Energy Authority,United Kingdom Atomic Energy Authority
27/04/2012,OTHER EMPLOYEE EXPENSES,FUSION,EMPLOYEE EXPENSES,100649244,5.83,United Kingdom Atomic Energy Authority,United Kingdom Atomic Energy Authority
11/05/2012,TAXIS,FUSION,EMPLOYEE EXPENSES,100649547,22.59,United Kingdom Atomic Energy Authority,United Kingdom Atomic Energy Authority
11/05/2012,SUBSISTENCE,FUSION,EMPLOYEE EXPENSES,100649547,311.03,United Kingdom Atomic Energy Authority,United Kingdom Atomic Energy Authority
11/05/2012,SUBSISTENCE,FUSION,EMPLOYEE EXPENSES,100649547,11.96,United Kingdom Atomic Energy Authority,United Kingdom Atomic Energy Authority
11/05/2012,RAIL TRAVEL,FUSION,EMPLOYEE EXPENSES,100649547,18.65,United Kingdom Atomic Energy Authority,United Kingdom Atomic Energy Authority
11/05/2012,ROAD TRAVEL,FUSION,EMPLOYEE EXPENSES,100649547,27.00,United Kingdom Atomic Energy Authority,United Kingdom Atomic Energy Authority
11/05/2012,ROAD TRAVEL,FUSION,EMPLOYEE EXPENSES,100649547,9.27,United Kingdom Atomic Energy Authority,United Kingdom Atomic Energy Authority
18/04/2012,ROAD TRAVEL,FUSION,EMPLOYEE EXPENSES,100649119,32.20,United Kingdom Atomic Energy Authority,United Kingdom Atomic Energy Authority
11/05/2012,SUBSISTENCE,FUSION,EMPLOYEE EXPENSES,100649529,246.70,United Kingdom Atomic Energy Authority,United Kingdom Atomic Energy Authority
11/05/2012,SUBSISTENCE,FUSION,EMPLOYEE EXPENSES,100649529,56.99,United Kingdom Atomic Energy Authority,United Kingdom Atomic Energy Authority
11/05/2012,RAIL TRAVEL,FUSION,EMPLOYEE EXPENSES,100649529,13.12,United Kingdom Atomic Energy Authority,United Kingdom Atomic Energy Authority
11/05/2012,ROAD TRAVEL,FUSION,EMPLOYEE EXPENSES,100649529,32.14,United Kingdom Atomic Energy Authority,United Kingdom Atomic Energy Authority
20/05/2012,TAXIS,FUSION,EMPLOYEE EXPENSES,100649678,26.32,United Kingdom Atomic Energy Authority,United Kingdom Atomic Energy Authority
20/05/2012,TAXIS,FUSION,EMPLOYEE EXPENSES,100649678,21.93,United Kingdom Atomic Energy Authority,United Kingdom Atomic Energy Authority
20/05/2012,SUBSISTENCE,FUSION,EMPLOYEE EXPENSES,100649678,87.45,United Kingdom Atomic Energy Authority,United Kingdom Atomic Energy Authority
20/05/2012,OTHER EMPLOYEE EXPENSES,FUSION,EMPLOYEE EXPENSES,100649678,1.60,United Kingdom Atomic Energy Authority,United Kingdom Atomic Energy Authority
25/05/2012,TAXIS,FUSION,EMPLOYEE EXPENSES,100649733,19.20,United Kingdom Atomic Energy Authority,United Kingdom Atomic Energy Authority
25/05/2012,SUBSISTENCE,FUSION,EMPLOYEE EXPENSES,100649733,150.48,United Kingdom Atomic Energy Authority,United Kingdom Atomic Energy Authority
25/05/2012,RAIL TRAVEL,FUSION,EMPLOYEE EXPENSES,100649733,34.50,United Kingdom Atomic Energy Authority,United Kingdom Atomic Energy Authority
25/05/2012,ROAD TRAVEL,FUSION,EMPLOYEE EXPENSES,100649733,12.48,United Kingdom Atomic Energy Authority,United Kingdom Atomic Energy Authority
25/05/2012,OTHER EMPLOYEE EXPENSES,FUSION,EMPLOYEE EXPENSES,100649733,1.99,United Kingdom Atomic Energy Authority,United Kingdom Atomic Energy Authority
18/04/2012,SUBSISTENCE,FUSION,EMPLOYEE EXPENSES,100649136,521.60,United Kingdom Atomic Energy Authority,United Kingdom Atomic Energy Authority
18/04/2012,SUBSISTENCE,FUSION,EMPLOYEE EXPENSES,100649136,14.08,United Kingdom Atomic Energy Authority,United Kingdom Atomic Energy Authority
18/04/2012,MILEAGE ALLOWANCE,FUSION,EMPLOYEE EXPENSES,100649136,11.20,United Kingdom Atomic Energy Authority,United Kingdom Atomic Energy Authority
18/04/2012,RAIL TRAVEL,FUSION,EMPLOYEE EXPENSES,100649136,11.00,United Kingdom Atomic Energy Authority,United Kingdom Atomic Energy Authority
18/04/2012,ROAD TRAVEL,FUSION,EMPLOYEE EXPENSES,100649136,39.50,United Kingdom Atomic Energy Authority,United Kingdom Atomic Energy Authority
18/04/2012,OTHER EMPLOYEE EXPENSES,FUSION,EMPLOYEE EXPENSES,100649136,3.00,United Kingdom Atomic Energy Authority,United Kingdom Atomic Energy Authority
18/04/2012,SUBSISTENCE,FUSION,EMPLOYEE EXPENSES,100649143,131.21,United Kingdom Atomic Energy Authority,United Kingdom Atomic Energy Authority
18/04/2012,SUBSISTENCE,FUSION,EMPLOYEE EXPENSES,100649143,5.96,United Kingdom Atomic Energy Authority,United Kingdom Atomic Energy Authority
18/04/2012,RAIL TRAVEL,FUSION,EMPLOYEE EXPENSES,100649143,2.07,United Kingdom Atomic Energy Authority,United Kingdom Atomic Energy Authority
20/05/2012,SUBSISTENCE,FUSION,EMPLOYEE EXPENSES,100649685,298.35,United Kingdom Atomic Energy Authority,United Kingdom Atomic Energy Authority
20/05/2012,RAIL TRAVEL,FUSION,EMPLOYEE EXPENSES,100649685,12.40,United Kingdom Atomic Energy Authority,United Kingdom Atomic Energy Authority
20/05/2012,SUBSISTENCE,FUSION,EMPLOYEE EXPENSES,100649686,208.94,United Kingdom Atomic Energy Authority,United Kingdom Atomic Energy Authority
20/05/2012,SUBSISTENCE,FUSION,EMPLOYEE EXPENSES,100649686,7.36,United Kingdom Atomic Energy Authority,United Kingdom Atomic Energy Authority
20/05/2012,RAIL TRAVEL,FUSION,EMPLOYEE EXPENSES,100649686,18.19,United Kingdom Atomic Energy Authority,United Kingdom Atomic Energy Authority
05/04/2012,MILEAGE ALLOWANCE,FUSION,EMPLOYEE EXPENSES,100648857,20.80,United Kingdom Atomic Energy Authority,United Kingdom Atomic Energy Authority
05/04/2012,MILEAGE ALLOWANCE,FUSION,EMPLOYEE EXPENSES,100648866,5.60,United Kingdom Atomic Energy Authority,United Kingdom Atomic Energy Authority
05/04/2012,MILEAGE ALLOWANCE,FUSION,EMPLOYEE EXPENSES,100648867,8.80,United Kingdom Atomic Energy Authority,United Kingdom Atomic Energy Authority
05/04/2012,MILEAGE ALLOWANCE,FUSION,EMPLOYEE EXPENSES,100648868,5.60,United Kingdom Atomic Energy Authority,United Kingdom Atomic Energy Authority
26/04/2012,MILEAGE ALLOWANCE,FUSION,EMPLOYEE EXPENSES,100649222,6.40,United Kingdom Atomic Energy Authority,United Kingdom Atomic Energy Authority
26/04/2012,MILEAGE ALLOWANCE,FUSION,EMPLOYEE EXPENSES,100649223,6.40,United Kingdom Atomic Energy Authority,United Kingdom Atomic Energy Authority
26/04/2012,MILEAGE ALLOWANCE,FUSION,EMPLOYEE EXPENSES,100649224,12.00,United Kingdom Atomic Energy Authority,United Kingdom Atomic Energy Authority
26/04/2012,MILEAGE ALLOWANCE,FUSION,EMPLOYEE EXPENSES,100649225,8.80,United Kingdom Atomic Energy Authority,United Kingdom Atomic Energy Authority
26/04/2012,MILEAGE ALLOWANCE,FUSION,EMPLOYEE EXPENSES,100649226,15.20,United Kingdom Atomic Energy Authority,United Kingdom Atomic Energy Authority
26/04/2012,MILEAGE ALLOWANCE,FUSION,EMPLOYEE EXPENSES,100649227,5.60,United Kingdom Atomic Energy Authority,United Kingdom Atomic Energy Authority
11/05/2012,MILEAGE ALLOWANCE,FUSION,EMPLOYEE EXPENSES,100649515,12.80,United Kingdom Atomic Energy Authority,United Kingdom Atomic Energy Authority
11/05/2012,MILEAGE ALLOWANCE,FUSION,EMPLOYEE EXPENSES,100649516,16.00,United Kingdom Atomic Energy Authority,United Kingdom Atomic Energy Authority
11/05/2012,MILEAGE ALLOWANCE,FUSION,EMPLOYEE EXPENSES,100649520,5.60,United Kingdom Atomic Energy Authority,United Kingdom Atomic Energy Authority
11/05/2012,MILEAGE ALLOWANCE,FUSION,EMPLOYEE EXPENSES,100649521,5.60,United Kingdom Atomic Energy Authority,United Kingdom Atomic Energy Authority
11/05/2012,MILEAGE ALLOWANCE,FUSION,EMPLOYEE EXPENSES,100649527,10.80,United Kingdom Atomic Energy Authority,United Kingdom Atomic Energy Authority
17/05/2012,MILEAGE ALLOWANCE,FUSION,EMPLOYEE EXPENSES,100649669,24.80,United Kingdom Atomic Energy Authority,United Kingdom Atomic Energy Authority
24/05/2012,OTHER EMPLOYEE EXPENSES,FUSION,EMPLOYEE EXPENSES,100649707,49.98,United Kingdom Atomic Energy Authority,United Kingdom Atomic Energy Authority
30/05/2012,MILEAGE ALLOWANCE,FUSION,EMPLOYEE EXPENSES,100649849,12.80,United Kingdom Atomic Energy Authority,United Kingdom Atomic Energy Authority
30/05/2012,MILEAGE ALLOWANCE,FUSION,EMPLOYEE EXPENSES,100649850,24.00,United Kingdom Atomic Energy Authority,United Kingdom Atomic Energy Authority
30/05/2012,MILEAGE ALLOWANCE,FUSION,EMPLOYEE EXPENSES,100649858,5.60,United Kingdom Atomic Energy Authority,United Kingdom Atomic Energy Authority
30/05/2012,MILEAGE ALLOWANCE,FUSION,EMPLOYEE EXPENSES,100649879,6.40,United Kingdom Atomic Energy Authority,United Kingdom Atomic Energy Authority
05/04/2012,MILEAGE ALLOWANCE,PROPERTY,EMPLOYEE EXPENSES,100648860,62.00,United Kingdom Atomic Energy Authority,United Kingdom Atomic Energy Authority
05/04/2012,RAIL TRAVEL,PROPERTY,EMPLOYEE EXPENSES,100648860,54.00,United Kingdom Atomic Energy Authority,United Kingdom Atomic Energy Authority
05/04/2012,ROAD TRAVEL,PROPERTY,EMPLOYEE EXPENSES,100648860,12.50,United Kingdom Atomic Energy Authority,United Kingdom Atomic Energy Authority
05/04/2012,MILEAGE ALLOWANCE,PROPERTY,EMPLOYEE EXPENSES,100648861,74.40,United Kingdom Atomic Energy Authority,United Kingdom Atomic Energy Authority
05/04/2012,PROFESSIONAL SUBSCRIPTION,PROPERTY,EMPLOYEE EXPENSES,100648871,143.00,United Kingdom Atomic Energy Authority,United Kingdom Atomic Energy Authority
05/04/2012,SUBSISTENCE,SUPPORT SERVICES,EMPLOYEE EXPENSES,100648862,3.12,United Kingdom Atomic Energy Authority,United Kingdom Atomic Energy Authority
05/04/2012,MILEAGE ALLOWANCE,SUPPORT SERVICES,EMPLOYEE EXPENSES,100648862,10.40,United Kingdom Atomic Energy Authority,United Kingdom Atomic Energy Authority
05/04/2012,ROAD TRAVEL,SUPPORT SERVICES,EMPLOYEE EXPENSES,100648862,4.75,United Kingdom Atomic Energy Authority,United Kingdom Atomic Energy Authority
18/04/2012,SUBSISTENCE,SUPPORT SERVICES,EMPLOYEE EXPENSES,100649115,1.30,United Kingdom Atomic Energy Authority,United Kingdom Atomic Energy Authority
18/04/2012,MILEAGE ALLOWANCE,SUPPORT SERVICES,EMPLOYEE EXPENSES,100649115,10.40,United Kingdom Atomic Energy Authority,United Kingdom Atomic Energy Authority
18/04/2012,ROAD TRAVEL,SUPPORT SERVICES,EMPLOYEE EXPENSES,100649115,4.75,United Kingdom Atomic Energy Authority,United Kingdom Atomic Energy Authority
20/04/2012,TAXIS,SUPPORT SERVICES,EMPLOYEE EXPENSES,100649166,27.50,United Kingdom Atomic Energy Authority,United Kingdom Atomic Energy Authority
26/04/2012,MILEAGE ALLOWANCE,SUPPORT SERVICES,EMPLOYEE EXPENSES,100649218,6.40,United Kingdom Atomic Energy Authority,United Kingdom Atomic Energy Authority
26/04/2012,RAIL TRAVEL,SUPPORT SERVICES,EMPLOYEE EXPENSES,100649218,32.00,United Kingdom Atomic Energy Authority,United Kingdom Atomic Energy Authority
26/04/2012,ROAD TRAVEL,SUPPORT SERVICES,EMPLOYEE EXPENSES,100649218,6.90,United Kingdom Atomic Energy Authority,United Kingdom Atomic Energy Authority
11/05/2012,SUBSISTENCE,SUPPORT SERVICES,EMPLOYEE EXPENSES,100649518,1.30,United Kingdom Atomic Energy Authority,United Kingdom Atomic Energy Authority
11/05/2012,MILEAGE ALLOWANCE,SUPPORT SERVICES,EMPLOYEE EXPENSES,100649518,10.40,United Kingdom Atomic Energy Authority,United Kingdom Atomic Energy Authority
11/05/2012,ROAD TRAVEL,SUPPORT SERVICES,EMPLOYEE EXPENSES,100649518,4.75,United Kingdom Atomic Energy Authority,United Kingdom Atomic Energy Authority
11/05/2012,TAXIS,SUPPORT SERVICES,EMPLOYEE EXPENSES,100649541,13.50,United Kingdom Atomic Energy Authority,United Kingdom Atomic Energy Authority
11/05/2012,SUBSISTENCE,SUPPORT SERVICES,EMPLOYEE EXPENSES,100649541,4.17,United Kingdom Atomic Energy Authority,United Kingdom Atomic Energy Authority
11/05/2012,MILEAGE ALLOWANCE,SUPPORT SERVICES,EMPLOYEE EXPENSES,100649541,12.80,United Kingdom Atomic Energy Authority,United Kingdom Atomic Energy Authority
11/05/2012,ROAD TRAVEL,SUPPORT SERVICES,EMPLOYEE EXPENSES,100649541,6.20,United Kingdom Atomic Energy Authority,United Kingdom Atomic Energy Authority
11/05/2012,TAXIS,SUPPORT SERVICES,EMPLOYEE EXPENSES,100649542,16.50,United Kingdom Atomic Energy Authority,United Kingdom Atomic Energy Authority
11/05/2012,SUBSISTENCE,SUPPORT SERVICES,EMPLOYEE EXPENSES,100649542,62.50,United Kingdom Atomic Energy Authority,United Kingdom Atomic Energy Authority
11/05/2012,TAXIS,SUPPORT SERVICES,EMPLOYEE EXPENSES,100649543,7.50,United Kingdom Atomic Energy Authority,United Kingdom Atomic Energy Authority
11/05/2012,RAIL TRAVEL,SUPPORT SERVICES,EMPLOYEE EXPENSES,100649543,35.65,United Kingdom Atomic Energy Authority,United Kingdom Atomic Energy Authority
17/05/2012,RAIL TRAVEL,SUPPORT SERVICES,EMPLOYEE EXPENSES,100649581,34.50,United Kingdom Atomic Energy Authority,United Kingdom Atomic Energy Authority
17/05/2012,ROAD TRAVEL,SUPPORT SERVICES,EMPLOYEE EXPENSES,100649581,6.40,United Kingdom Atomic Energy Authority,United Kingdom Atomic Energy Authority
17/05/2012,PROFESSIONAL SUBSCRIPTION,SUPPORT SERVICES,EMPLOYEE EXPENSES,100649582,692.00,United Kingdom Atomic Energy Authority,United Kingdom Atomic Energy Authority
30/05/2012,SUBSISTENCE,SUPPORT SERVICES,EMPLOYEE EXPENSES,100649876,85.00,United Kingdom Atomic Energy Authority,United Kingdom Atomic Energy Authority
30/05/2012,MILEAGE ALLOWANCE,SUPPORT SERVICES,EMPLOYEE EXPENSES,100649876,86.00,United Kingdom Atomic Energy Authority,United Kingdom Atomic Energy Authority
20/04/2012,SUBSISTENCE,SUPPORT SERVICES,EMPLOYEE EXPENSES,100649151,4.45,United Kingdom Atomic Energy Authority,United Kingdom Atomic Energy Authority
20/04/2012,ROAD TRAVEL,SUPPORT SERVICES,EMPLOYEE EXPENSES,100649151,6.50,United Kingdom Atomic Energy Authority,United Kingdom Atomic Energy Authority
18/04/2012,SUBSISTENCE,SUPPORT SERVICES,EMPLOYEE EXPENSES,100649126,2.96,United Kingdom Atomic Energy Authority,United Kingdom Atomic Energy Authority
18/04/2012,MILEAGE ALLOWANCE,SUPPORT SERVICES,EMPLOYEE EXPENSES,100649126,16.00,United Kingdom Atomic Energy Authority,United Kingdom Atomic Energy Authority
18/04/2012,ROAD TRAVEL,SUPPORT SERVICES,EMPLOYEE EXPENSES,100649126,6.50,United Kingdom Atomic Energy Authority,United Kingdom Atomic Energy Authority
20/05/2012,ROAD TRAVEL,SUPPORT SERVICES,EMPLOYEE EXPENSES,100649689,5.70,United Kingdom Atomic Energy Authority,United Kingdom Atomic Energy Authority
20/05/2012,TAXIS,SUPPORT SERVICES,EMPLOYEE EXPENSES,100649690,10.00,United Kingdom Atomic Energy Authority,United Kingdom Atomic Energy Authority
20/05/2012,SUBSISTENCE,SUPPORT SERVICES,EMPLOYEE EXPENSES,100649690,3.91,United Kingdom Atomic Energy Authority,United Kingdom Atomic Energy Authority
20/05/2012,MILEAGE ALLOWANCE,SUPPORT SERVICES,EMPLOYEE EXPENSES,100649690,16.00,United Kingdom Atomic Energy Authority,United Kingdom Atomic Energy Authority
20/05/2012,ROAD TRAVEL,SUPPORT SERVICES,EMPLOYEE EXPENSES,100649690,6.50,United Kingdom Atomic Energy Authority,United Kingdom Atomic Energy Authority
21/05/2012,PROFESSIONAL SERVICES,FUSION,ENGINEERING SAFETY INSPECTION SERVICE,5100275263,3700.00,United Kingdom Atomic Energy Authority,United Kingdom Atomic Energy Authority
30/04/2012,PROFESSIONAL SERVICES,FUSION,EUROPEAN ELECTRONIQUE,5100274609,18758.00,United Kingdom Atomic Energy Authority,United Kingdom Atomic Energy Authority
10/05/2012,PROFESSIONAL SUBSCRIPTION,FUSION,European Physical Society,1900056893,2414.10,United Kingdom Atomic Energy Authority,United Kingdom Atomic Energy Authority
17/05/2012,CHARITABLE DONATIONS,SUPPORT SERVICES,European School,1900056919,300.00,United Kingdom Atomic Energy Authority,United Kingdom Atomic Energy Authority
09/05/2012,PLANT & EQUIPMENT,FUSION,FACTAIR LTD,5100274895,290.00,United Kingdom Atomic Energy Authority,United Kingdom Atomic Energy Authority
14/05/2012,MATERIALS & SPARES,FUSION,FARNELL ELECTRONIC,5100274217,361.09,United Kingdom Atomic Energy Authority,United Kingdom Atomic Energy Authority
21/05/2012,MATERIALS & SPARES,FUSION,FARNELL ELECTRONIC,5100275323,2.16,United Kingdom Atomic Energy Authority,United Kingdom Atomic Energy Authority
09/05/2012,MATERIALS & SPARES,FUSION,FARNELL ELECTRONIC,5100274701,74.84,United Kingdom Atomic Energy Authority,United Kingdom Atomic Energy Authority
30/04/2012,MATERIALS & SPARES,FUSION,FARNELL ELECTRONIC,5100274602,294.48,United Kingdom Atomic Energy Authority,United Kingdom Atomic Energy Authority
09/05/2012,MATERIALS & SPARES,FUSION,FARNELL ELECTRONIC,5100274637,201.19,United Kingdom Atomic Energy Authority,United Kingdom Atomic Energy Authority
09/05/2012,MATERIALS & SPARES,FUSION,FARNELL ELECTRONIC,5100274638,62.65,United Kingdom Atomic Energy Authority,United Kingdom Atomic Energy Authority
09/05/2012,MATERIALS & SPARES,FUSION,FARNELL ELECTRONIC,5100274639,244.54,United Kingdom Atomic Energy Authority,United Kingdom Atomic Energy Authority
09/05/2012,MATERIALS & SPARES,FUSION,FARNELL ELECTRONIC,5100274640,384.60,United Kingdom Atomic Energy Authority,United Kingdom Atomic Energy Authority
09/05/2012,MATERIALS & SPARES,FUSION,FARNELL ELECTRONIC,5100274641,38.32,United Kingdom Atomic Energy Authority,United Kingdom Atomic Energy Authority
09/05/2012,MATERIALS & SPARES,FUSION,FARNELL ELECTRONIC,5100274691,36.44,United Kingdom Atomic Energy Authority,United Kingdom Atomic Energy Authority
14/05/2012,MATERIALS & SPARES,FUSION,FARNELL ELECTRONIC,5100275064,9.45,United Kingdom Atomic Energy Authority,United Kingdom Atomic Energy Authority
21/05/2012,MATERIALS & SPARES,FUSION,FARNELL ELECTRONIC,5100275270,14.70,United Kingdom Atomic Energy Authority,United Kingdom Atomic Energy Authority
21/05/2012,MATERIALS & SPARES,FUSION,FARNELL ELECTRONIC,5100275318,129.95,United Kingdom Atomic Energy Authority,United Kingdom Atomic Energy Authority
21/05/2012,MATERIALS & SPARES,FUSION,FARNELL ELECTRONIC,5100275319,37.10,United Kingdom Atomic Energy Authority,United Kingdom Atomic Energy Authority
09/05/2012,MATERIALS & SPARES,FUSION,FARNELL ELECTRONIC,5100274647,101.99,United Kingdom Atomic Energy Authority,United Kingdom Atomic Energy Authority
09/05/2012,MATERIALS & SPARES,FUSION,FARNELL ELECTRONIC,5100274684,168.84,United Kingdom Atomic Energy Authority,United Kingdom Atomic Energy Authority
09/05/2012,MATERIALS & SPARES,FUSION,FARNELL ELECTRONIC,5100274685,119.20,United Kingdom Atomic Energy Authority,United Kingdom Atomic Energy Authority
09/05/2012,MATERIALS & SPARES,FUSION,FARNELL ELECTRONIC,5100274699,213.71,United Kingdom Atomic Energy Authority,United Kingdom Atomic Energy Authority
21/05/2012,MATERIALS & SPARES,FUSION,FARNELL ELECTRONIC,5100275065,8.02,United Kingdom Atomic Energy Authority,United Kingdom Atomic Energy Authority
21/05/2012,MATERIALS & SPARES,FUSION,FARNELL ELECTRONIC,5100275320,43.68,United Kingdom Atomic Energy Authority,United Kingdom Atomic Energy Authority
21/05/2012,MATERIALS & SPARES,FUSION,FARNELL ELECTRONIC,5100275321,70.85,United Kingdom Atomic Energy Authority,United Kingdom Atomic Energy Authority
09/05/2012,MATERIALS & SPARES,FUSION,FARNELL ELECTRONIC,5100274645,47.00,United Kingdom Atomic Energy Authority,United Kingdom Atomic Energy Authority
21/05/2012,MATERIALS & SPARES,FUSION,FARNELL ELECTRONIC,5100275322,2.38,United Kingdom Atomic Energy Authority,United Kingdom Atomic Energy Authority
09/05/2012,MATERIALS & SPARES,FUSION,FARNELL ELECTRONIC,5100274642,38.00,United Kingdom Atomic Energy Authority,United Kingdom Atomic Energy Authority
09/05/2012,MATERIALS & SPARES,FUSION,FARNELL ELECTRONIC,5100274643,451.37,United Kingdom Atomic Energy Authority,United Kingdom Atomic Energy Authority
09/05/2012,MATERIALS & SPARES,FUSION,FARNELL ELECTRONIC,5100274692,200.10,United Kingdom Atomic Energy Authority,United Kingdom Atomic Energy Authority
21/05/2012,MATERIALS & SPARES,FUSION,FARNELL ELECTRONIC,5100275239,144.22,United Kingdom Atomic Energy Authority,United Kingdom Atomic Energy Authority
21/05/2012,MATERIALS & SPARES,FUSION,FARNELL ELECTRONIC,5100275241,501.38,United Kingdom Atomic Energy Authority,United Kingdom Atomic Energy Authority
21/05/2012,MATERIALS & SPARES,FUSION,FARNELL ELECTRONIC,5100275242,101.71,United Kingdom Atomic Energy Authority,United Kingdom Atomic Energy Authority
09/05/2012,MATERIALS & SPARES,FUSION,FARNELL ELECTRONIC,5100274648,98.81,United Kingdom Atomic Energy Authority,United Kingdom Atomic Energy Authority
09/05/2012,MATERIALS & SPARES,FUSION,FARNELL ELECTRONIC,5100274649,112.79,United Kingdom Atomic Energy Authority,United Kingdom Atomic Energy Authority
09/05/2012,MATERIALS & SPARES,FUSION,FARNELL ELECTRONIC,5100274650,169.72,United Kingdom Atomic Energy Authority,United Kingdom Atomic Energy Authority
09/05/2012,MATERIALS & SPARES,FUSION,FARNELL ELECTRONIC,5100274704,50.56,United Kingdom Atomic Energy Authority,United Kingdom Atomic Energy Authority
14/05/2012,MATERIALS & SPARES,FUSION,FARNELL ELECTRONIC,5100275066,40.17,United Kingdom Atomic Energy Authority,United Kingdom Atomic Energy Authority
21/05/2012,MATERIALS & SPARES,FUSION,FARNELL ELECTRONIC,5100275238,-26.00,United Kingdom Atomic Energy Authority,United Kingdom Atomic Energy Authority
21/05/2012,MATERIALS & SPARES,FUSION,FARNELL ELECTRONIC,5100275324,114.76,United Kingdom Atomic Energy Authority,United Kingdom Atomic Energy Authority
21/05/2012,MATERIALS & SPARES,FUSION,FARNELL ELECTRONIC,5100275325,190.64,United Kingdom Atomic Energy Authority,United Kingdom Atomic Energy Authority
21/05/2012,MATERIALS & SPARES,FUSION,FARNELL ELECTRONIC,5100275326,201.41,United Kingdom Atomic Energy Authority,United Kingdom Atomic Energy Authority
21/05/2012,MATERIALS & SPARES,FUSION,FARNELL ELECTRONIC,5100275327,22.07,United Kingdom Atomic Energy Authority,United Kingdom Atomic Energy Authority
21/05/2012,MATERIALS & SPARES,FUSION,FARNELL ELECTRONIC,5100275328,21.83,United Kingdom Atomic Energy Authority,United Kingdom Atomic Energy Authority
09/05/2012,MATERIALS & SPARES,FUSION,FARNELL ELECTRONIC,5100274652,63.83,United Kingdom Atomic Energy Authority,United Kingdom Atomic Energy Authority
09/05/2012,MATERIALS & SPARES,FUSION,FARNELL ELECTRONIC,5100274653,8.67,United Kingdom Atomic Energy Authority,United Kingdom Atomic Energy Authority
09/05/2012,MATERIALS & SPARES,FUSION,FARNELL ELECTRONIC,5100274651,48.27,United Kingdom Atomic Energy Authority,United Kingdom Atomic Energy Authority
09/05/2012,MATERIALS & SPARES,FUSION,FARNELL ELECTRONIC,5100274705,490.35,United Kingdom Atomic Energy Authority,United Kingdom Atomic Energy Authority
09/05/2012,MATERIALS & SPARES,FUSION,FARNELL ELECTRONIC,5100274707,277.42,United Kingdom Atomic Energy Authority,United Kingdom Atomic Energy Authority
09/05/2012,MATERIALS & SPARES,FUSION,FARNELL ELECTRONIC,5100274709,124.94,United Kingdom Atomic Energy Authority,United Kingdom Atomic Energy Authority
21/05/2012,MATERIALS & SPARES,FUSION,FARNELL ELECTRONIC,5100275329,56.17,United Kingdom Atomic Energy Authority,United Kingdom Atomic Energy Authority
21/05/2012,MATERIALS & SPARES,FUSION,FARNELL ELECTRONIC,5100275330,180.44,United Kingdom Atomic Energy Authority,United Kingdom Atomic Energy Authority
21/05/2012,MATERIALS & SPARES,FUSION,FARNELL ELECTRONIC,5100275331,103.79,United Kingdom Atomic Energy Authority,United Kingdom Atomic Energy Authority
21/05/2012,MATERIALS & SPARES,FUSION,FARNELL ELECTRONIC,5100275332,31.85,United Kingdom Atomic Energy Authority,United Kingdom Atomic Energy Authority
21/05/2012,MATERIALS & SPARES,FUSION,FARNELL ELECTRONIC,5100275333,56.17,United Kingdom Atomic Energy Authority,United Kingdom Atomic Energy Authority
09/05/2012,MATERIALS & SPARES,FUSION,FARNELL ELECTRONIC,5100274686,102.89,United Kingdom Atomic Energy Authority,United Kingdom Atomic Energy Authority
30/04/2012,MATERIALS & SPARES,FUSION,FARNELL ELECTRONIC,5100274580,131.24,United Kingdom Atomic Energy Authority,United Kingdom Atomic Energy Authority
30/04/2012,MATERIALS & SPARES,FUSION,FARNELL ELECTRONIC,5100274581,250.23,United Kingdom Atomic Energy Authority,United Kingdom Atomic Energy Authority
30/04/2012,MATERIALS & SPARES,FUSION,FARNELL ELECTRONIC,5100274583,109.09,United Kingdom Atomic Energy Authority,United Kingdom Atomic Energy Authority
30/04/2012,MATERIALS & SPARES,FUSION,FARNELL ELECTRONIC,5100274586,4.52,United Kingdom Atomic Energy Authority,United Kingdom Atomic Energy Authority
30/04/2012,MATERIALS & SPARES,FUSION,FARNELL ELECTRONIC,5100274588,511.62,United Kingdom Atomic Energy Authority,United Kingdom Atomic Energy Authority
09/05/2012,MATERIALS & SPARES,FUSION,FARNELL ELECTRONIC,5100274687,158.15,United Kingdom Atomic Energy Authority,United Kingdom Atomic Energy Authority
09/05/2012,MATERIALS & SPARES,FUSION,FARNELL ELECTRONIC,5100274688,302.30,United Kingdom Atomic Energy Authority,United Kingdom Atomic Energy Authority
14/05/2012,MATERIALS & SPARES,FUSION,FARNELL ELECTRONIC,5100275060,13.70,United Kingdom Atomic Energy Authority,United Kingdom Atomic Energy Authority
23/05/2012,MATERIALS & SPARES,FUSION,FARNELL ELECTRONIC,5100275240,3.54,United Kingdom Atomic Energy Authority,United Kingdom Atomic Energy Authority
30/04/2012,MATERIALS & SPARES,FUSION,FARNELL ELECTRONIC,5100274576,65.80,United Kingdom Atomic Energy Authority,United Kingdom Atomic Energy Authority
09/05/2012,MATERIALS & SPARES,FUSION,FARNELL ELECTRONIC,5100274654,26.60,United Kingdom Atomic Energy Authority,United Kingdom Atomic Energy Authority
14/05/2012,MATERIALS & SPARES,FUSION,FARNELL ELECTRONIC,5100274690,201.51,United Kingdom Atomic Energy Authority,United Kingdom Atomic Energy Authority
14/05/2012,MATERIALS & SPARES,FUSION,FARNELL ELECTRONIC,5100275059,27.06,United Kingdom Atomic Energy Authority,United Kingdom Atomic Energy Authority
14/05/2012,MATERIALS & SPARES,FUSION,FARNELL ELECTRONIC,5100275063,21.34,United Kingdom Atomic Energy Authority,United Kingdom Atomic Energy Authority
30/04/2012,MATERIALS & SPARES,FUSION,FARNELL ELECTRONIC,5100274593,315.68,United Kingdom Atomic Energy Authority,United Kingdom Atomic Energy Authority
30/04/2012,MATERIALS & SPARES,FUSION,FARNELL ELECTRONIC,5100274601,26.67,United Kingdom Atomic Energy Authority,United Kingdom Atomic Energy Authority
09/05/2012,MATERIALS & SPARES,FUSION,FARNELL ELECTRONIC,5100274689,342.00,United Kingdom Atomic Energy Authority,United Kingdom Atomic Energy Authority
14/05/2012,MATERIALS & SPARES,FUSION,FARNELL ELECTRONIC,5100275061,140.43,United Kingdom Atomic Energy Authority,United Kingdom Atomic Energy Authority
14/05/2012,MATERIALS & SPARES,FUSION,FARNELL ELECTRONIC,5100275062,52.80,United Kingdom Atomic Energy Authority,United Kingdom Atomic Energy Authority
21/05/2012,MATERIALS & SPARES,FUSION,FARNELL ELECTRONIC,5100275266,84.80,United Kingdom Atomic Energy Authority,United Kingdom Atomic Energy Authority
14/05/2012,MATERIALS & SPARES,FUSION,FARNELL ELECTRONIC,5100274050,7.35,United Kingdom Atomic Energy Authority,United Kingdom Atomic Energy Authority
09/05/2012,MATERIALS & SPARES,FUSION,FARNELL ELECTRONIC,5100274644,179.19,United Kingdom Atomic Energy Authority,United Kingdom Atomic Energy Authority
21/05/2012,MATERIALS & SPARES,FUSION,FARNELL ELECTRONIC,5100275264,217.92,United Kingdom Atomic Energy Authority,United Kingdom Atomic Energy Authority
09/05/2012,MATERIALS & SPARES,FUSION,FARNELL ELECTRONIC,5100274646,59.59,United Kingdom Atomic Energy Authority,United Kingdom Atomic Energy Authority
30/04/2012,MATERIALS & SPARES,FUSION,FARNELL ELECTRONIC,5100274572,14.24,United Kingdom Atomic Energy Authority,United Kingdom Atomic Energy Authority
09/05/2012,MATERIALS & SPARES,FUSION,FARNELL ELECTRONIC,5100274655,15.34,United Kingdom Atomic Energy Authority,United Kingdom Atomic Energy Authority
02/05/2012,PRINTING & GRAPHICS,FUSION,FINGERPRINT LTD,5100274635,635.00,United Kingdom Atomic Energy Authority,United Kingdom Atomic Energy Authority
14/05/2012,HIRED STAFF,SUPPORT SERVICES,FIRCROFT ENGINEERING SERVICES LTD,5100274962,183.27,United Kingdom Atomic Energy Authority,United Kingdom Atomic Energy Authority
30/04/2012,PLANT & EQUIPMENT,SUPPORT SERVICES,FISHER SCIENTIFIC UK LTD,5100274561,16.70,United Kingdom Atomic Energy Authority,United Kingdom Atomic Energy Authority
30/04/2012,PLANT & EQUIPMENT,FUSION,FISHER SCIENTIFIC UK LTD,5100274445,2074.88,United Kingdom Atomic Energy Authority,United Kingdom Atomic Energy Authority
21/05/2012,PLANT & EQUIPMENT,FUSION,FISHER SCIENTIFIC UK LTD,5100275225,12.57,United Kingdom Atomic Energy Authority,United Kingdom Atomic Energy Authority
21/05/2012,PLANT & EQUIPMENT,FUSION,FISHER SCIENTIFIC UK LTD,5100275397,198.10,United Kingdom Atomic Energy Authority,United Kingdom Atomic Energy Authority
09/05/2012,STATIONERY,FUSION,FLAPS ENVELOPES LTD,5100274733,601.20,United Kingdom Atomic Energy Authority,United Kingdom Atomic Energy Authority
23/05/2012,STATIONERY,FUSION,FLAPS ENVELOPES LTD,5100275352,129.00,United Kingdom Atomic Energy Authority,United Kingdom Atomic Energy Authority
30/04/2012,MATERIALS & SPARES,FUSION,FLEXIBLE & SPECIALIST CABLES,5100274558,559.00,United Kingdom Atomic Energy Authority,United Kingdom Atomic Energy Authority
23/05/2012,MATERIALS & SPARES,FUSION,FLIR ADVANCED THERMAL SOLUTIONS,5100274902,4872.11,United Kingdom Atomic Energy Authority,United Kingdom Atomic Energy Authority
11/05/2012,VISITOR EXPENSES,FUSION,VISITOR EXPENSES,1900056899,368.00,United Kingdom Atomic Energy Authority,United Kingdom Atomic Energy Authority
21/05/2012,PROFESSIONAL SERVICES,FUSION,FORTRESS INTERLOCKS LTD,5100275200,41.50,United Kingdom Atomic Energy Authority,United Kingdom Atomic Energy Authority
09/05/2012,MATERIALS & SPARES,FUSION,FORWARD 2000 LTD,5100274847,919.50,United Kingdom Atomic Energy Authority,United Kingdom Atomic Energy Authority
14/05/2012,MATERIALS & SPARES,FUSION,FORWARD 2000 LTD,5100275142,59.00,United Kingdom Atomic Energy Authority,United Kingdom Atomic Energy Authority
16/05/2012,MATERIALS & SPARES,FUSION,FORWARD 2000 LTD,5100275144,136.20,United Kingdom Atomic Energy Authority,United Kingdom Atomic Energy Authority
30/04/2012,MATERIALS & SPARES,FUSION,FORWARD 2000 LTD,5100274557,176.78,United Kingdom Atomic Energy Authority,United Kingdom Atomic Energy Authority
14/05/2012,MATERIALS & SPARES,FUSION,FORWARD 2000 LTD,5100275143,176.78,United Kingdom Atomic Energy Authority,United Kingdom Atomic Energy Authority
02/05/2012,PLANT & EQUIPMENT,FUSION,FRANCIS WARD LTD,5100274565,3578.42,United Kingdom Atomic Energy Authority,United Kingdom Atomic Energy Authority
09/05/2012,PROFESSIONAL SERVICES,SUPPORT SERVICES,FREYA CONSULTING,5100274715,3625.00,United Kingdom Atomic Energy Authority,United Kingdom Atomic Energy Authority
30/04/2012,STATIONERY,FUSION,FULTON PAPER,5100274442,550.00,United Kingdom Atomic Energy Authority,United Kingdom Atomic Energy Authority
09/05/2012,STATIONERY,FUSION,FULTON PAPER,5100274669,3500.00,United Kingdom Atomic Energy Authority,United Kingdom Atomic Energy Authority
21/05/2012,STATIONERY,FUSION,FULTON PAPER,5100275219,1100.00,United Kingdom Atomic Energy Authority,United Kingdom Atomic Energy Authority
23/05/2012,MATERIALS & SPARES,FUSION,GARNER OSBORNE CIRCUITS LTD,5100275399,256.00,United Kingdom Atomic Energy Authority,United Kingdom Atomic Energy Authority
09/05/2012,PLANT SPARES,FUSION,GD RECTIFIERS LTD,5100274774,3137.90,United Kingdom Atomic Energy Authority,United Kingdom Atomic Energy Authority
14/05/2012,PLANT SPARES,FUSION,GD RECTIFIERS LTD,5100274948,1080.40,United Kingdom Atomic Energy Authority,United Kingdom Atomic Energy Authority
09/05/2012,HIRED STAFF,FUSION,GENTLE ASSOCIATES LTD,5100274849,3226.95,United Kingdom Atomic Energy Authority,United Kingdom Atomic Energy Authority
04/05/2012,VISITOR EXPENSES,FUSION,VISITOR EXPENSES,1900056884,716.17,United Kingdom Atomic Energy Authority,United Kingdom Atomic Energy Authority
11/05/2012,VISITOR EXPENSES,FUSION,VISITOR EXPENSES,1900056901,838.83,United Kingdom Atomic Energy Authority,United Kingdom Atomic Energy Authority
21/05/2012,PROFESSIONAL SERVICES,FUSION,GRAFX,5100275226,115.00,United Kingdom Atomic Energy Authority,United Kingdom Atomic Energy Authority
21/05/2012,PROFESSIONAL SERVICES,PROPERTY,GRUNDON WASTE MANAGEMENT LTD,5100275228,656.57,United Kingdom Atomic Energy Authority,United Kingdom Atomic Energy Authority
21/05/2012,PROFESSIONAL SERVICES,PROPERTY,GRUNDON WASTE MANAGEMENT LTD,5100275230,180.34,United Kingdom Atomic Energy Authority,United Kingdom Atomic Energy Authority
21/05/2012,PROFESSIONAL SERVICES,PROPERTY,GRUNDON WASTE MANAGEMENT LTD,5100275231,175.84,United Kingdom Atomic Energy Authority,United Kingdom Atomic Energy Authority
21/05/2012,PROFESSIONAL SERVICES,PROPERTY,GRUNDON WASTE MANAGEMENT LTD,5100275232,43.96,United Kingdom Atomic Energy Authority,United Kingdom Atomic Energy Authority
21/05/2012,PROFESSIONAL SERVICES,PROPERTY,GRUNDON WASTE MANAGEMENT LTD,5100275233,43.96,United Kingdom Atomic Energy Authority,United Kingdom Atomic Energy Authority
21/05/2012,PROFESSIONAL SERVICES,PROPERTY,GRUNDON WASTE MANAGEMENT LTD,5100275234,87.92,United Kingdom Atomic Energy Authority,United Kingdom Atomic Energy Authority
21/05/2012,PROFESSIONAL SERVICES,PROPERTY,GRUNDON WASTE MANAGEMENT LTD,5100275227,296.66,United Kingdom Atomic Energy Authority,United Kingdom Atomic Energy Authority
21/05/2012,PROFESSIONAL SERVICES,PROPERTY,GRUNDON WASTE MANAGEMENT LTD,5100275229,646.82,United Kingdom Atomic Energy Authority,United Kingdom Atomic Energy Authority
21/05/2012,PROFESSIONAL SERVICES,PROPERTY,GRUNDON WASTE MANAGEMENT LTD,5100275235,1922.70,United Kingdom Atomic Energy Authority,United Kingdom Atomic Energy Authority
21/05/2012,PROFESSIONAL SERVICES,PROPERTY,GRUNDON WASTE MANAGEMENT LTD,5100275277,-1843.20,United Kingdom Atomic Energy Authority,United Kingdom Atomic Energy Authority
14/05/2012,PROFESSIONAL SERVICES,PROPERTY,GVA GRIMLEY,5100274662,25765.11,United Kingdom Atomic Energy Authority,United Kingdom Atomic Energy Authority
09/05/2012,TAXIS,FUSION,HAROLDS CARS,5100274275,-13.14,United Kingdom Atomic Energy Authority,United Kingdom Atomic Energy Authority
09/05/2012,TAXIS,FUSION,HAROLDS CARS,5100274854,443.84,United Kingdom Atomic Energy Authority,United Kingdom Atomic Energy Authority
21/05/2012,PLANT & EQUIPMENT,FUSION,HE,5100275253,128.41,United Kingdom Atomic Energy Authority,United Kingdom Atomic Energy Authority
14/05/2012,PLANT SPARES,FUSION,"HEATRIC, A DIVISION OF MEGGITT UK LTD",5100274889,10060.00,United Kingdom Atomic Energy Authority,United Kingdom Atomic Energy Authority
16/05/2012,PROFESSIONAL SERVICES,FUSION,HILLS WASTE SOLUTIONS LTD,5100274980,1285.00,United Kingdom Atomic Energy Authority,United Kingdom Atomic Energy Authority
16/05/2012,PROFESSIONAL SERVICES,FUSION,HILLS WASTE SOLUTIONS LTD,5100274981,1347.89,United Kingdom Atomic Energy Authority,United Kingdom Atomic Energy Authority
16/05/2012,PROFESSIONAL SERVICES,FUSION,HILLS WASTE SOLUTIONS LTD,5100274982,260.00,United Kingdom Atomic Energy Authority,United Kingdom Atomic Energy Authority
30/04/2012,MATERIALS & SPARES,FUSION,HONDA CONNECTORS,5100274560,204.00,United Kingdom Atomic Energy Authority,United Kingdom Atomic Energy Authority
23/05/2012,PROFESSIONAL SERVICES,SUPPORT SERVICES,HSE - FINANCIAL OPERATIONS,5100275348,744.69,United Kingdom Atomic Energy Authority,United Kingdom Atomic Energy Authority
04/05/2012,PROFESSIONAL SERVICES,SUPPORT SERVICES,Hutchinson & Buchanan,1900056885,4800.00,United Kingdom Atomic Energy Authority,United Kingdom Atomic Energy Authority
14/05/2012,PROFESSIONAL SERVICES,FUSION,HUTTON ENGINEERING (PRECISION) LTD,5100275098,1084.20,United Kingdom Atomic Energy Authority,United Kingdom Atomic Energy Authority
30/04/2012,MATERIALS & SPARES,FUSION,HV WOODING LIMITED,5100274621,196.80,United Kingdom Atomic Energy Authority,United Kingdom Atomic Energy Authority
01/05/2012,MATERIALS & SPARES,FUSION,Hydratron Ltd,1900056870,318.00,United Kingdom Atomic Energy Authority,United Kingdom Atomic Energy Authority
02/05/2012,PROFESSIONAL SERVICES,FUSION,HYTEC ELECTRONICS LTD,5100274566,591.44,United Kingdom Atomic Energy Authority,United Kingdom Atomic Energy Authority
23/05/2012,PROFESSIONAL SERVICES,SUPPORT SERVICES,IET SERVICES LIMITED,5100275390,2000.00,United Kingdom Atomic Energy Authority,United Kingdom Atomic Energy Authority
30/04/2012,MEDICAL EXPENSES,FUSION,IMASS LTD,5100274459,4543.75,United Kingdom Atomic Energy Authority,United Kingdom Atomic Energy Authority
30/04/2012,UNIVERSITY PLACEMENT,FUSION,IMPERIAL COLLEGE,5100274618,1646.00,United Kingdom Atomic Energy Authority,United Kingdom Atomic Energy Authority
21/05/2012,UNIVERSITY PLACEMENT,FUSION,IMPERIAL COLLEGE,5100275194,134.00,United Kingdom Atomic Energy Authority,United Kingdom Atomic Energy Authority
09/05/2012,MATERIALS & SPARES,FUSION,INCAA COMPUTERS BV,5100274040,1306.53,United Kingdom Atomic Energy Authority,United Kingdom Atomic Energy Authority
21/05/2012,SITE SUPPORT SERVICES,PROPERTY,INFOCASH LTD,5100275115,350.00,United Kingdom Atomic Energy Authority,United Kingdom Atomic Energy Authority
21/05/2012,SITE SUPPORT SERVICES,PROPERTY,INFOCASH LTD,5100275273,-200.00,United Kingdom Atomic Energy Authority,United Kingdom Atomic Energy Authority
30/04/2012,PROFESSIONAL SERVICES,FUSION,INSTITUTE OF CHEMICAL ENGINEERS,5100274461,639.00,United Kingdom Atomic Energy Authority,United Kingdom Atomic Energy Authority
30/04/2012,PROFESSIONAL SERVICES,FUSION,INSTITUTE OF CHEMICAL ENGINEERS,5100274463,490.00,United Kingdom Atomic Energy Authority,United Kingdom Atomic Energy Authority
16/05/2012,MATERIALS & SPARES,FUSION,INSTITUTO SUPERIOR TECHNICO,5100275058,230.95,United Kingdom Atomic Energy Authority,United Kingdom Atomic Energy Authority
30/04/2012,INTERVIEW EXPENSES,SUPPORT SERVICES,INTERVIEW EXPENSES,1900056866,10.40,United Kingdom Atomic Energy Authority,United Kingdom Atomic Energy Authority
03/05/2012,INTERVIEW EXPENSES,FUSION,INTERVIEW EXPENSES,1900056877,40.00,United Kingdom Atomic Energy Authority,United Kingdom Atomic Energy Authority
03/05/2012,INTERVIEW EXPENSES,FUSION,INTERVIEW EXPENSES,1900056878,19.15,United Kingdom Atomic Energy Authority,United Kingdom Atomic Energy Authority
18/05/2012,INTERVIEW EXPENSES,FUSION,INTERVIEW EXPENSES,1900056938,283.55,United Kingdom Atomic Energy Authority,United Kingdom Atomic Energy Authority
18/05/2012,INTERVIEW EXPENSES,FUSION,INTERVIEW EXPENSES,1900056939,270.65,United Kingdom Atomic Energy Authority,United Kingdom Atomic Energy Authority
09/05/2012,PUBLICATIONS,FUSION,IOP PUBLISHING LTD,5100274712,468.75,United Kingdom Atomic Energy Authority,United Kingdom Atomic Energy Authority
09/05/2012,PUBLICATIONS,FUSION,IOP PUBLISHING LTD,5100274852,375.00,United Kingdom Atomic Energy Authority,United Kingdom Atomic Energy Authority
09/05/2012,PUBLICATIONS,FUSION,IOP PUBLISHING LTD,5100274853,562.50,United Kingdom Atomic Energy Authority,United Kingdom Atomic Energy Authority
30/04/2012,FACILITIES MANAGEMENT,SUPPORT SERVICES,ISS FACILITIES SERVICES,5100274559,208.20,United Kingdom Atomic Energy Authority,United Kingdom Atomic Energy Authority
30/04/2012,MATERIALS & SPARES,FUSION,JAC TOOLS LTD,5100274525,180.66,United Kingdom Atomic Energy Authority,United Kingdom Atomic Energy Authority
30/04/2012,MATERIALS & SPARES,FUSION,JAC TOOLS LTD,5100274571,152.09,United Kingdom Atomic Energy Authority,United Kingdom Atomic Energy Authority
09/05/2012,MATERIALS & SPARES,FUSION,JAC TOOLS LTD,5100274770,48.09,United Kingdom Atomic Energy Authority,United Kingdom Atomic Energy Authority
04/05/2012,COMPENSATION,SUPPORT SERVICES,COMPENSATION CLAIMANT,1900056887,2068.00,United Kingdom Atomic Energy Authority,United Kingdom Atomic Energy Authority
30/04/2012,PROFESSIONAL SERVICES,PROPERTY,KEMP & KEMP,5100274568,1500.00,United Kingdom Atomic Energy Authority,United Kingdom Atomic Energy Authority
30/04/2012,PLANT & EQUIPMENT,FUSION,KENNAMETAL SINTEC,5100274460,1415.60,United Kingdom Atomic Energy Authority,United Kingdom Atomic Energy Authority
09/05/2012,LEGAL FEES,SUPPORT SERVICES,KEOGHS,5100274674,496.00,United Kingdom Atomic Energy Authority,United Kingdom Atomic Energy Authority
09/05/2012,LEGAL FEES,SUPPORT SERVICES,KEOGHS,5100274675,448.00,United Kingdom Atomic Energy Authority,United Kingdom Atomic Energy Authority
09/05/2012,LEGAL FEES,SUPPORT SERVICES,KEOGHS,5100274856,576.00,United Kingdom Atomic Energy Authority,United Kingdom Atomic Energy Authority
09/05/2012,LEGAL FEES,SUPPORT SERVICES,KEOGHS,5100274858,176.00,United Kingdom Atomic Energy Authority,United Kingdom Atomic Energy Authority
09/05/2012,LEGAL FEES,SUPPORT SERVICES,KEOGHS,5100274861,160.00,United Kingdom Atomic Energy Authority,United Kingdom Atomic Energy Authority
21/05/2012,LEGAL FEES,SUPPORT SERVICES,KEOGHS,5100275380,480.00,United Kingdom Atomic Energy Authority,United Kingdom Atomic Energy Authority
21/05/2012,LEGAL FEES,SUPPORT SERVICES,KEOGHS,5100275381,208.00,United Kingdom Atomic Energy Authority,United Kingdom Atomic Energy Authority
21/05/2012,LEGAL FEES,SUPPORT SERVICES,KEOGHS,5100275382,384.00,United Kingdom Atomic Energy Authority,United Kingdom Atomic Energy Authority
21/05/2012,LEGAL FEES,SUPPORT SERVICES,KEOGHS,5100275383,288.00,United Kingdom Atomic Energy Authority,United Kingdom Atomic Energy Authority
09/05/2012,LEGAL FEES,SUPPORT SERVICES,KEOGHS,5100274862,224.00,United Kingdom Atomic Energy Authority,United Kingdom Atomic Energy Authority
21/05/2012,LEGAL FEES,SUPPORT SERVICES,KEOGHS,5100275384,160.00,United Kingdom Atomic Energy Authority,United Kingdom Atomic Energy Authority
30/04/2012,PLANT & EQUIPMENT REPAIR,FUSION,KERRCO AUTOMATION LTD,5100274469,964.50,United Kingdom Atomic Energy Authority,United Kingdom Atomic Energy Authority
14/05/2012,MATERIALS & SPARES,FUSION,KEY INDUSTRIAL EQUIPMENT LTD,5100275099,297.00,United Kingdom Atomic Energy Authority,United Kingdom Atomic Energy Authority
09/05/2012,MATERIALS & SPARES,PROPERTY,KEY INDUSTRIAL EQUIPMENT LTD,5100274661,56.80,United Kingdom Atomic Energy Authority,United Kingdom Atomic Energy Authority
14/05/2012,PRINTING & GRAPHICS,FUSION,KIP UK SERVICE CENTRE,5100275052,327.62,United Kingdom Atomic Energy Authority,United Kingdom Atomic Energy Authority
14/05/2012,PROFESSIONAL SERVICES,FUSION,KITSONS ENVIRONMENTAL EUROPE LTD,5100275057,4092.22,United Kingdom Atomic Energy Authority,United Kingdom Atomic Energy Authority
21/05/2012,PROFESSIONAL SERVICES,PROPERTY,KITSONS ENVIRONMENTAL EUROPE LTD,5100275190,1116.56,United Kingdom Atomic Energy Authority,United Kingdom Atomic Energy Authority
14/05/2012,PROFESSIONAL SERVICES,PROPERTY,KITSONS ENVIRONMENTAL EUROPE LTD,5100275053,10575.84,United Kingdom Atomic Energy Authority,United Kingdom Atomic Energy Authority
14/05/2012,PROFESSIONAL SERVICES,PROPERTY,KITSONS ENVIRONMENTAL EUROPE LTD,5100275054,12291.13,United Kingdom Atomic Energy Authority,United Kingdom Atomic Energy Authority
14/05/2012,PROFESSIONAL SERVICES,PROPERTY,KITSONS ENVIRONMENTAL EUROPE LTD,5100275055,8661.89,United Kingdom Atomic Energy Authority,United Kingdom Atomic Energy Authority
14/05/2012,PROFESSIONAL SERVICES,PROPERTY,KITSONS ENVIRONMENTAL EUROPE LTD,5100275056,5422.60,United Kingdom Atomic Energy Authority,United Kingdom Atomic Energy Authority
21/05/2012,PROFESSIONAL SERVICES,PROPERTY,KITSONS ENVIRONMENTAL EUROPE LTD,5100275191,7390.21,United Kingdom Atomic Energy Authority,United Kingdom Atomic Energy Authority
30/04/2012,PLANT SPARES,FUSION,KNIGHT OPTICAL UK LTD,5100274617,285.34,United Kingdom Atomic Energy Authority,United Kingdom Atomic Energy Authority
23/05/2012,BUILDING REPAIRS,PROPERTY,KNOWLES & SONS (OXFORD) LTD,5100275116,14374.87,United Kingdom Atomic Energy Authority,United Kingdom Atomic Energy Authority
14/05/2012,BUILDING REPAIRS,PROPERTY,KNOWLES & SONS (OXFORD) LTD,5100275120,-106.59,United Kingdom Atomic Energy Authority,United Kingdom Atomic Energy Authority
23/05/2012,BUILDING REPAIRS,PROPERTY,KNOWLES & SONS (OXFORD) LTD,5100275310,1737.76,United Kingdom Atomic Energy Authority,United Kingdom Atomic Energy Authority
23/05/2012,BUILDING REPAIRS,PROPERTY,KNOWLES & SONS (OXFORD) LTD,5100275311,-389.08,United Kingdom Atomic Energy Authority,United Kingdom Atomic Energy Authority
23/05/2012,BUILDING REPAIRS,PROPERTY,KNOWLES & SONS (OXFORD) LTD,5100275312,-1572.20,United Kingdom Atomic Energy Authority,United Kingdom Atomic Energy Authority
23/05/2012,BUILDING REPAIRS,PROPERTY,KNOWLES & SONS (OXFORD) LTD,5100275313,-180.88,United Kingdom Atomic Energy Authority,United Kingdom Atomic Energy Authority
23/05/2012,BUILDING REPAIRS,PROPERTY,KNOWLES & SONS (OXFORD) LTD,5100275314,-157.57,United Kingdom Atomic Energy Authority,United Kingdom Atomic Energy Authority
14/05/2012,BUILDING REPAIRS,SUPPORT SERVICES,KNOWLES & SONS (OXFORD) LTD,5100275117,389.08,United Kingdom Atomic Energy Authority,United Kingdom Atomic Energy Authority
09/05/2012,DESIGN & CONSTRUCTION,FUSION,KRISCO ENGINEERING LTD,5100274658,1952.90,United Kingdom Atomic Energy Authority,United Kingdom Atomic Energy Authority
02/05/2012,MATERIALS & SPARES,FUSION,K-TECH SUPPLIES LTD,5100274570,92.30,United Kingdom Atomic Energy Authority,United Kingdom Atomic Energy Authority
30/04/2012,MATERIALS & SPARES,FUSION,KURT J LESKER,5100274449,183.70,United Kingdom Atomic Energy Authority,United Kingdom Atomic Energy Authority
09/05/2012,MATERIALS & SPARES,FUSION,KURT J LESKER,5100274894,134.90,United Kingdom Atomic Energy Authority,United Kingdom Atomic Energy Authority
14/05/2012,MATERIALS & SPARES,FUSION,KURT J LESKER,5100274946,165.30,United Kingdom Atomic Energy Authority,United Kingdom Atomic Energy Authority
09/05/2012,MATERIALS & SPARES,FUSION,LABCAL LTD,5100274668,210.00,United Kingdom Atomic Energy Authority,United Kingdom Atomic Energy Authority
17/05/2012,COMPENSATION AND LEGAL FEES,SUPPORT SERVICES,Lamport Bassitt,1900056918,10214.10,United Kingdom Atomic Energy Authority,United Kingdom Atomic Energy Authority
09/05/2012,PLANT & EQUIPMENT,FUSION,LC AUTOMATION LTD,5100274670,550.00,United Kingdom Atomic Energy Authority,United Kingdom Atomic Energy Authority
30/04/2012,CAR HIRE,SUPPORT SERVICES,LEASE PLAN UK LTD,5100274396,464.50,United Kingdom Atomic Energy Authority,United Kingdom Atomic Energy Authority
09/05/2012,CAR HIRE,FUSION,LEASEDRIVE VELO,5100274683,37.74,United Kingdom Atomic Energy Authority,United Kingdom Atomic Energy Authority
21/05/2012,CAR HIRE,FUSION,LEASEDRIVE VELO,5100275374,36.44,United Kingdom Atomic Energy Authority,United Kingdom Atomic Energy Authority
21/05/2012,CAR HIRE,FUSION,LEASEDRIVE VELO,5100275392,9.83,United Kingdom Atomic Energy Authority,United Kingdom Atomic Energy Authority
14/05/2012,CAR HIRE,FUSION,LEASEDRIVE VELO,5100274959,36.44,United Kingdom Atomic Energy Authority,United Kingdom Atomic Energy Authority
16/05/2012,CAR HIRE,FUSION,LEASEDRIVE VELO,5100275146,82.14,United Kingdom Atomic Energy Authority,United Kingdom Atomic Energy Authority
21/05/2012,CAR HIRE,FUSION,LEASEDRIVE VELO,5100275307,36.44,United Kingdom Atomic Energy Authority,United Kingdom Atomic Energy Authority
09/05/2012,CAR HIRE,FUSION,LEASEDRIVE VELO,5100274680,36.44,United Kingdom Atomic Energy Authority,United Kingdom Atomic Energy Authority
14/05/2012,CAR HIRE,FUSION,LEASEDRIVE VELO,5100274950,6.69,United Kingdom Atomic Energy Authority,United Kingdom Atomic Energy Authority
09/05/2012,CAR HIRE,FUSION,LEASEDRIVE VELO,5100274682,76.57,United Kingdom Atomic Energy Authority,United Kingdom Atomic Energy Authority
21/05/2012,CAR HIRE,FUSION,LEASEDRIVE VELO,5100275393,87.94,United Kingdom Atomic Energy Authority,United Kingdom Atomic Energy Authority
09/05/2012,CAR HIRE,FUSION,LEASEDRIVE VELO,5100274681,36.44,United Kingdom Atomic Energy Authority,United Kingdom Atomic Energy Authority
16/05/2012,CAR HIRE,FUSION,LEASEDRIVE VELO,5100275147,82.14,United Kingdom Atomic Energy Authority,United Kingdom Atomic Energy Authority
30/04/2012,PLANT & EQUIPMENT,FUSION,LEMO UK LTD,5100274446,104.00,United Kingdom Atomic Energy Authority,United Kingdom Atomic Energy Authority
21/05/2012,PLANT & EQUIPMENT,FUSION,LEMO UK LTD,5100275304,52.20,United Kingdom Atomic Energy Authority,United Kingdom Atomic Energy Authority
21/05/2012,PLANT & EQUIPMENT,FUSION,LEMO UK LTD,5100275195,800.38,United Kingdom Atomic Energy Authority,United Kingdom Atomic Energy Authority
14/05/2012,PLANT & EQUIPMENT,FUSION,LENZE LTD,5100275138,1390.32,United Kingdom Atomic Energy Authority,United Kingdom Atomic Energy Authority
17/05/2012,ROAD TRAVEL,FUSION,INTERVIEW EXPENSES,1900056926,52.00,United Kingdom Atomic Energy Authority,United Kingdom Atomic Energy Authority
16/05/2012,BOOKS & PUBLICATIONS,SUPPORT SERVICES,LEXIS NEXIS BUTTERWORTHS,5100274850,426.45,United Kingdom Atomic Energy Authority,United Kingdom Atomic Energy Authority
14/05/2012,PROFESSIONAL SERVICES,SUPPORT SERVICES,LOGICA CMG UK LTD,5100274735,2398.20,United Kingdom Atomic Energy Authority,United Kingdom Atomic Energy Authority
04/05/2012,VISITOR EXPENSES,FUSION,VISITOR EXPENSES,1900056883,1001.28,United Kingdom Atomic Energy Authority,United Kingdom Atomic Energy Authority
23/05/2012,BUILDING REPAIRS,FUSION,LORNE STEWART PLC,5100274796,668.91,United Kingdom Atomic Energy Authority,United Kingdom Atomic Energy Authority
23/05/2012,BUILDING REPAIRS,FUSION,LORNE STEWART PLC,5100274790,1529.91,United Kingdom Atomic Energy Authority,United Kingdom Atomic Energy Authority
23/05/2012,BUILDING REPAIRS,FUSION,LORNE STEWART PLC,5100274780,19010.46,United Kingdom Atomic Energy Authority,United Kingdom Atomic Energy Authority
23/05/2012,BUILDING REPAIRS,FUSION,LORNE STEWART PLC,5100274800,10686.83,United Kingdom Atomic Energy Authority,United Kingdom Atomic Energy Authority
23/05/2012,BUILDING REPAIRS,FUSION,LORNE STEWART PLC,5100274792,2769.71,United Kingdom Atomic Energy Authority,United Kingdom Atomic Energy Authority
23/05/2012,BUILDING REPAIRS,FUSION,LORNE STEWART PLC,5100274794,1188.00,United Kingdom Atomic Energy Authority,United Kingdom Atomic Energy Authority
23/05/2012,BUILDING REPAIRS,PROPERTY,LORNE STEWART PLC,5100274777,13939.72,United Kingdom Atomic Energy Authority,United Kingdom Atomic Energy Authority
23/05/2012,BUILDING REPAIRS,PROPERTY,LORNE STEWART PLC,5100274799,18278.02,United Kingdom Atomic Energy Authority,United Kingdom Atomic Energy Authority
23/05/2012,BUILDING REPAIRS,PROPERTY,LORNE STEWART PLC,5100274791,724.18,United Kingdom Atomic Energy Authority,United Kingdom Atomic Energy Authority
23/05/2012,BUILDING REPAIRS,PROPERTY,LORNE STEWART PLC,5100274776,4182.36,United Kingdom Atomic Energy Authority,United Kingdom Atomic Energy Authority
23/05/2012,BUILDING REPAIRS,PROPERTY,LORNE STEWART PLC,5100274797,6076.59,United Kingdom Atomic Energy Authority,United Kingdom Atomic Energy Authority
23/05/2012,BUILDING REPAIRS,PROPERTY,LORNE STEWART PLC,5100274793,367.51,United Kingdom Atomic Energy Authority,United Kingdom Atomic Energy Authority
23/05/2012,BUILDING REPAIRS,PROPERTY,LORNE STEWART PLC,5100274795,2179.54,United Kingdom Atomic Energy Authority,United Kingdom Atomic Energy Authority
23/05/2012,BUILDING REPAIRS,PROPERTY,LORNE STEWART PLC,5100274785,16254.66,United Kingdom Atomic Energy Authority,United Kingdom Atomic Energy Authority
14/05/2012,STATIONERY,SUPPORT SERVICES,LYRECO UK LIMITED,5100275153,110.50,United Kingdom Atomic Energy Authority,United Kingdom Atomic Energy Authority
30/04/2012,STATIONERY,FUSION,LYRECO UK LIMITED,5100274562,43.00,United Kingdom Atomic Energy Authority,United Kingdom Atomic Energy Authority
30/04/2012,STATIONERY,FUSION,LYRECO UK LIMITED,5100274563,213.58,United Kingdom Atomic Energy Authority,United Kingdom Atomic Energy Authority
30/04/2012,STATIONERY,FUSION,LYRECO UK LIMITED,5100274564,277.84,United Kingdom Atomic Energy Authority,United Kingdom Atomic Energy Authority
09/05/2012,STATIONERY,FUSION,LYRECO UK LIMITED,5100274768,271.15,United Kingdom Atomic Energy Authority,United Kingdom Atomic Energy Authority
09/05/2012,STATIONERY,FUSION,LYRECO UK LIMITED,5100274769,448.75,United Kingdom Atomic Energy Authority,United Kingdom Atomic Energy Authority
14/05/2012,STATIONERY,FUSION,LYRECO UK LIMITED,5100275148,12.30,United Kingdom Atomic Energy Authority,United Kingdom Atomic Energy Authority
14/05/2012,STATIONERY,FUSION,LYRECO UK LIMITED,5100275150,288.81,United Kingdom Atomic Energy Authority,United Kingdom Atomic Energy Authority
14/05/2012,STATIONERY,FUSION,LYRECO UK LIMITED,5100275152,369.13,United Kingdom Atomic Energy Authority,United Kingdom Atomic Energy Authority
21/05/2012,STATIONERY,FUSION,LYRECO UK LIMITED,5100275309,176.12,United Kingdom Atomic Energy Authority,United Kingdom Atomic Energy Authority
21/05/2012,PLANT & EQUIPMENT,PROPERTY,M K SCALES LTD,5100274818,182.90,United Kingdom Atomic Energy Authority,United Kingdom Atomic Energy Authority
30/04/2012,PROFESSIONAL SERVICES,FUSION,M&D ELECTRONICS LTD,5100274484,885.00,United Kingdom Atomic Energy Authority,United Kingdom Atomic Energy Authority
09/05/2012,IT EQUIPMENT NON CAPITAL,SUPPORT SERVICES,MAAINTECH,5100274573,4009.00,United Kingdom Atomic Energy Authority,United Kingdom Atomic Energy Authority
02/05/2012,PROFESSIONAL SERVICES,FUSION,MARCHAM SCIENTIFIC LTD,5100274693,3250.00,United Kingdom Atomic Energy Authority,United Kingdom Atomic Energy Authority
30/04/2012,MATERIALS & SPARES,FUSION,MARK 5,5100274541,31.74,United Kingdom Atomic Energy Authority,United Kingdom Atomic Energy Authority
14/05/2012,MATERIALS & SPARES,FUSION,MARK 5,5100275006,110.00,United Kingdom Atomic Energy Authority,United Kingdom Atomic Energy Authority
21/05/2012,MATERIALS & SPARES,FUSION,MARK 5,5100275291,120.65,United Kingdom Atomic Energy Authority,United Kingdom Atomic Energy Authority
30/04/2012,INSURANCE,SUPPORT SERVICES,MARSH UK LIMITED,5100274296,-2250.00,United Kingdom Atomic Energy Authority,United Kingdom Atomic Energy Authority
02/05/2012,INSURANCE,SUPPORT SERVICES,MARSH UK LIMITED,5100274742,78085.96,United Kingdom Atomic Energy Authority,United Kingdom Atomic Energy Authority
02/05/2012,INSURANCE,SUPPORT SERVICES,MARSH UK LIMITED,5100274743,229430.06,United Kingdom Atomic Energy Authority,United Kingdom Atomic Energy Authority
02/05/2012,INSURANCE,SUPPORT SERVICES,MARSH UK LIMITED,5100274744,201460.42,United Kingdom Atomic Energy Authority,United Kingdom Atomic Energy Authority
02/05/2012,INSURANCE,SUPPORT SERVICES,MARSH UK LIMITED,5100274747,1590.00,United Kingdom Atomic Energy Authority,United Kingdom Atomic Energy Authority
02/05/2012,INSURANCE,SUPPORT SERVICES,MARSH UK LIMITED,5100274748,4685.20,United Kingdom Atomic Energy Authority,United Kingdom Atomic Energy Authority
02/05/2012,INSURANCE,SUPPORT SERVICES,MARSH UK LIMITED,5100274749,5268.20,United Kingdom Atomic Energy Authority,United Kingdom Atomic Energy Authority
14/05/2012,INSURANCE,SUPPORT SERVICES,MARSH UK LIMITED,5100275181,18500.00,United Kingdom Atomic Energy Authority,United Kingdom Atomic Energy Authority
09/05/2012,MATERIALS & SPARES,FUSION,MASSEY COLDBECK ENGINEERING LTD,5100274808,1106.96,United Kingdom Atomic Energy Authority,United Kingdom Atomic Energy Authority
30/04/2012,PROFESSIONAL SERVICES,FUSION,MATERIAL MEASUREMENTS LTD.,5100274421,169.95,United Kingdom Atomic Energy Authority,United Kingdom Atomic Energy Authority
30/04/2012,PROFESSIONAL SERVICES,FUSION,MATERIAL MEASUREMENTS LTD.,5100274438,179.95,United Kingdom Atomic Energy Authority,United Kingdom Atomic Energy Authority
30/04/2012,PROFESSIONAL SERVICES,FUSION,MATERIAL MEASUREMENTS LTD.,5100274439,161.75,United Kingdom Atomic Energy Authority,United Kingdom Atomic Energy Authority
30/04/2012,PROFESSIONAL SERVICES,FUSION,MATERIAL MEASUREMENTS LTD.,5100274440,161.75,United Kingdom Atomic Energy Authority,United Kingdom Atomic Energy Authority
09/05/2012,PROFESSIONAL SERVICES,FUSION,MAX PLANCK,5100274331,13315.46,United Kingdom Atomic Energy Authority,United Kingdom Atomic Energy Authority
09/05/2012,PROFESSIONAL SERVICES,FUSION,MAX PLANCK,5100274332,9949.39,United Kingdom Atomic Energy Authority,United Kingdom Atomic Energy Authority
09/05/2012,PROFESSIONAL SERVICES,FUSION,MAX PLANCK,5100274340,13111.65,United Kingdom Atomic Energy Authority,United Kingdom Atomic Energy Authority
09/05/2012,PROFESSIONAL SERVICES,FUSION,MAX PLANCK,5100274341,9931.64,United Kingdom Atomic Energy Authority,United Kingdom Atomic Energy Authority
09/05/2012,PROFESSIONAL SERVICES,FUSION,MAX PLANCK,5100274342,7112.35,United Kingdom Atomic Energy Authority,United Kingdom Atomic Energy Authority
09/05/2012,PROFESSIONAL SERVICES,PROPERTY,MCBAINS COOPER,5100274783,1417.84,United Kingdom Atomic Energy Authority,United Kingdom Atomic Energy Authority
09/05/2012,PROFESSIONAL SERVICES,SUPPORT SERVICES,MCBAINS COOPER,5100274784,825.05,United Kingdom Atomic Energy Authority,United Kingdom Atomic Energy Authority
21/05/2012,MATERIALS & SPARES,FUSION,MEDLINE SCIENTIFIC LTD,5100275292,84.74,United Kingdom Atomic Energy Authority,United Kingdom Atomic Energy Authority
09/05/2012,PLANT SPARES,FUSION,MERSEN UK PORTSLADE LTD,5100274775,627.84,United Kingdom Atomic Energy Authority,United Kingdom Atomic Energy Authority
30/04/2012,MATERIALS & SPARES,FUSION,METALFAST (A DIVISION OF,5100274450,187.00,United Kingdom Atomic Energy Authority,United Kingdom Atomic Energy Authority
21/05/2012,MATERIALS & SPARES,FUSION,METALFAST (A DIVISION OF,5100275282,427.00,United Kingdom Atomic Energy Authority,United Kingdom Atomic Energy Authority
21/05/2012,MATERIALS & SPARES,FUSION,METALFAST (A DIVISION OF,5100275284,50.00,United Kingdom Atomic Energy Authority,United Kingdom Atomic Energy Authority
21/05/2012,MATERIALS & SPARES,FUSION,METALFAST (A DIVISION OF,5100275283,133.00,United Kingdom Atomic Energy Authority,United Kingdom Atomic Energy Authority
30/04/2012,MATERIALS & SPARES,FUSION,METALFAST (A DIVISION OF,5100274598,152.00,United Kingdom Atomic Energy Authority,United Kingdom Atomic Energy Authority
30/04/2012,MATERIALS & SPARES,FUSION,METALFAST (A DIVISION OF,5100274599,149.80,United Kingdom Atomic Energy Authority,United Kingdom Atomic Energy Authority
09/05/2012,PROFESSIONAL SERVICES,FUSION,METRO ENGINEERING AND PLATING WORKS,5100274754,550.00,United Kingdom Atomic Energy Authority,United Kingdom Atomic Energy Authority
09/05/2012,MATERIALS & SPARES,FUSION,METSPIN LTD,5100274841,261.50,United Kingdom Atomic Energy Authority,United Kingdom Atomic Energy Authority
21/05/2012,PLANT & EQUIPMENT,FUSION,MF HYDRAULICS LTD,5100275286,150.76,United Kingdom Atomic Energy Authority,United Kingdom Atomic Energy Authority
16/05/2012,PROFESSIONAL SERVICES,FUSION,MICROLEASE PLC,5100275107,538.00,United Kingdom Atomic Energy Authority,United Kingdom Atomic Energy Authority
14/05/2012,PROFESSIONAL SERVICES,FUSION,MICROLEASE PLC,5100275108,325.00,United Kingdom Atomic Energy Authority,United Kingdom Atomic Energy Authority
11/05/2012,MATERIALS & SPARES,FUSION,MIGHTEX SYSTEMS,5100275151,-1896.18,United Kingdom Atomic Energy Authority,United Kingdom Atomic Energy Authority
11/05/2012,MATERIALS & SPARES,FUSION,MIGHTEX SYSTEMS,5100275154,1896.18,United Kingdom Atomic Energy Authority,United Kingdom Atomic Energy Authority
09/05/2012,PLANT & EQUIPMENT,FUSION,MILLHILL TOOLS LTD,5100274880,52.33,United Kingdom Atomic Energy Authority,United Kingdom Atomic Energy Authority
09/05/2012,PLANT & EQUIPMENT,FUSION,MILLHILL TOOLS LTD,5100274881,17.47,United Kingdom Atomic Energy Authority,United Kingdom Atomic Energy Authority
09/05/2012,PLANT & EQUIPMENT,FUSION,MILLHILL TOOLS LTD,5100274882,80.33,United Kingdom Atomic Energy Authority,United Kingdom Atomic Energy Authority
16/05/2012,REPAIRS & MAINTENANCE,FUSION,MIMER INFORMATION TECHNOLOGY AB,5100274523,4264.00,United Kingdom Atomic Energy Authority,United Kingdom Atomic Energy Authority
21/05/2012,MATERIALS & SPARES,FUSION,MINI-CIRCUITS EUROPE,5100275268,7012.74,United Kingdom Atomic Energy Authority,United Kingdom Atomic Energy Authority
08/05/2012,SUBSISTENCE,FUSION,VISITOR EXPENSES,1900056888,573.80,United Kingdom Atomic Energy Authority,United Kingdom Atomic Energy Authority
14/05/2012,PLANT & EQUIPMENT,FUSION,MOOG CONTROLS LTD,5100274995,333.10,United Kingdom Atomic Energy Authority,United Kingdom Atomic Energy Authority
30/04/2012,HIRED STAFF,FUSION,MORSON INTERNATIONAL,5100274636,185921.96,United Kingdom Atomic Energy Authority,United Kingdom Atomic Energy Authority
09/05/2012,TRAINING COURSE FEES,FUSION,NAFEMS LTD,5100274397,745.00,United Kingdom Atomic Energy Authority,United Kingdom Atomic Energy Authority
09/05/2012,ELECTRICITY,FUSION,NATIONAL GRID TRANSCO,5100274657,3412.84,United Kingdom Atomic Energy Authority,United Kingdom Atomic Energy Authority
09/05/2012,PLANT & EQUIPMENT,FUSION,NATIONAL INSTRUMENTS LTD,5100274937,200.00,United Kingdom Atomic Energy Authority,United Kingdom Atomic Energy Authority
09/05/2012,PLANT & EQUIPMENT,FUSION,NATIONAL INSTRUMENTS LTD,5100274938,170.00,United Kingdom Atomic Energy Authority,United Kingdom Atomic Energy Authority
09/05/2012,PLANT & EQUIPMENT,FUSION,NATIONAL INSTRUMENTS LTD,5100274939,368.82,United Kingdom Atomic Energy Authority,United Kingdom Atomic Energy Authority
09/05/2012,PLANT & EQUIPMENT,FUSION,NATIONAL INSTRUMENTS LTD,5100274887,579.80,United Kingdom Atomic Energy Authority,United Kingdom Atomic Energy Authority
23/05/2012,MATERIALS & SPARES,FUSION,NEW FOREST INSTRUMENTS LTD,5100275435,750.00,United Kingdom Atomic Energy Authority,United Kingdom Atomic Energy Authority
30/04/2012,PLANT & EQUIPMENT,FUSION,NEW PIG LTD,5100274545,29.83,United Kingdom Atomic Energy Authority,United Kingdom Atomic Energy Authority
30/04/2012,PLANT & EQUIPMENT,FUSION,NEW PIG LTD,5100274454,526.05,United Kingdom Atomic Energy Authority,United Kingdom Atomic Energy Authority
21/05/2012,MATERIALS & SPARES,FUSION,NEWBURY ELECTRONICS,5100275203,181.60,United Kingdom Atomic Energy Authority,United Kingdom Atomic Energy Authority
14/05/2012,MATERIALS & SPARES,FUSION,NEWBURY ELECTRONICS,5100274973,239.32,United Kingdom Atomic Energy Authority,United Kingdom Atomic Energy Authority
30/04/2012,MATERIALS & SPARES,FUSION,NEWBURY ELECTRONICS,5100274451,55.48,United Kingdom Atomic Energy Authority,United Kingdom Atomic Energy Authority
21/05/2012,MATERIALS & SPARES,FUSION,NEWBURY ELECTRONICS,5100275199,195.22,United Kingdom Atomic Energy Authority,United Kingdom Atomic Energy Authority
21/05/2012,MATERIALS & SPARES,FUSION,NEWBURY ELECTRONICS,5100275306,81.68,United Kingdom Atomic Energy Authority,United Kingdom Atomic Energy Authority
09/05/2012,MATERIALS & SPARES,FUSION,NEWBURY ELECTRONICS,5100274665,111.98,United Kingdom Atomic Energy Authority,United Kingdom Atomic Energy Authority
02/05/2012,MATERIALS & SPARES,FUSION,NEWCASTLE OPTICAL ENGINEERING LTD,5100274567,374.90,United Kingdom Atomic Energy Authority,United Kingdom Atomic Energy Authority
09/05/2012,MATERIALS & SPARES,FUSION,NEWCASTLE OPTICAL ENGINEERING LTD,5100274672,247.90,United Kingdom Atomic Energy Authority,United Kingdom Atomic Energy Authority
09/05/2012,MATERIALS & SPARES,FUSION,NEWCASTLE OPTICAL ENGINEERING LTD,5100274673,416.90,United Kingdom Atomic Energy Authority,United Kingdom Atomic Energy Authority
21/05/2012,MATERIALS & SPARES,FUSION,NEWCASTLE OPTICAL ENGINEERING LTD,5100275141,81.50,United Kingdom Atomic Energy Authority,United Kingdom Atomic Energy Authority
30/04/2012,PLANT & EQUIPMENT,FUSION,NEWPORT SPECTRA-PHYSICS LTD,5100274622,460.00,United Kingdom Atomic Energy Authority,United Kingdom Atomic Energy Authority
11/05/2012,INTERVIEW EXPENSES,FUSION,INTERVIEW EXPENSES,1900056898,211.73,United Kingdom Atomic Energy Authority,United Kingdom Atomic Energy Authority
21/05/2012,PLANT & EQUIPMENT,FUSION,NORBAR TORQUE TOOLS LTD,5100275139,693.21,United Kingdom Atomic Energy Authority,United Kingdom Atomic Energy Authority
16/05/2012,PLANT & EQUIPMENT,FUSION,NORBAR TORQUE TOOLS LTD,5100275140,301.93,United Kingdom Atomic Energy Authority,United Kingdom Atomic Energy Authority
09/05/2012,PLANT & EQUIPMENT,FUSION,NOR-CAL UK LTD,5100274660,128.50,United Kingdom Atomic Energy Authority,United Kingdom Atomic Energy Authority
14/05/2012,PROFESSIONAL SERVICES,PROPERTY,NOVUS ENVIRONMENTAL,5100274942,18.50,United Kingdom Atomic Energy Authority,United Kingdom Atomic Energy Authority
23/05/2012,MATERIALS & SPARES,FUSION,NTG NEUE TECHNOLOGIEN,5100275050,5200.33,United Kingdom Atomic Energy Authority,United Kingdom Atomic Energy Authority
09/05/2012,HEALTH PHYSICS,FUSION,NUVIA LIMITED,5100274838,16042.01,United Kingdom Atomic Energy Authority,United Kingdom Atomic Energy Authority
23/05/2012,HEALTH PHYSICS,SUPPORT SERVICES,NUVIA LIMITED,5100275201,1813.00,United Kingdom Atomic Energy Authority,United Kingdom Atomic Energy Authority
30/04/2012,CLEANING,FUSION,OCS CLEANING & SUPPORT SERVICES,5100274475,9.08,United Kingdom Atomic Energy Authority,United Kingdom Atomic Energy Authority
30/04/2012,CLEANING,FUSION,OCS CLEANING & SUPPORT SERVICES,5100274477,9.52,United Kingdom Atomic Energy Authority,United Kingdom Atomic Energy Authority
30/04/2012,CLEANING,PROPERTY,OCS CLEANING & SUPPORT SERVICES,5100274473,856.40,United Kingdom Atomic Energy Authority,United Kingdom Atomic Energy Authority
30/04/2012,CLEANING,PROPERTY,OCS CLEANING & SUPPORT SERVICES,5100274479,27785.25,United Kingdom Atomic Energy Authority,United Kingdom Atomic Energy Authority
09/05/2012,CLEANING,PROPERTY,OCS CLEANING & SUPPORT SERVICES,5100274900,-730.00,United Kingdom Atomic Energy Authority,United Kingdom Atomic Energy Authority
09/05/2012,CLEANING,PROPERTY,OCS CLEANING & SUPPORT SERVICES,5100274901,5174.25,United Kingdom Atomic Energy Authority,United Kingdom Atomic Energy Authority
16/05/2012,MATERIALS & SPARES,FUSION,OERLIKON LEYBOLD VACUUM UK LTD,5100275155,2730.47,United Kingdom Atomic Energy Authority,United Kingdom Atomic Energy Authority
21/05/2012,MATERIALS & SPARES,FUSION,OERLIKON LEYBOLD VACUUM UK LTD,5100275192,1911.50,United Kingdom Atomic Energy Authority,United Kingdom Atomic Energy Authority
23/05/2012,MATERIALS & SPARES,FUSION,OERLIKON LEYBOLD VACUUM UK LTD,5100275388,48987.62,United Kingdom Atomic Energy Authority,United Kingdom Atomic Energy Authority
09/05/2012,MATERIALS & SPARES,FUSION,OERLIKON LEYBOLD VACUUM UK LTD,5100274721,480.50,United Kingdom Atomic Energy Authority,United Kingdom Atomic Energy Authority
16/05/2012,PROFESSIONAL SERVICES,FUSION,OHES ENNVIRONMENTAL LTD,5100275111,2903.60,United Kingdom Atomic Energy Authority,United Kingdom Atomic Energy Authority
16/05/2012,MATERIALS & SPARES,FUSION,OPENXTRA LIMITED,5100275074,107.00,United Kingdom Atomic Energy Authority,United Kingdom Atomic Energy Authority
09/05/2012,MATERIALS & SPARES,FUSION,OXFORD BOLTS & BEARINGS,5100274677,210.60,United Kingdom Atomic Energy Authority,United Kingdom Atomic Energy Authority
09/05/2012,MATERIALS & SPARES,FUSION,OXFORD BOLTS & BEARINGS,5100274679,146.32,United Kingdom Atomic Energy Authority,United Kingdom Atomic Energy Authority
09/05/2012,MATERIALS & SPARES,FUSION,OXFORD BOLTS & BEARINGS,5100274766,25.00,United Kingdom Atomic Energy Authority,United Kingdom Atomic Energy Authority
09/05/2012,MATERIALS & SPARES,FUSION,OXFORD BOLTS & BEARINGS,5100274846,317.14,United Kingdom Atomic Energy Authority,United Kingdom Atomic Energy Authority
21/05/2012,MATERIALS & SPARES,FUSION,OXFORD BOLTS & BEARINGS,5100275293,146.00,United Kingdom Atomic Energy Authority,United Kingdom Atomic Energy Authority
09/05/2012,MATERIALS & SPARES,FUSION,OXFORD BOLTS & BEARINGS,5100274678,364.00,United Kingdom Atomic Energy Authority,United Kingdom Atomic Energy Authority
09/05/2012,MATERIALS & SPARES,FUSION,OXFORD BOLTS & BEARINGS,5100274848,66.78,United Kingdom Atomic Energy Authority,United Kingdom Atomic Energy Authority
09/05/2012,MATERIALS & SPARES,FUSION,OXFORD BOLTS & BEARINGS,5100274676,275.95,United Kingdom Atomic Energy Authority,United Kingdom Atomic Energy Authority
09/05/2012,MATERIALS & SPARES,FUSION,OXFORD BOLTS & BEARINGS,5100274845,5.85,United Kingdom Atomic Energy Authority,United Kingdom Atomic Energy Authority
02/05/2012,MATERIALS & SPARES,FUSION,OXFORD BOLTS & BEARINGS,5100274615,45.00,United Kingdom Atomic Energy Authority,United Kingdom Atomic Energy Authority
21/05/2012,PROFESSIONAL SERVICES,FUSION,OXFORD TECHNOLOGIES LTD,5100274989,406.28,United Kingdom Atomic Energy Authority,United Kingdom Atomic Energy Authority
14/05/2012,PROFESSIONAL SERVICES,FUSION,OXFORD TECHNOLOGIES LTD,5100275157,3170.97,United Kingdom Atomic Energy Authority,United Kingdom Atomic Energy Authority
14/05/2012,PROFESSIONAL SERVICES,FUSION,OXFORD TECHNOLOGIES LTD,5100275159,4182.51,United Kingdom Atomic Energy Authority,United Kingdom Atomic Energy Authority
14/05/2012,PROFESSIONAL SERVICES,FUSION,OXFORD TECHNOLOGIES LTD,5100275160,2310.47,United Kingdom Atomic Energy Authority,United Kingdom Atomic Energy Authority
21/05/2012,PROFESSIONAL SERVICES,FUSION,OXFORD TECHNOLOGIES LTD (CB),5100274983,3466.26,United Kingdom Atomic Energy Authority,United Kingdom Atomic Energy Authority
21/05/2012,PROFESSIONAL SERVICES,FUSION,OXFORD TECHNOLOGIES LTD (CB),5100274984,95.80,United Kingdom Atomic Energy Authority,United Kingdom Atomic Energy Authority
21/05/2012,PROFESSIONAL SERVICES,FUSION,OXFORD TECHNOLOGIES LTD (CB),5100274985,905.63,United Kingdom Atomic Energy Authority,United Kingdom Atomic Energy Authority
21/05/2012,PROFESSIONAL SERVICES,FUSION,OXFORD TECHNOLOGIES LTD (CB),5100274986,3348.93,United Kingdom Atomic Energy Authority,United Kingdom Atomic Energy Authority
21/05/2012,PROFESSIONAL SERVICES,FUSION,OXFORD TECHNOLOGIES LTD (CB),5100274987,1202.00,United Kingdom Atomic Energy Authority,United Kingdom Atomic Energy Authority
21/05/2012,PROFESSIONAL SERVICES,FUSION,OXFORD TECHNOLOGIES LTD (CB),5100274988,4055.59,United Kingdom Atomic Energy Authority,United Kingdom Atomic Energy Authority
21/05/2012,PROFESSIONAL SERVICES,FUSION,OXFORD TECHNOLOGIES LTD (CB),5100275100,2410.54,United Kingdom Atomic Energy Authority,United Kingdom Atomic Energy Authority
01/05/2012,CHARITABLE DONATIONS,SUPPORT SERVICES,Parkinsons UK,1900056873,50.00,United Kingdom Atomic Energy Authority,United Kingdom Atomic Energy Authority
23/05/2012,STATIONERY,FUSION,PAYNE SECURITY,5100275391,110.00,United Kingdom Atomic Energy Authority,United Kingdom Atomic Energy Authority
23/05/2012,HIRED STAFF,FUSION,PELICAN SOFTWARE LTD,5100275375,5035.41,United Kingdom Atomic Energy Authority,United Kingdom Atomic Energy Authority
23/05/2012,HIRED STAFF,FUSION,PELICAN SOFTWARE LTD,5100275376,5478.02,United Kingdom Atomic Energy Authority,United Kingdom Atomic Energy Authority
21/05/2012,HIRED STAFF,FUSION,PELICAN SOFTWARE LTD,5100275377,5283.85,United Kingdom Atomic Energy Authority,United Kingdom Atomic Energy Authority
21/05/2012,HIRED STAFF,FUSION,PELICAN SOFTWARE LTD,5100275378,4638.40,United Kingdom Atomic Energy Authority,United Kingdom Atomic Energy Authority
21/05/2012,HIRED STAFF,FUSION,PELICAN SOFTWARE LTD,5100275379,148.42,United Kingdom Atomic Energy Authority,United Kingdom Atomic Energy Authority
30/04/2012,PROFESSIONAL SERVICES,FUSION,PERKIN ELMER LAS UK LTD,5100274613,3641.00,United Kingdom Atomic Energy Authority,United Kingdom Atomic Energy Authority
30/04/2012,PLANT & EQUIPMENT,FUSION,PFEIFFER VACUUM UK,5100274028,7538.43,United Kingdom Atomic Energy Authority,United Kingdom Atomic Energy Authority
02/05/2012,PLANT & EQUIPMENT,FUSION,PFEIFFER VACUUM UK,5100274624,175.48,United Kingdom Atomic Energy Authority,United Kingdom Atomic Energy Authority
30/04/2012,PLANT & EQUIPMENT,FUSION,PFEIFFER VACUUM UK,5100274569,652.60,United Kingdom Atomic Energy Authority,United Kingdom Atomic Energy Authority
09/05/2012,PLANT & EQUIPMENT,FUSION,PFEIFFER VACUUM UK,5100274720,1628.00,United Kingdom Atomic Energy Authority,United Kingdom Atomic Energy Authority
09/05/2012,PLANT & EQUIPMENT,FUSION,PFEIFFER VACUUM UK,5100274890,271.80,United Kingdom Atomic Energy Authority,United Kingdom Atomic Energy Authority
09/05/2012,PLANT & EQUIPMENT,FUSION,PHS GROUP PLC,5100274671,28.24,United Kingdom Atomic Energy Authority,United Kingdom Atomic Energy Authority
14/05/2012,MATERIALS & SPARES,FUSION,PIRTEK OXFORD,5100274975,503.09,United Kingdom Atomic Energy Authority,United Kingdom Atomic Energy Authority
21/05/2012,IT EQUIPMENT NON CAPITAL,FUSION,PORTABLE APPLIANCE SAFETY SERVICES,5100275236,415.00,United Kingdom Atomic Energy Authority,United Kingdom Atomic Energy Authority
21/05/2012,PLANT & EQUIPMENT,FUSION,POWELL & CO,5100275197,267.92,United Kingdom Atomic Energy Authority,United Kingdom Atomic Energy Authority
30/04/2012,PLANT & EQUIPMENT,FUSION,POWELL & CO,5100274619,71.40,United Kingdom Atomic Energy Authority,United Kingdom Atomic Energy Authority
09/05/2012,PLANT & EQUIPMENT,FUSION,POWELL & CO,5100274667,252.45,United Kingdom Atomic Energy Authority,United Kingdom Atomic Energy Authority
30/04/2012,PLANT SPARES,FUSION,POWER PRODUCTS INTERNATIONAL LTD,5100274471,326.05,United Kingdom Atomic Energy Authority,United Kingdom Atomic Energy Authority
21/05/2012,PLANT SPARES,FUSION,PRECISION CERAMICS,5100275198,6710.84,United Kingdom Atomic Energy Authority,United Kingdom Atomic Energy Authority
09/05/2012,PLANT & EQUIPMENT,FUSION,PRINCETON INSTRUMENTS LTD,5100274666,18530.00,United Kingdom Atomic Energy Authority,United Kingdom Atomic Energy Authority
14/05/2012,CONSUMABLES,FUSION,PRITCHARD SHEET METAL,5100274974,95.02,United Kingdom Atomic Energy Authority,United Kingdom Atomic Energy Authority
23/05/2012,IT EQUIPMENT NON CAPITAL,FUSION,PRODEC NETWORKS LTD,5100275398,5785.00,United Kingdom Atomic Energy Authority,United Kingdom Atomic Energy Authority
09/05/2012,TAXIS,FUSION,PRYORS TAXIS,5100274767,4117.69,United Kingdom Atomic Energy Authority,United Kingdom Atomic Energy Authority
14/05/2012,PLANT & EQUIPMENT,FUSION,QUARTZELEC LTD,5100274977,69120.00,United Kingdom Atomic Energy Authority,United Kingdom Atomic Energy Authority
18/05/2012,MILEAGE ALLOWANCE,FUSION,VISITOR EXPENSES,1900056932,169.80,United Kingdom Atomic Energy Authority,United Kingdom Atomic Energy Authority
09/05/2012,PROFESSIONAL SERVICES,FUSION,RADIOCARBON DATING,5100274892,15401.20,United Kingdom Atomic Energy Authority,United Kingdom Atomic Energy Authority
09/05/2012,PROFESSIONAL SERVICES,FUSION,RADIOCARBON DATING,5100274893,1876.00,United Kingdom Atomic Energy Authority,United Kingdom Atomic Energy Authority
21/05/2012,MATERIALS & SPARES,FUSION,RADWELL INTERNATIONAL UK LTD,5100275279,463.67,United Kingdom Atomic Energy Authority,United Kingdom Atomic Energy Authority
09/05/2012,PLANT & EQUIPMENT,PROPERTY,REECE SAFETY PRODUCTS LTD,5100274771,574.40,United Kingdom Atomic Energy Authority,United Kingdom Atomic Energy Authority
30/04/2012,SECURITY & EMERGENCY,PROPERTY,RELIANCE SECURITY GROUP PLC,5100274528,4123.00,United Kingdom Atomic Energy Authority,United Kingdom Atomic Energy Authority
30/04/2012,SECURITY & EMERGENCY,PROPERTY,RELIANCE SECURITY GROUP PLC,5100274530,1250.00,United Kingdom Atomic Energy Authority,United Kingdom Atomic Energy Authority
30/04/2012,SECURITY & EMERGENCY,PROPERTY,RELIANCE SECURITY GROUP PLC,5100274531,4340.00,United Kingdom Atomic Energy Authority,United Kingdom Atomic Energy Authority
30/04/2012,SECURITY & EMERGENCY,PROPERTY,RELIANCE SECURITY GROUP PLC,5100274532,99944.23,United Kingdom Atomic Energy Authority,United Kingdom Atomic Energy Authority
23/05/2012,SECURITY & EMERGENCY,PROPERTY,RELIANCE SECURITY GROUP PLC,5100275453,1250.00,United Kingdom Atomic Energy Authority,United Kingdom Atomic Energy Authority
23/05/2012,SECURITY & EMERGENCY,PROPERTY,RELIANCE SECURITY GROUP PLC,5100275455,99944.23,United Kingdom Atomic Energy Authority,United Kingdom Atomic Energy Authority
23/05/2012,SECURITY & EMERGENCY,PROPERTY,RELIANCE SECURITY GROUP PLC,5100275457,4340.00,United Kingdom Atomic Energy Authority,United Kingdom Atomic Energy Authority
30/04/2012,SECURITY & EMERGENCY,PROPERTY,RELIANCE SECURITY GROUP PLC,5100274529,6846.45,United Kingdom Atomic Energy Authority,United Kingdom Atomic Energy Authority
